Department Family,Entity,Payment Date,Expense Type,Expense Area,Supplier,System Transaction Number, Total Transparency Amount ,Plain Eng
MOJ,NOMS,29/12/2016,FM - Management Fee,Estates Contract Management,CARILLION (AMBS) LIMITED,6511817,-184605,Maintenance work
MOJ,NOMS,29/12/2016,FM - Management Fee,Estates Contract Management,CARILLION (AMBS) LIMITED,6511818,-184605,Maintenance work
MOJ,NOMS,20/12/2016,Gas,Cookham Wood,CORONA ENERGY RETAIL 4 LTD,6503807,-149354.54,Gas utility costs
MOJ,NOMS,22/12/2016,Contracted-out operation of prisons and detention centres,Parc,BRIDGEND CUSTODIAL SERVICES LTD,6469023,-128730.4,Prisons and detention centres operated by an external provider
MOJ,NOMS,13/12/2016,Contracted-out operation of prisons and detention centres,Bronzefield,ASHFORD PRISON SERVICES LTD,6496907,-101171.49,Prisons and detention centres operated by an external provider
MOJ,NOMS,30/12/2016,Contracted-out operation of prisons and detention centres,Altcourse,FAZAKERLEY PRISON SERVICES LTD,6511803,-100774.23,Prisons and detention centres operated by an external provider
MOJ,NOMS,13/12/2016,Contracted-out operation of prisons and detention centres,Altcourse,FAZAKERLEY PRISON SERVICES LTD,6496098,-100774.23,Prisons and detention centres operated by an external provider
MOJ,NOMS,13/12/2016,Contracted-out operation of prisons and detention centres,Peterborough,PETERBOROUGH PRISON MANAGEMENT LTD,6496102,-87492.3,Prisons and detention centres operated by an external provider
MOJ,NOMS,23/12/2016,Water and Sewage,Lincoln,ANGLIAN WATER SERVICES LTD,13023506,-82842.51,Water and sewage utility costs
MOJ,NOMS,02/12/2016,Ad-Hoc Major Maintenance and Capital Works - more than 10k,Estates Contract Management,AMEY COMMUNITY LIMITED,6481685,-80400,Major repair and operationally critical new work.
MOJ,NOMS,21/12/2016,Soft Variable Costs - OVER 5k - NON VAT Recoverable,Nottingham,AMEY COMMUNITY LIMITED,DM90499854,-78054.49,Computer services 
MOJ,NOMS,23/12/2016,Water and Sewage,Bedford,ANGLIAN WATER SERVICES LTD,19535214,-75330.01,Water and sewage utility costs
MOJ,NOMS,21/12/2016,FM - Hard Fixed Costs,Nottingham,AMEY COMMUNITY LIMITED,DM90499854,-51301.09,Maintenance work
MOJ,NOMS,20/12/2016,Ad-Hoc Major Maintenance and Capital Works - more than 10k,Estates Contract Management,CARILLION (AMBS) LIMITED,6507067,-45802.37,Major repair and operationally critical new work.
MOJ,NOMS,13/12/2016,Contracted-out operation of prisons and detention centres,Bronzefield,ASHFORD PRISON SERVICES LTD,6496908,-37263.16,Prisons and detention centres operated by an external provider
MOJ,NOMS,30/12/2016,Contracted-out operation of prisons and detention centres,Altcourse,FAZAKERLEY PRISON SERVICES LTD,6510957,-27772.92,Prisons and detention centres operated by an external provider
MOJ,NOMS,13/12/2016,Contracted-out operation of prisons and detention centres,Altcourse,FAZAKERLEY PRISON SERVICES LTD,6496147,-27772.92,Prisons and detention centres operated by an external provider
MOJ,NOMS,21/12/2016,FM - Soft Variable Costs - up to 5k,Nottingham,AMEY COMMUNITY LIMITED,DM90499854,-1125.28,Maintenance work
MOJ,NOMS,07/12/2016,FM - Ad-Hoc Works (Non Structural) - up to 5k,Estates Contract Management,CARILLION (AMBS) LIMITED,6487328,444.75,Maintenance work
MOJ,NOMS,28/12/2016,FM - Hard Variable Costs - up to 5k,Estates Contract Management,AMEY COMMUNITY LIMITED,6512673,447.22,Maintenance work
MOJ,NOMS,28/12/2016,FM - Ad-Hoc Works (Non Structural) - up to 5k,Estates Contract Management,AMEY COMMUNITY LIMITED,6513131,485.44,Maintenance work
MOJ,NOMS,02/12/2016,FM - Ad-Hoc Works (Non Structural) - up to 5k,Estates Contract Management,CARILLION (AMBS) LIMITED,6487334,539.95,Maintenance work
MOJ,NOMS,02/12/2016,FM - Hard Variable Costs - up to 5k,Estates Contract Management,CARILLION (AMBS) LIMITED,6487395,557.38,Maintenance work
MOJ,NOMS,19/12/2016,"Books, Stationery & IT Consumables",LDU Cluster Stockport and Tameside,THE CHESHIRE AND GREATER MANCHESTER COMMUNITY REHABILITATION COMPANY,6445038,572.97,"Books, stationery and IT consumables"
MOJ,NOMS,19/12/2016,"Books, Stationery & IT Consumables",LDU Cluster Rochdale Bury and Oldham,THE CHESHIRE AND GREATER MANCHESTER COMMUNITY REHABILITATION COMPANY,6445038,611.23,"Books, stationery and IT consumables"
MOJ,NOMS,19/12/2016,Hire of Reprographic Equipment,LDU Cluster Stockport and Tameside,THE CHESHIRE AND GREATER MANCHESTER COMMUNITY REHABILITATION COMPANY,6445038,621.5,Hire of reprographic equipment
MOJ,NOMS,28/12/2016,FM - Soft Variable Costs - up to 5k,Estates Contract Management,AMEY COMMUNITY LIMITED,6512673,636.14,Maintenance work
MOJ,NOMS,19/12/2016,Hire of Reprographic Equipment,LDU Cluster Rochdale Bury and Oldham,THE CHESHIRE AND GREATER MANCHESTER COMMUNITY REHABILITATION COMPANY,6445038,651.9,Hire of reprographic equipment
MOJ,NOMS,19/12/2016,"Books, Stationery & IT Consumables",LDU Cluster Wigan and Bolton,THE CHESHIRE AND GREATER MANCHESTER COMMUNITY REHABILITATION COMPANY,6445038,671.61,"Books, stationery and IT consumables"
MOJ,NOMS,29/12/2016,FM - Ad-Hoc Works (Non Structural) - up to 5k,Estates Contract Management,CARILLION (AMBS) LIMITED,6513717,673.84,Maintenance work
MOJ,NOMS,28/12/2016,FM - Hard Variable Costs - up to 5k,Estates Contract Management,AMEY COMMUNITY LIMITED,6512546,711.65,Maintenance work
MOJ,NOMS,20/12/2016,FM - Ad-Hoc Works (Non Structural) - up to 5k,Estates Contract Management,CARILLION (AMBS) LIMITED,6487278,718.23,Maintenance work
MOJ,NOMS,30/12/2016,FM - Hard Variable Costs - up to 5k,Estates Contract Management,CARILLION (AMBS) LIMITED,6514724,731.71,Maintenance work
MOJ,NOMS,28/12/2016,FM - Hard Variable Costs - up to 5k,Estates Contract Management,AMEY COMMUNITY LIMITED,6512405,746.59,Maintenance work
MOJ,NOMS,07/12/2016,FM - Ad-Hoc Works (Non Structural) - up to 5k,Estates Contract Management,CARILLION (AMBS) LIMITED,6487276,754.14,Maintenance work
MOJ,NOMS,29/12/2016,FM - Ad-Hoc Works (Non Structural) - up to 5k,Estates Contract Management,CARILLION (AMBS) LIMITED,6514722,814.03,Maintenance work
MOJ,NOMS,28/12/2016,FM - Hard Variable Costs - up to 5k,Estates Contract Management,AMEY COMMUNITY LIMITED,6513127,819.42,Maintenance work
MOJ,NOMS,02/12/2016,FM - Hard Variable Costs - up to 5k,Estates Contract Management,CARILLION (AMBS) LIMITED,6487361,862.54,Maintenance work
MOJ,NOMS,19/12/2016,Official Postage & Couriers,LDU Cluster Rochdale Bury and Oldham,THE CHESHIRE AND GREATER MANCHESTER COMMUNITY REHABILITATION COMPANY,6445038,925.09,Postage and couriers (excludes prisoners' postage)
MOJ,NOMS,30/12/2016,FM - Ad-Hoc Works (Non Structural) - up to 5k,Estates Contract Management,CARILLION (AMBS) LIMITED,6514670,935.49,Maintenance work
MOJ,NOMS,28/12/2016,FM - Hard Variable Costs - up to 5k,Estates Contract Management,AMEY COMMUNITY LIMITED,6512294,937.41,Maintenance work
MOJ,NOMS,19/12/2016,"Books, Stationery & IT Consumables",LDU Cluster Manchester Salford and Trafford,THE CHESHIRE AND GREATER MANCHESTER COMMUNITY REHABILITATION COMPANY,6445038,938.27,"Books, stationery and IT consumables"
MOJ,NOMS,29/12/2016,FM - Ad-Hoc Works (Non Structural) - up to 5k,Estates Contract Management,CARILLION (AMBS) LIMITED,6513708,955.21,Maintenance work
MOJ,NOMS,19/12/2016,Official Postage & Couriers,North West Probation Service,THE CHESHIRE AND GREATER MANCHESTER COMMUNITY REHABILITATION COMPANY,6445038,1024.24,Postage and couriers (excludes prisoners' postage)
MOJ,NOMS,21/12/2016,FM - Soft Variable Costs - up to 5k,Nottingham,AMEY COMMUNITY LIMITED,6260604,1125.28,Maintenance work
MOJ,NOMS,28/12/2016,FM - Ad-Hoc Works (Non Structural) - up to 5k,Estates Contract Management,AMEY COMMUNITY LIMITED,6512677,1134.77,Maintenance work
MOJ,NOMS,12/12/2016,FM - Soft Variable Costs - up to 5k,Estates Contract Management,CARILLION (AMBS) LIMITED,6487303,1190.41,Maintenance work
MOJ,NOMS,20/12/2016,Gas,East Sutton Park,CORONA ENERGY RETAIL 4 LTD,6503807,1222.28,Gas utility costs
MOJ,NOMS,28/12/2016,FM - Hard Variable Costs - up to 5k,Estates Contract Management,AMEY COMMUNITY LIMITED,6512278,1282.06,Maintenance work
MOJ,NOMS,09/12/2016,FM - Ad-Hoc Works (Non Structural) - up to 5k,Estates Contract Management,CARILLION (AMBS) LIMITED,6487275,1299.02,Maintenance work
MOJ,NOMS,28/12/2016,FM - Hard Variable Costs - up to 5k,Estates Contract Management,AMEY COMMUNITY LIMITED,6513262,1318.75,Maintenance work
MOJ,NOMS,02/12/2016,FM - Hard Variable Costs - up to 5k,Estates Contract Management,CARILLION (AMBS) LIMITED,6487353,1340.78,Maintenance work
MOJ,NOMS,19/12/2016,Contracted-out Security Services,LDU Cluster Ealing Harrow and Hillingdon,OCS GROUP UK LTD T/A CANNON,6501621,1418.04,Security guards used to protect property 
MOJ,NOMS,19/12/2016,"Books, Stationery & IT Consumables",LDU Cluster Cheshire,THE CHESHIRE AND GREATER MANCHESTER COMMUNITY REHABILITATION COMPANY,6445038,1439.49,"Books, stationery and IT consumables"
MOJ,NOMS,02/12/2016,FM - Hard Variable Costs - up to 5k,Estates Contract Management,CARILLION (AMBS) LIMITED,6487403,1486.32,Maintenance work
MOJ,NOMS,28/12/2016,FM - Hard Variable Costs - up to 5k,Estates Contract Management,AMEY COMMUNITY LIMITED,6512402,1519.11,Maintenance work
MOJ,NOMS,30/12/2016,FM - Ad-Hoc Works (Non Structural) - up to 5k,Estates Contract Management,CARILLION (AMBS) LIMITED,6514656,1520.14,Maintenance work
MOJ,NOMS,30/12/2016,FM - Hard Variable Costs - up to 5k,Estates Contract Management,CARILLION (AMBS) LIMITED,6514657,1642.52,Maintenance work
MOJ,NOMS,28/12/2016,FM - Hard Variable Costs - up to 5k,Estates Contract Management,AMEY COMMUNITY LIMITED,6512295,1649.98,Maintenance work
MOJ,NOMS,30/12/2016,FM - Ad-Hoc Works (Non Structural) - up to 5k,Estates Contract Management,CARILLION (AMBS) LIMITED,6514669,1762.4,Maintenance work
MOJ,NOMS,28/12/2016,FM - Ad-Hoc Works (Non Structural) - up to 5k,Estates Contract Management,AMEY COMMUNITY LIMITED,6512676,1764.66,Maintenance work
MOJ,NOMS,28/12/2016,FM - Hard Variable Costs - up to 5k,Estates Contract Management,AMEY COMMUNITY LIMITED,6513135,1778.74,Maintenance work
MOJ,NOMS,29/12/2016,FM - Hard Variable Costs - up to 5k,Estates Contract Management,CARILLION (AMBS) LIMITED,6513717,1845.52,Maintenance work
MOJ,NOMS,19/12/2016,Hire of Reprographic Equipment,LDU Cluster Wigan and Bolton,THE CHESHIRE AND GREATER MANCHESTER COMMUNITY REHABILITATION COMPANY,6445038,1854.65,Hire of reprographic equipment
MOJ,NOMS,30/12/2016,FM - Hard Variable Costs - up to 5k,Estates Contract Management,CARILLION (AMBS) LIMITED,6513707,1885.16,Maintenance work
MOJ,NOMS,30/12/2016,FM - Ad-Hoc Works (Non Structural) - up to 5k,Estates Contract Management,CARILLION (AMBS) LIMITED,6513677,1917.73,Maintenance work
MOJ,NOMS,30/12/2016,FM - Soft Fixed Costs,Estates Contract Management,CARILLION (AMBS) LIMITED,6514657,1955.5,Maintenance work
MOJ,NOMS,28/12/2016,FM - Ad-Hoc Works (Non Structural) - up to 5k,Estates Contract Management,AMEY COMMUNITY LIMITED,6512673,1961.13,Maintenance work
MOJ,NOMS,09/12/2016,FM - Ad-Hoc Works (Non Structural) - up to 5k,Estates Contract Management,CARILLION (AMBS) LIMITED,6487273,1997.32,Maintenance work
MOJ,NOMS,29/12/2016,FM - Hard Variable Costs - up to 5k,Estates Contract Management,CARILLION (AMBS) LIMITED,6514721,2011.46,Maintenance work
MOJ,NOMS,30/12/2016,FM - Ad-Hoc Works (Non Structural) - up to 5k,Estates Contract Management,CARILLION (AMBS) LIMITED,6513707,2093.12,Maintenance work
MOJ,NOMS,06/12/2016,FM - Hard Variable Costs - up to 5k,Estates Contract Management,CARILLION (AMBS) LIMITED,6487357,2140.16,Maintenance work
MOJ,NOMS,28/12/2016,FM - Hard Variable Costs - up to 5k,Estates Contract Management,AMEY COMMUNITY LIMITED,6512669,2189.08,Maintenance work
MOJ,NOMS,19/12/2016,Official Postage & Couriers,LDU Cluster Stockport and Tameside,THE CHESHIRE AND GREATER MANCHESTER COMMUNITY REHABILITATION COMPANY,6445038,2190.45,Postage and couriers (excludes prisoners' postage)
MOJ,NOMS,29/12/2016,FM - Hard Variable Costs - up to 5k,Estates Contract Management,CARILLION (AMBS) LIMITED,6514719,2234.46,Maintenance work
MOJ,NOMS,02/12/2016,FM - Hard Variable Costs - up to 5k,Estates Contract Management,CARILLION (AMBS) LIMITED,6487354,2235.74,Maintenance work
MOJ,NOMS,19/12/2016,Pest Control,Brixton,MITIE FACILITIES SERVICES LTD,6504132,2253.9,Pest control services including materials supplied by the contractor
MOJ,NOMS,05/12/2016,FM - Soft Fixed Costs,Estates Contract Management,CARILLION (AMBS) LIMITED,6487390,2266.46,Maintenance work
MOJ,NOMS,29/12/2016,FM - Soft Fixed Costs,Estates Contract Management,CARILLION (AMBS) LIMITED,6513711,2266.46,Maintenance work
MOJ,NOMS,28/12/2016,FM - Hard Variable Costs - up to 5k,Estates Contract Management,AMEY COMMUNITY LIMITED,6512300,2333.14,Maintenance work
MOJ,NOMS,30/12/2016,FM - Hard Variable Costs - up to 5k,Estates Contract Management,CARILLION (AMBS) LIMITED,6514670,2340.05,Maintenance work
MOJ,NOMS,07/12/2016,FM - Hard Variable Costs - up to 5k,Estates Contract Management,CARILLION (AMBS) LIMITED,6487328,2417.9,Maintenance work
MOJ,NOMS,12/12/2016,Electricity,Blantyre House,EDF ENERGY,6494098,2425.52,Electricity utility costs
MOJ,NOMS,08/12/2016,FM - Hard Variable Costs - up to 5k,Estates Contract Management,CARILLION (AMBS) LIMITED,6487404,2439.26,Maintenance work
MOJ,NOMS,30/12/2016,FM - Ad-Hoc Works (Non Structural) - up to 5k,Estates Contract Management,CARILLION (AMBS) LIMITED,6514657,2444.22,Maintenance work
MOJ,NOMS,30/12/2016,FM - Soft Fixed Costs,Estates Contract Management,CARILLION (AMBS) LIMITED,6513713,2488.73,Maintenance work
MOJ,NOMS,19/12/2016,Hire of Reprographic Equipment,LDU Cluster Manchester Salford and Trafford,THE CHESHIRE AND GREATER MANCHESTER COMMUNITY REHABILITATION COMPANY,6445038,2505.7,Hire of reprographic equipment
MOJ,NOMS,20/12/2016,Gas,Holloway,CORONA ENERGY RETAIL 4 LTD,6503807,2527.01,Gas utility costs
MOJ,NOMS,12/12/2016,FM - Ad-Hoc Works (Non Structural) - up to 5k,Estates Contract Management,CARILLION (AMBS) LIMITED,6487377,2602.76,Maintenance work
MOJ,NOMS,19/12/2016,FM - Hard Variable Costs - up to 5k,Estates Contract Management,MITIE FACILITIES SERVICES LTD,6504170,2619.47,Maintenance work
MOJ,NOMS,28/12/2016,FM - Ad-Hoc Works (Non Structural) - up to 5k,Estates Contract Management,AMEY COMMUNITY LIMITED,6512297,2625.44,Maintenance work
MOJ,NOMS,19/12/2016,Official Postage & Couriers,LDU Cluster Cheshire,THE CHESHIRE AND GREATER MANCHESTER COMMUNITY REHABILITATION COMPANY,6445038,2627.83,Postage and couriers (excludes prisoners' postage)
MOJ,NOMS,28/12/2016,FM - Hard Variable Costs - up to 5k,Estates Contract Management,AMEY COMMUNITY LIMITED,6512275,2635.01,Maintenance work
MOJ,NOMS,19/12/2016,Contracted-out Security Services,LDU Cluster Hammersmith Fulham Kensington Chelsea and Westminster,OCS GROUP UK LTD T/A CANNON,6501621,2652.26,Security guards used to protect property 
MOJ,NOMS,06/12/2016,FM - Soft Fixed Costs,Estates Contract Management,CARILLION (AMBS) LIMITED,6487355,2676.06,Maintenance work
MOJ,NOMS,19/12/2016,External Telecom Charges,North West Probation Service,THE CHESHIRE AND GREATER MANCHESTER COMMUNITY REHABILITATION COMPANY,6445038,2921.59,External telecom charges
MOJ,NOMS,28/12/2016,FM - Hard Variable Costs - up to 5k,Estates Contract Management,AMEY COMMUNITY LIMITED,6512297,2942.86,Maintenance work
MOJ,NOMS,28/12/2016,FM - Hard Variable Costs - up to 5k,Estates Contract Management,AMEY COMMUNITY LIMITED,6512299,2958.91,Maintenance work
MOJ,NOMS,07/12/2016,FM - Hard Variable Costs - up to 5k,Estates Contract Management,CARILLION (AMBS) LIMITED,6487276,2980.22,Maintenance work
MOJ,NOMS,07/12/2016,FM - Ad-Hoc Works (Non Structural) - up to 5k,Estates Contract Management,CARILLION (AMBS) LIMITED,6487277,2984.59,Maintenance work
MOJ,NOMS,20/12/2016,Gas,Aylesbury,CORONA ENERGY RETAIL 4 LTD,6503807,2986.2,Gas utility costs
MOJ,NOMS,12/12/2016,Electricity,Sodexo Northumberland,EDF ENERGY,6494098,3066.65,Electricity utility costs
MOJ,NOMS,30/12/2016,FM - Ad-Hoc Works (Non Structural) - up to 5k,Estates Contract Management,CARILLION (AMBS) LIMITED,6513710,3111.82,Maintenance work
MOJ,NOMS,19/12/2016,Professional works advice / services,Isis,MITIE FACILITIES SERVICES LTD,6504168,3123.69,Fees for professional services for maintenance on prison estate
MOJ,NOMS,29/12/2016,FM - Hard Variable Costs - up to 5k,Estates Contract Management,CARILLION (AMBS) LIMITED,6514722,3128.73,Maintenance work
MOJ,NOMS,12/12/2016,Electricity,Haslar,EDF ENERGY,6494098,3210.28,Electricity utility costs
MOJ,NOMS,07/12/2016,FM - Ad-Hoc Works (Non Structural) - up to 5k,Estates Contract Management,CARILLION (AMBS) LIMITED,6487326,3247.76,Maintenance work
MOJ,NOMS,08/12/2016,FM - Ad-Hoc Works (Non Structural) - up to 5k,Estates Contract Management,CARILLION (AMBS) LIMITED,6487393,3298.92,Maintenance work
MOJ,NOMS,19/12/2016,Waste disposal,Isis,MITIE FACILITIES SERVICES LTD,6504168,3309.7,Waste disposal
MOJ,NOMS,29/12/2016,FM - Hard Variable Costs - up to 5k,Estates Contract Management,CARILLION (AMBS) LIMITED,6514667,3321.1,Maintenance work
MOJ,NOMS,20/12/2016,Gas,Transport Group,CORONA ENERGY RETAIL 4 LTD,6503807,3326.44,Gas utility costs
MOJ,NOMS,08/12/2016,FM - Ad-Hoc Works (Non Structural) - up to 5k,Estates Contract Management,CARILLION (AMBS) LIMITED,6487305,3339.46,Maintenance work
MOJ,NOMS,09/12/2016,FM - Ad-Hoc Works (Non Structural) - up to 5k,Estates Contract Management,CARILLION (AMBS) LIMITED,6487298,3392.04,Maintenance work
MOJ,NOMS,02/12/2016,FM - Ad-Hoc Works (Non Structural) - up to 5k,Estates Contract Management,CARILLION (AMBS) LIMITED,6487362,3395.16,Maintenance work
MOJ,NOMS,30/12/2016,FM - Ad-Hoc Works (Non Structural) - up to 5k,Estates Contract Management,CARILLION (AMBS) LIMITED,6514642,3451.94,Maintenance work
MOJ,NOMS,29/12/2016,FM - Hard Variable Costs - up to 5k,Estates Contract Management,CARILLION (AMBS) LIMITED,6514726,3453.61,Maintenance work
MOJ,NOMS,06/12/2016,FM - Ad-Hoc Works (Non Structural) - up to 5k,Estates Contract Management,CARILLION (AMBS) LIMITED,6487358,3457.6,Maintenance work
MOJ,NOMS,30/12/2016,FM - Ad-Hoc Works (Non Structural) - up to 5k,Estates Contract Management,CARILLION (AMBS) LIMITED,6513698,3458.72,Maintenance work
MOJ,NOMS,28/12/2016,FM - Soft Variable Costs - up to 5k,Estates Contract Management,AMEY COMMUNITY LIMITED,6513262,3475.78,Maintenance work
MOJ,NOMS,29/12/2016,FM - Hard Variable Costs - up to 5k,Estates Contract Management,CARILLION (AMBS) LIMITED,6513718,3479.12,Maintenance work
MOJ,NOMS,02/12/2016,FM - Hard Variable Costs - up to 5k,Estates Contract Management,CARILLION (AMBS) LIMITED,6487396,3562.49,Maintenance work
MOJ,NOMS,09/12/2016,FM - Ad-Hoc Works (Non Structural) - up to 5k,Estates Contract Management,CARILLION (AMBS) LIMITED,6487364,3668.37,Maintenance work
MOJ,NOMS,20/12/2016,Gas,Pentonville,CORONA ENERGY RETAIL 4 LTD,6503807,3668.56,Gas utility costs
MOJ,NOMS,30/12/2016,FM - Hard Variable Costs - up to 5k,Estates Contract Management,CARILLION (AMBS) LIMITED,6513683,3674.31,Maintenance work
MOJ,NOMS,29/12/2016,FM - Ad-Hoc Works (Non Structural) - up to 5k,Estates Contract Management,CARILLION (AMBS) LIMITED,6513704,3683.29,Maintenance work
MOJ,NOMS,30/12/2016,FM - Ad-Hoc Works (Non Structural) - up to 5k,Estates Contract Management,CARILLION (AMBS) LIMITED,6514641,3800.08,Maintenance work
MOJ,NOMS,02/12/2016,FM - Soft Fixed Costs,Estates Contract Management,CARILLION (AMBS) LIMITED,6487397,3826.57,Maintenance work
MOJ,NOMS,29/12/2016,FM - Soft Fixed Costs,Estates Contract Management,CARILLION (AMBS) LIMITED,6514722,3826.57,Maintenance work
MOJ,NOMS,05/12/2016,General Maintenance Materials,Learning and Development Group,G4S FACILITIES MANAGEMENT (UK) LTD,6488950,3854.87,Maintenance work
MOJ,NOMS,08/12/2016,FM - Ad-Hoc Works (Non Structural) - up to 5k,Estates Contract Management,CARILLION (AMBS) LIMITED,6487332,3869.63,Maintenance work
MOJ,NOMS,28/12/2016,FM - Hard Variable Costs - up to 5k,Estates Contract Management,AMEY COMMUNITY LIMITED,6512672,3936.14,Maintenance work
MOJ,NOMS,28/12/2016,FM - Hard Variable Costs - up to 5k,Estates Contract Management,AMEY COMMUNITY LIMITED,6512400,3941.92,Maintenance work
MOJ,NOMS,28/12/2016,FM - Soft Fixed Costs,Estates Contract Management,AMEY COMMUNITY LIMITED,6512293,3966.71,Maintenance work
MOJ,NOMS,29/12/2016,FM - Hard Variable Costs - up to 5k,Estates Contract Management,CARILLION (AMBS) LIMITED,6513716,3969.23,Maintenance work
MOJ,NOMS,30/12/2016,FM - Ad-Hoc Works (Non Structural) - up to 5k,Estates Contract Management,CARILLION (AMBS) LIMITED,6514640,3974.45,Maintenance work
MOJ,NOMS,20/12/2016,Gas,Haslar,CORONA ENERGY RETAIL 4 LTD,6503807,4046.24,Gas utility costs
MOJ,NOMS,29/12/2016,FM - Ad-Hoc Works (Non Structural) - up to 5k,Estates Contract Management,CARILLION (AMBS) LIMITED,6513714,4087.32,Maintenance work
MOJ,NOMS,19/12/2016,Official Postage & Couriers,LDU Cluster Manchester Salford and Trafford,THE CHESHIRE AND GREATER MANCHESTER COMMUNITY REHABILITATION COMPANY,6445038,4152.74,Postage and couriers (excludes prisoners' postage)
MOJ,NOMS,06/12/2016,FM - Hard Variable Costs - up to 5k,Estates Contract Management,CARILLION (AMBS) LIMITED,6487330,4233.34,Maintenance work
MOJ,NOMS,28/12/2016,FM - Soft Fixed Costs,Estates Contract Management,AMEY COMMUNITY LIMITED,6512681,4329.73,Maintenance work
MOJ,NOMS,19/12/2016,Waste disposal,Brixton,MITIE FACILITIES SERVICES LTD,6504132,4373.3,Waste disposal
MOJ,NOMS,29/12/2016,FM - Ad-Hoc Works (Non Structural) - up to 5k,Estates Contract Management,CARILLION (AMBS) LIMITED,6513711,4382.78,Maintenance work
MOJ,NOMS,19/12/2016,Hire of Reprographic Equipment,Public Protection North West,THE CHESHIRE AND GREATER MANCHESTER COMMUNITY REHABILITATION COMPANY,6445038,4427.51,Hire of reprographic equipment
MOJ,NOMS,06/12/2016,FM - Ad-Hoc Works (Non Structural) - up to 5k,Estates Contract Management,CARILLION (AMBS) LIMITED,6487398,4439.04,Maintenance work
MOJ,NOMS,28/12/2016,FM - Ad-Hoc Works (Non Structural) - up to 5k,Estates Contract Management,AMEY COMMUNITY LIMITED,6512680,4457.46,Maintenance work
MOJ,NOMS,06/12/2016,FM - Hard Variable Costs - up to 5k,Estates Contract Management,CARILLION (AMBS) LIMITED,6487355,4485.09,Maintenance work
MOJ,NOMS,28/12/2016,FM - Hard Variable Costs - up to 5k,Estates Contract Management,AMEY COMMUNITY LIMITED,6512541,4513.74,Maintenance work
MOJ,NOMS,02/12/2016,FM - Hard Variable Costs - up to 5k,Estates Contract Management,CARILLION (AMBS) LIMITED,6487399,4596.96,Maintenance work
MOJ,NOMS,02/12/2016,FM - Hard Variable Costs - up to 5k,Estates Contract Management,CARILLION (AMBS) LIMITED,6487400,4676.48,Maintenance work
MOJ,NOMS,28/12/2016,FM - Hard Variable Costs - up to 5k,Estates Contract Management,AMEY COMMUNITY LIMITED,6512293,4697.88,Maintenance work
MOJ,NOMS,06/12/2016,FM - Ad-Hoc Works (Non Structural) - up to 5k,Estates Contract Management,CARILLION (AMBS) LIMITED,6487391,4708.63,Maintenance work
MOJ,NOMS,20/12/2016,Gas,MoJ Estates,CORONA ENERGY RETAIL 4 LTD,6503807,4719.62,Gas utility costs
MOJ,NOMS,06/12/2016,FM - Hard Variable Costs - up to 5k,Estates Contract Management,CARILLION (AMBS) LIMITED,6487391,4862.1,Maintenance work
MOJ,NOMS,30/12/2016,FM - Hard Variable Costs - up to 5k,Estates Contract Management,CARILLION (AMBS) LIMITED,6514641,4925.87,Maintenance work
MOJ,NOMS,30/12/2016,FM - Ad-Hoc Works (Non Structural) - up to 5k,Estates Contract Management,CARILLION (AMBS) LIMITED,6513713,5040.65,Maintenance work
MOJ,NOMS,28/12/2016,FM - Hard Variable Costs - up to 5k,Estates Contract Management,AMEY COMMUNITY LIMITED,6513131,5116.46,Maintenance work
MOJ,NOMS,29/12/2016,Hard Variable OVER 5k - NON VAT Recoverable,Estates Contract Management,CARILLION (AMBS) LIMITED,6514720,5171.26,Maintenance work
MOJ,NOMS,09/12/2016,FM - Ad-Hoc Works (Non Structural) - up to 5k,Estates Contract Management,CARILLION (AMBS) LIMITED,6487375,5267.78,Maintenance work
MOJ,NOMS,20/12/2016,Gas,Coldingley,CORONA ENERGY RETAIL 4 LTD,6503807,5353.92,Gas utility costs
MOJ,NOMS,28/12/2016,FM - Soft Variable Costs - up to 5k,Estates Contract Management,AMEY COMMUNITY LIMITED,6512676,5393.51,Maintenance work
MOJ,NOMS,02/12/2016,FM - Hard Variable Costs - up to 5k,Estates Contract Management,CARILLION (AMBS) LIMITED,6487352,5414.63,Maintenance work
MOJ,NOMS,29/12/2016,FM - Soft Fixed Costs,Estates Contract Management,CARILLION (AMBS) LIMITED,6513715,5491.8,Maintenance work
MOJ,NOMS,02/12/2016,FM - Soft Fixed Costs,Estates Contract Management,CARILLION (AMBS) LIMITED,6487354,5491.8,Maintenance work
MOJ,NOMS,28/12/2016,FM - Hard Variable Costs - up to 5k,Estates Contract Management,AMEY COMMUNITY LIMITED,6512292,5506.42,Maintenance work
MOJ,NOMS,30/12/2016,FM - Soft Fixed Costs,Estates Contract Management,CARILLION (AMBS) LIMITED,6513710,5554.67,Maintenance work
MOJ,NOMS,30/12/2016,FM - Hard Variable Costs - up to 5k,Estates Contract Management,CARILLION (AMBS) LIMITED,6514655,5620.81,Maintenance work
MOJ,NOMS,28/12/2016,FM - Soft Fixed Costs,Estates Contract Management,AMEY COMMUNITY LIMITED,6512544,5658.54,Maintenance work
MOJ,NOMS,06/12/2016,Hard Variable OVER 5k - NON VAT Recoverable,Estates Contract Management,CARILLION (AMBS) LIMITED,6487358,5690.42,Maintenance work
MOJ,NOMS,02/12/2016,FM - Hard Variable Costs - up to 5k,Estates Contract Management,CARILLION (AMBS) LIMITED,6487397,5701.54,Maintenance work
MOJ,NOMS,06/12/2016,FM - Ad-Hoc Works (Non Structural) - up to 5k,Estates Contract Management,CARILLION (AMBS) LIMITED,6487355,5726.26,Maintenance work
MOJ,NOMS,29/12/2016,FM - Ad-Hoc Works (Non Structural) - up to 5k,Estates Contract Management,CARILLION (AMBS) LIMITED,6514667,5734.36,Maintenance work
MOJ,NOMS,30/12/2016,FM - Hard Variable Costs - up to 5k,Estates Contract Management,CARILLION (AMBS) LIMITED,6514640,5735.83,Maintenance work
MOJ,NOMS,29/12/2016,Hard Variable OVER 5k - NON VAT Recoverable,Estates Contract Management,CARILLION (AMBS) LIMITED,6513714,5764.08,Maintenance work
MOJ,NOMS,20/12/2016,Gas,Risley,CORONA ENERGY RETAIL 4 LTD,6503807,5814.55,Gas utility costs
MOJ,NOMS,28/12/2016,FM - Hard Variable Costs - up to 5k,Estates Contract Management,AMEY COMMUNITY LIMITED,6512680,5852.05,Maintenance work
MOJ,NOMS,02/12/2016,Hard Variable OVER 5k - NON VAT Recoverable,Estates Contract Management,CARILLION (AMBS) LIMITED,6487351,5858.48,Maintenance work
MOJ,NOMS,09/12/2016,Hard Variable OVER 5k - NON VAT Recoverable,Estates Contract Management,CARILLION (AMBS) LIMITED,6487298,5898.97,Maintenance work
MOJ,NOMS,29/12/2016,Hard Variable OVER 5k - NON VAT Recoverable,Estates Contract Management,CARILLION (AMBS) LIMITED,6513711,5904.61,Maintenance work
MOJ,NOMS,29/12/2016,FM - Hard Variable Costs - up to 5k,Estates Contract Management,CARILLION (AMBS) LIMITED,6513714,5935.43,Maintenance work
MOJ,NOMS,28/12/2016,FM - Hard Variable Costs - up to 5k,Estates Contract Management,AMEY COMMUNITY LIMITED,6512404,5936.12,Maintenance work
MOJ,NOMS,28/12/2016,FM - Ad-Hoc (Non Structural)  Maintenance- between 5k and 10k,Estates Contract Management,AMEY COMMUNITY LIMITED,6512680,5942.2,Maintenance work
MOJ,NOMS,19/12/2016,Professional works advice / services,Brixton,MITIE FACILITIES SERVICES LTD,6504132,5965.03,Fees for professional services for maintenance on prison estate
MOJ,NOMS,06/12/2016,FM - Soft Fixed Costs,Estates Contract Management,CARILLION (AMBS) LIMITED,6487391,5972.76,Maintenance work
MOJ,NOMS,06/12/2016,FM - Hard Variable Costs - up to 5k,Estates Contract Management,CARILLION (AMBS) LIMITED,6487398,6031.88,Maintenance work
MOJ,NOMS,28/12/2016,FM - Hard Variable Costs - up to 5k,Estates Contract Management,AMEY COMMUNITY LIMITED,6512399,6036.67,Maintenance work
MOJ,NOMS,20/12/2016,Gas,Liverpool,CORONA ENERGY RETAIL 4 LTD,6503807,6038.6,Gas utility costs
MOJ,NOMS,06/12/2016,FM - Hard Variable Costs - up to 5k,Estates Contract Management,CARILLION (AMBS) LIMITED,6487358,6063.98,Maintenance work
MOJ,NOMS,08/12/2016,Hard Variable OVER 5k - NON VAT Recoverable,Estates Contract Management,CARILLION (AMBS) LIMITED,6487305,6124,Maintenance work
MOJ,NOMS,30/12/2016,FM - Soft Fixed Costs,Estates Contract Management,CARILLION (AMBS) LIMITED,6513707,6144.36,Maintenance work
MOJ,NOMS,30/12/2016,Hard Variable OVER 5k - NON VAT Recoverable,Estates Contract Management,CARILLION (AMBS) LIMITED,6513677,6163.3,Maintenance work
MOJ,NOMS,07/12/2016,FM - Hard Variable Costs - up to 5k,Estates Contract Management,CARILLION (AMBS) LIMITED,6487376,6206.03,Maintenance work
MOJ,NOMS,28/12/2016,FM - Hard Variable Costs - up to 5k,Estates Contract Management,AMEY COMMUNITY LIMITED,6512296,6266.86,Maintenance work
MOJ,NOMS,28/12/2016,FM - Hard Variable Costs - up to 5k,Estates Contract Management,AMEY COMMUNITY LIMITED,6512401,6273.07,Maintenance work
MOJ,NOMS,30/12/2016,FM - Soft Fixed Costs,Estates Contract Management,CARILLION (AMBS) LIMITED,6514669,6333,Maintenance work
MOJ,NOMS,28/12/2016,Hard Variable OVER 5k - NON VAT Recoverable,Estates Contract Management,AMEY COMMUNITY LIMITED,6512274,6336.48,Maintenance work
MOJ,NOMS,28/12/2016,FM - Soft Fixed Costs,Estates Contract Management,AMEY COMMUNITY LIMITED,6512292,6338.12,Maintenance work
MOJ,NOMS,29/12/2016,FM - Hard Variable Costs - up to 5k,Estates Contract Management,CARILLION (AMBS) LIMITED,6513704,6365.27,Maintenance work
MOJ,NOMS,29/12/2016,FM - Ad-Hoc Works (Non Structural) - up to 5k,Estates Contract Management,CARILLION (AMBS) LIMITED,6514653,6398.18,Maintenance work
MOJ,NOMS,30/12/2016,FM - Ad-Hoc (Non Structural)  Maintenance- between 5k and 10k,Estates Contract Management,CARILLION (AMBS) LIMITED,6513696,6409.1,Maintenance work
MOJ,NOMS,12/12/2016,Electricity,East Sutton Park,EDF ENERGY,6494098,6413.35,Electricity utility costs
MOJ,NOMS,30/12/2016,FM - Hard Variable Costs - up to 5k,Estates Contract Management,CARILLION (AMBS) LIMITED,6513710,6438.98,Maintenance work
MOJ,NOMS,28/12/2016,Hard Variable OVER 5k - NON VAT Recoverable,Estates Contract Management,AMEY COMMUNITY LIMITED,6512676,6492.95,Maintenance work
MOJ,NOMS,30/12/2016,FM - Ad-Hoc (Non Structural)  Maintenance- between 5k and 10k,Estates Contract Management,CARILLION (AMBS) LIMITED,6514656,6575.72,Maintenance work
MOJ,NOMS,02/12/2016,FM - Soft Fixed Costs,Estates Contract Management,CARILLION (AMBS) LIMITED,6487334,6606.84,Maintenance work
MOJ,NOMS,29/12/2016,FM - Ad-Hoc Works (Non Structural) - up to 5k,Estates Contract Management,CARILLION (AMBS) LIMITED,6514726,6729.32,Maintenance work
MOJ,NOMS,07/12/2016,FM - Soft Fixed Costs,Estates Contract Management,CARILLION (AMBS) LIMITED,6487376,6785.84,Maintenance work
MOJ,NOMS,20/12/2016,Gas,Isis,CORONA ENERGY RETAIL 4 LTD,6503807,6800.58,Gas utility costs
MOJ,NOMS,29/12/2016,Hard Variable OVER 5k - NON VAT Recoverable,Estates Contract Management,CARILLION (AMBS) LIMITED,6513708,6818.35,Maintenance work
MOJ,NOMS,28/12/2016,FM - Ad-Hoc (Non Structural)  Maintenance- between 5k and 10k,Estates Contract Management,AMEY COMMUNITY LIMITED,6512671,6839.44,Maintenance work
MOJ,NOMS,29/12/2016,FM - Soft Fixed Costs,Estates Contract Management,CARILLION (AMBS) LIMITED,6514721,6856.11,Maintenance work
MOJ,NOMS,02/12/2016,FM - Soft Fixed Costs,Estates Contract Management,CARILLION (AMBS) LIMITED,6487399,6856.11,Maintenance work
MOJ,NOMS,29/12/2016,FM - Hard Variable Costs - up to 5k,Estates Contract Management,CARILLION (AMBS) LIMITED,6514653,6925.07,Maintenance work
MOJ,NOMS,08/12/2016,Hard Variable OVER 5k - NON VAT Recoverable,Estates Contract Management,CARILLION (AMBS) LIMITED,6487304,6944.62,Maintenance work
MOJ,NOMS,21/12/2016,Soft Variable Costs - OVER 5k - NON VAT Recoverable,Nottingham,AMEY COMMUNITY LIMITED,6260604,6987.26,Maintenance work
MOJ,NOMS,08/12/2016,FM - Hard Variable Costs - up to 5k,Estates Contract Management,CARILLION (AMBS) LIMITED,6487304,6995.63,Maintenance work
MOJ,NOMS,29/12/2016,Hard Variable OVER 5k - NON VAT Recoverable,Estates Contract Management,CARILLION (AMBS) LIMITED,6514653,7122.37,Maintenance work
MOJ,NOMS,28/12/2016,Hard Variable OVER 5k - NON VAT Recoverable,Estates Contract Management,AMEY COMMUNITY LIMITED,6512398,7205.28,Maintenance work
MOJ,NOMS,02/12/2016,FM - Hard Variable Costs - up to 5k,Estates Contract Management,CARILLION (AMBS) LIMITED,6487350,7222.35,Maintenance work
MOJ,NOMS,29/12/2016,FM - Soft Fixed Costs,Estates Contract Management,CARILLION (AMBS) LIMITED,6514668,7328.95,Maintenance work
MOJ,NOMS,02/12/2016,FM - Hard Variable Costs - up to 5k,Estates Contract Management,CARILLION (AMBS) LIMITED,6487362,7413.09,Maintenance work
MOJ,NOMS,02/12/2016,Hard Variable OVER 5k - NON VAT Recoverable,Estates Contract Management,CARILLION (AMBS) LIMITED,6487379,7453.12,Maintenance work
MOJ,NOMS,20/12/2016,Gas,Woodhill,CORONA ENERGY RETAIL 4 LTD,6503807,7499.27,Gas utility costs
MOJ,NOMS,30/12/2016,FM - Hard Variable Costs - up to 5k,Estates Contract Management,CARILLION (AMBS) LIMITED,6513677,7518.08,Maintenance work
MOJ,NOMS,02/12/2016,FM - Soft Fixed Costs,Estates Contract Management,CARILLION (AMBS) LIMITED,6487361,7527.29,Maintenance work
MOJ,NOMS,30/12/2016,FM - Soft Fixed Costs,Estates Contract Management,CARILLION (AMBS) LIMITED,6513705,7527.29,Maintenance work
MOJ,NOMS,30/12/2016,FM - Ad-Hoc Works (Non Structural) - up to 5k,Estates Contract Management,CARILLION (AMBS) LIMITED,6513705,7533.22,Maintenance work
MOJ,NOMS,28/12/2016,FM - Soft Fixed Costs,Estates Contract Management,AMEY COMMUNITY LIMITED,6512673,7547.74,Maintenance work
MOJ,NOMS,19/12/2016,Contracted-out Building Maintenance,Isis,MITIE FACILITIES SERVICES LTD,6504167,7575.77,Maintenance work
MOJ,NOMS,28/12/2016,Hard Variable OVER 5k - NON VAT Recoverable,Estates Contract Management,AMEY COMMUNITY LIMITED,6512277,7576.13,Maintenance work
MOJ,NOMS,12/12/2016,Electricity,Askham Grange,EDF ENERGY,6494098,7617.6,Electricity utility costs
MOJ,NOMS,28/12/2016,FM - Ad-Hoc (Non Structural)  Maintenance- between 5k and 10k,Estates Contract Management,AMEY COMMUNITY LIMITED,6512545,7626.24,Maintenance work
MOJ,NOMS,28/12/2016,FM - Hard Variable Costs - up to 5k,Estates Contract Management,AMEY COMMUNITY LIMITED,6512718,7667.8,Maintenance work
MOJ,NOMS,29/12/2016,Hard Variable OVER 5k - NON VAT Recoverable,Estates Contract Management,CARILLION (AMBS) LIMITED,6514726,7697.77,Maintenance work
MOJ,NOMS,28/12/2016,FM - Soft Fixed Costs,Estates Contract Management,AMEY COMMUNITY LIMITED,6512276,7728.01,Maintenance work
MOJ,NOMS,28/12/2016,FM - Soft Fixed Costs,Estates Contract Management,AMEY COMMUNITY LIMITED,6512678,7739.06,Maintenance work
MOJ,NOMS,07/12/2016,FM - Ad-Hoc Works (Non Structural) - up to 5k,Estates Contract Management,CARILLION (AMBS) LIMITED,6487401,7788.51,Maintenance work
MOJ,NOMS,09/12/2016,Hard Variable OVER 5k - NON VAT Recoverable,Estates Contract Management,CARILLION (AMBS) LIMITED,6487275,7790.24,Maintenance work
MOJ,NOMS,06/12/2016,FM - Ad-Hoc Works (Non Structural) - up to 5k,Estates Contract Management,CARILLION (AMBS) LIMITED,6487356,7806.25,Maintenance work
MOJ,NOMS,09/12/2016,FM - Soft Fixed Costs,Estates Contract Management,CARILLION (AMBS) LIMITED,6487364,7825.43,Maintenance work
MOJ,NOMS,29/12/2016,FM - Ad-Hoc (Non Structural)  Maintenance- between 5k and 10k,Estates Contract Management,CARILLION (AMBS) LIMITED,6513714,7845.43,Maintenance work
MOJ,NOMS,28/12/2016,FM - Hard Variable Costs - up to 5k,Estates Contract Management,AMEY COMMUNITY LIMITED,6512595,7846.41,Maintenance work
MOJ,NOMS,08/12/2016,FM - Ad-Hoc (Non Structural)  Maintenance- between 5k and 10k,Estates Contract Management,CARILLION (AMBS) LIMITED,6487327,7925.53,Maintenance work
MOJ,NOMS,30/12/2016,FM - Ad-Hoc Works (Non Structural) - up to 5k,Estates Contract Management,CARILLION (AMBS) LIMITED,6514639,7952.18,Maintenance work
MOJ,NOMS,28/12/2016,FM - Hard Variable Costs - up to 5k,Estates Contract Management,AMEY COMMUNITY LIMITED,6512547,7964.18,Maintenance work
MOJ,NOMS,08/12/2016,FM - Hard Variable Costs - up to 5k,Estates Contract Management,CARILLION (AMBS) LIMITED,6487332,7970.59,Maintenance work
MOJ,NOMS,28/12/2016,FM - Ad-Hoc Works (Non Structural) - up to 5k,Estates Contract Management,AMEY COMMUNITY LIMITED,6512299,7999.03,Maintenance work
MOJ,NOMS,12/12/2016,Electricity,Dover,EDF ENERGY,6494098,8009.51,Electricity utility costs
MOJ,NOMS,30/12/2016,FM - Ad-Hoc Works (Non Structural) - up to 5k,Estates Contract Management,CARILLION (AMBS) LIMITED,6513682,8126.93,Maintenance work
MOJ,NOMS,06/12/2016,Hard Variable OVER 5k - NON VAT Recoverable,Estates Contract Management,CARILLION (AMBS) LIMITED,6487355,8158.78,Maintenance work
MOJ,NOMS,28/12/2016,FM - Soft Fixed Costs,Estates Contract Management,AMEY COMMUNITY LIMITED,6513127,8216.99,Maintenance work
MOJ,NOMS,30/12/2016,Hard Variable OVER 5k - NON VAT Recoverable,Estates Contract Management,CARILLION (AMBS) LIMITED,6513705,8270.86,Maintenance work
MOJ,NOMS,08/12/2016,Hard Variable OVER 5k - NON VAT Recoverable,Estates Contract Management,CARILLION (AMBS) LIMITED,6487393,8276.64,Maintenance work
MOJ,NOMS,28/12/2016,FM - Soft Fixed Costs,Estates Contract Management,AMEY COMMUNITY LIMITED,6512596,8285.47,Maintenance work
MOJ,NOMS,28/12/2016,Hard Variable OVER 5k - NON VAT Recoverable,Estates Contract Management,AMEY COMMUNITY LIMITED,6512299,8363.3,Maintenance work
MOJ,NOMS,28/12/2016,FM - Hard Variable Costs - up to 5k,Estates Contract Management,AMEY COMMUNITY LIMITED,6512671,8378.17,Maintenance work
MOJ,NOMS,30/12/2016,Hard Variable OVER 5k - NON VAT Recoverable,Estates Contract Management,CARILLION (AMBS) LIMITED,6514670,8392.28,Maintenance work
MOJ,NOMS,08/12/2016,FM - Ad-Hoc Works (Non Structural) - up to 5k,Estates Contract Management,CARILLION (AMBS) LIMITED,6487304,8418.73,Maintenance work
MOJ,NOMS,28/12/2016,FM - Soft Fixed Costs,Estates Contract Management,AMEY COMMUNITY LIMITED,6512669,8453.9,Maintenance work
MOJ,NOMS,02/12/2016,Contracted-out Resettlement Services,Psychology Services,MAISIE DYSON- FORENSIC PSYCHOLOGY ASSOCIATES LTD,6489202,8500,Resettlement and community services 
MOJ,NOMS,02/12/2016,Contracted-out Resettlement Services,Psychology Services,MAISIE DYSON- FORENSIC PSYCHOLOGY ASSOCIATES LTD,6489203,8500,Resettlement and community services 
MOJ,NOMS,28/12/2016,FM - Hard Variable Costs - up to 5k,Estates Contract Management,AMEY COMMUNITY LIMITED,6512543,8535.62,Maintenance work
MOJ,NOMS,12/12/2016,Electricity,Holloway,EDF ENERGY,6494098,8545.91,Electricity utility costs
MOJ,NOMS,28/12/2016,Hard Variable OVER 5k - NON VAT Recoverable,Estates Contract Management,AMEY COMMUNITY LIMITED,6512670,8567.59,Maintenance work
MOJ,NOMS,09/12/2016,FM - Hard Variable Costs - up to 5k,Estates Contract Management,CARILLION (AMBS) LIMITED,6487275,8592.01,Maintenance work
MOJ,NOMS,29/12/2016,FM - Hard Variable Costs - up to 5k,Estates Contract Management,CARILLION (AMBS) LIMITED,6514720,8601.7,Maintenance work
MOJ,NOMS,30/12/2016,FM - Ad-Hoc (Non Structural)  Maintenance- between 5k and 10k,Estates Contract Management,CARILLION (AMBS) LIMITED,6513713,8658.68,Maintenance work
MOJ,NOMS,02/12/2016,FM - Hard Variable Costs - up to 5k,Estates Contract Management,CARILLION (AMBS) LIMITED,6487379,8663.38,Maintenance work
MOJ,NOMS,30/12/2016,FM - Ad-Hoc (Non Structural)  Maintenance- between 5k and 10k,Estates Contract Management,CARILLION (AMBS) LIMITED,6513698,8726.51,Maintenance work
MOJ,NOMS,02/12/2016,FM - Hard Variable Costs - up to 5k,Estates Contract Management,CARILLION (AMBS) LIMITED,6487333,8734.32,Maintenance work
MOJ,NOMS,02/12/2016,FM - Soft Fixed Costs,Estates Contract Management,CARILLION (AMBS) LIMITED,6487362,8778.73,Maintenance work
MOJ,NOMS,30/12/2016,FM - Soft Fixed Costs,Estates Contract Management,CARILLION (AMBS) LIMITED,6513685,8778.73,Maintenance work
MOJ,NOMS,28/12/2016,FM - Soft Fixed Costs,Estates Contract Management,AMEY COMMUNITY LIMITED,6512296,8794.34,Maintenance work
MOJ,NOMS,20/12/2016,Gas,Swansea,CORONA ENERGY RETAIL 4 LTD,6503807,8820.09,Gas utility costs
MOJ,NOMS,28/12/2016,Hard Variable OVER 5k - NON VAT Recoverable,Estates Contract Management,AMEY COMMUNITY LIMITED,6512399,9010.03,Maintenance work
MOJ,NOMS,09/12/2016,Hard Variable OVER 5k - NON VAT Recoverable,Estates Contract Management,CARILLION (AMBS) LIMITED,6487364,9070.06,Maintenance work
MOJ,NOMS,02/12/2016,FM - Soft Fixed Costs,Estates Contract Management,CARILLION (AMBS) LIMITED,6487379,9074.63,Maintenance work
MOJ,NOMS,29/12/2016,FM - Soft Fixed Costs,Estates Contract Management,CARILLION (AMBS) LIMITED,6514720,9074.63,Maintenance work
MOJ,NOMS,28/12/2016,FM - Soft Fixed Costs,Estates Contract Management,AMEY COMMUNITY LIMITED,6512672,9163.4,Maintenance work
MOJ,NOMS,07/12/2016,FM - Hard Variable Costs - up to 5k,Estates Contract Management,CARILLION (AMBS) LIMITED,6487325,9176.29,Maintenance work
MOJ,NOMS,28/12/2016,FM - Hard Variable Costs - up to 5k,Estates Contract Management,AMEY COMMUNITY LIMITED,6512677,9228.71,Maintenance work
MOJ,NOMS,29/12/2016,FM - Hard Variable Costs - up to 5k,Estates Contract Management,CARILLION (AMBS) LIMITED,6513697,9231.11,Maintenance work
MOJ,NOMS,28/12/2016,FM - Hard Variable Costs - up to 5k,Estates Contract Management,AMEY COMMUNITY LIMITED,6512538,9231.64,Maintenance work
MOJ,NOMS,20/12/2016,Gas,Dover,CORONA ENERGY RETAIL 4 LTD,6503807,9236.21,Gas utility costs
MOJ,NOMS,08/12/2016,FM - Soft Fixed Costs,Estates Contract Management,CARILLION (AMBS) LIMITED,6487393,9244.37,Maintenance work
MOJ,NOMS,30/12/2016,FM - Soft Fixed Costs,Estates Contract Management,CARILLION (AMBS) LIMITED,6514724,9244.37,Maintenance work
MOJ,NOMS,30/12/2016,FM - Hard Fixed Costs,Estates Contract Management,CARILLION (AMBS) LIMITED,6514657,9320.04,Maintenance work
MOJ,NOMS,28/12/2016,FM - Hard Variable Costs - up to 5k,Estates Contract Management,AMEY COMMUNITY LIMITED,6512403,9397.5,Maintenance work
MOJ,NOMS,06/12/2016,FM - Ad-Hoc Works (Non Structural) - up to 5k,Estates Contract Management,CARILLION (AMBS) LIMITED,6487357,9408.19,Maintenance work
MOJ,NOMS,30/12/2016,FM - Soft Fixed Costs,Estates Contract Management,CARILLION (AMBS) LIMITED,6514642,9502.41,Maintenance work
MOJ,NOMS,07/12/2016,FM - Soft Fixed Costs,Estates Contract Management,CARILLION (AMBS) LIMITED,6487328,9502.41,Maintenance work
MOJ,NOMS,28/12/2016,FM - Hard Variable Costs - up to 5k,Estates Contract Management,AMEY COMMUNITY LIMITED,6512676,9540.48,Maintenance work
MOJ,NOMS,30/12/2016,FM - Ad-Hoc (Non Structural)  Maintenance- between 5k and 10k,Estates Contract Management,CARILLION (AMBS) LIMITED,6514657,9566.02,Maintenance work
MOJ,NOMS,28/12/2016,FM - Hard Variable Costs - up to 5k,Estates Contract Management,AMEY COMMUNITY LIMITED,6513133,9567.41,Maintenance work
MOJ,NOMS,21/12/2016,FM - Hard Variable Costs - up to 5k,Nottingham,AMEY COMMUNITY LIMITED,6260604,9648.92,Maintenance work
MOJ,NOMS,29/12/2016,FM - Soft Fixed Costs,Estates Contract Management,CARILLION (AMBS) LIMITED,6513695,9666.26,Maintenance work
MOJ,NOMS,28/12/2016,FM - Soft Fixed Costs,Estates Contract Management,AMEY COMMUNITY LIMITED,6512294,9675.36,Maintenance work
MOJ,NOMS,19/12/2016,FM - Soft Fixed Costs,Estates Contract Management,MITIE FACILITIES SERVICES LTD,6504170,9788.17,Maintenance work
MOJ,NOMS,02/12/2016,FM - Soft Fixed Costs,Estates Contract Management,CARILLION (AMBS) LIMITED,6487350,9796.97,Maintenance work
MOJ,NOMS,29/12/2016,FM - Soft Fixed Costs,Estates Contract Management,CARILLION (AMBS) LIMITED,6514719,9796.97,Maintenance work
MOJ,NOMS,20/12/2016,Gas,Hull,CORONA ENERGY RETAIL 4 LTD,6503807,9797.66,Gas utility costs
MOJ,NOMS,30/12/2016,FM - Soft Fixed Costs,Estates Contract Management,CARILLION (AMBS) LIMITED,6514656,9810.56,Maintenance work
MOJ,NOMS,06/12/2016,FM - Soft Fixed Costs,Estates Contract Management,CARILLION (AMBS) LIMITED,6487330,9810.56,Maintenance work
MOJ,NOMS,20/12/2016,Gas,Werrington,CORONA ENERGY RETAIL 4 LTD,6503807,9839.74,Gas utility costs
MOJ,NOMS,28/12/2016,FM - Soft Fixed Costs,Estates Contract Management,AMEY COMMUNITY LIMITED,6512671,9882.25,Maintenance work
MOJ,NOMS,02/12/2016,Hard Variable OVER 5k - NON VAT Recoverable,Estates Contract Management,CARILLION (AMBS) LIMITED,6487353,9888.43,Maintenance work
MOJ,NOMS,12/12/2016,Electricity,Moorland,EDF ENERGY,6494098,9965.23,Electricity utility costs
MOJ,NOMS,02/12/2016,FM - Soft Fixed Costs,Estates Contract Management,CARILLION (AMBS) LIMITED,6487333,10046.81,Maintenance work
MOJ,NOMS,29/12/2016,FM - Soft Fixed Costs,Estates Contract Management,CARILLION (AMBS) LIMITED,6513708,10046.81,Maintenance work
MOJ,NOMS,30/12/2016,FM - Hard Variable Costs - up to 5k,Estates Contract Management,CARILLION (AMBS) LIMITED,6513713,10063.18,Maintenance work
MOJ,NOMS,20/12/2016,Gas,Leicester,CORONA ENERGY RETAIL 4 LTD,6503807,10083.34,Gas utility costs
MOJ,NOMS,28/12/2016,FM - Soft Fixed Costs,Estates Contract Management,AMEY COMMUNITY LIMITED,6512716,10092.81,Maintenance work
MOJ,NOMS,30/12/2016,FM - Hard Variable Costs - up to 5k,Estates Contract Management,CARILLION (AMBS) LIMITED,6513705,10109.57,Maintenance work
MOJ,NOMS,20/12/2016,Gas,Hatfield,CORONA ENERGY RETAIL 4 LTD,6503807,10317.22,Gas utility costs
MOJ,NOMS,08/12/2016,FM - Ad-Hoc (Non Structural)  Maintenance- between 5k and 10k,Estates Contract Management,CARILLION (AMBS) LIMITED,6487304,10325.41,Maintenance work
MOJ,NOMS,09/12/2016,FM - Soft Fixed Costs,Estates Contract Management,CARILLION (AMBS) LIMITED,6487275,10393.82,Maintenance work
MOJ,NOMS,05/12/2016,FM - Hard Variable Costs - up to 5k,Estates Contract Management,AMEY COMMUNITY LIMITED,6477711,10453.22,Maintenance work
MOJ,NOMS,09/12/2016,FM - Hard Variable Costs - up to 5k,Estates Contract Management,CARILLION (AMBS) LIMITED,6487273,10467.03,Maintenance work
MOJ,NOMS,28/12/2016,FM - Soft Fixed Costs,Estates Contract Management,AMEY COMMUNITY LIMITED,6512546,10470.29,Maintenance work
MOJ,NOMS,19/12/2016,Contracted-out Cleaning,Isis,MITIE FACILITIES SERVICES LTD,6504168,10616.37,Cleaning services 
MOJ,NOMS,12/12/2016,Electricity,Werrington,EDF ENERGY,6494098,10623,Electricity utility costs
MOJ,NOMS,20/12/2016,Gas,Askham Grange,CORONA ENERGY RETAIL 4 LTD,6503807,10693.34,Gas utility costs
MOJ,NOMS,28/12/2016,Hard Variable OVER 5k - NON VAT Recoverable,Estates Contract Management,AMEY COMMUNITY LIMITED,6512675,10777.22,Maintenance work
MOJ,NOMS,21/12/2016,FM - Soft Fixed Costs,Nottingham,AMEY COMMUNITY LIMITED,6260604,10779.59,Maintenance work
MOJ,NOMS,20/12/2016,Gas,Drake Hall,CORONA ENERGY RETAIL 4 LTD,6503807,10896.46,Gas utility costs
MOJ,NOMS,20/12/2016,Gas,Learning and Development Group,CORONA ENERGY RETAIL 4 LTD,6503807,10998.82,Gas utility costs
MOJ,NOMS,29/12/2016,FM - Ad-Hoc Works (Non Structural) - up to 5k,Estates Contract Management,CARILLION (AMBS) LIMITED,6513715,11040.59,Maintenance work
MOJ,NOMS,28/12/2016,FM - Soft Fixed Costs,Estates Contract Management,AMEY COMMUNITY LIMITED,6512399,11143.17,Maintenance work
MOJ,NOMS,28/12/2016,FM - Hard Variable Costs - up to 5k,Estates Contract Management,AMEY COMMUNITY LIMITED,6512398,11145.87,Maintenance work
MOJ,NOMS,30/12/2016,FM - Hard Variable Costs - up to 5k,Estates Contract Management,CARILLION (AMBS) LIMITED,6514656,11170.18,Maintenance work
MOJ,NOMS,28/12/2016,FM - Soft Fixed Costs,Estates Contract Management,AMEY COMMUNITY LIMITED,6513134,11277.44,Maintenance work
MOJ,NOMS,28/12/2016,FM - Soft Fixed Costs,Estates Contract Management,AMEY COMMUNITY LIMITED,6512541,11390.11,Maintenance work
MOJ,NOMS,06/12/2016,FM - Soft Fixed Costs,Estates Contract Management,CARILLION (AMBS) LIMITED,6487357,11421.18,Maintenance work
MOJ,NOMS,30/12/2016,FM - Soft Fixed Costs,Estates Contract Management,CARILLION (AMBS) LIMITED,6514670,11421.18,Maintenance work
MOJ,NOMS,05/12/2016,FM - Soft Fixed Costs,Estates Contract Management,AMEY COMMUNITY LIMITED,6477711,11430.26,Maintenance work
MOJ,NOMS,09/12/2016,FM - Hard Variable Costs - up to 5k,Estates Contract Management,CARILLION (AMBS) LIMITED,6487364,11444,Maintenance work
MOJ,NOMS,29/12/2016,Hard Variable OVER 5k - NON VAT Recoverable,Estates Contract Management,CARILLION (AMBS) LIMITED,6513717,11479.5,Maintenance work
MOJ,NOMS,20/12/2016,Gas,Kirklevington Grange,CORONA ENERGY RETAIL 4 LTD,6503807,11487.77,Gas utility costs
MOJ,NOMS,20/12/2016,Gas,Low Newton,CORONA ENERGY RETAIL 4 LTD,6503807,11496.22,Gas utility costs
MOJ,NOMS,28/12/2016,FM - Hard Variable Costs - up to 5k,Estates Contract Management,AMEY COMMUNITY LIMITED,6512273,11509.79,Maintenance work
MOJ,NOMS,28/12/2016,FM - Hard Variable Costs - up to 5k,Estates Contract Management,AMEY COMMUNITY LIMITED,6512674,11535.28,Maintenance work
MOJ,NOMS,28/12/2016,Hard Variable OVER 5k - NON VAT Recoverable,Estates Contract Management,AMEY COMMUNITY LIMITED,6512718,11554.67,Maintenance work
MOJ,NOMS,19/12/2016,Resource Grants / Grant-in-Aid,Commissioning Strategies Group,STAND ALONE CHARITY,6503708,11562,Grant payments to voluntary and community sector organisations
MOJ,NOMS,02/12/2016,FM - Hard Variable Costs - up to 5k,Estates Contract Management,CARILLION (AMBS) LIMITED,6487351,11589.55,Maintenance work
MOJ,NOMS,28/12/2016,FM - Soft Fixed Costs,Estates Contract Management,AMEY COMMUNITY LIMITED,6512274,11590.95,Maintenance work
MOJ,NOMS,28/12/2016,FM - Soft Fixed Costs,Estates Contract Management,AMEY COMMUNITY LIMITED,6512297,11611.86,Maintenance work
MOJ,NOMS,28/12/2016,FM - Soft Fixed Costs,Estates Contract Management,AMEY COMMUNITY LIMITED,6512543,11762.77,Maintenance work
MOJ,NOMS,29/12/2016,FM - Soft Fixed Costs,Estates Contract Management,CARILLION (AMBS) LIMITED,6513709,11777.15,Maintenance work
MOJ,NOMS,28/12/2016,FM - Ad-Hoc (Non Structural)  Maintenance- between 5k and 10k,Estates Contract Management,AMEY COMMUNITY LIMITED,6512681,11791.79,Maintenance work
MOJ,NOMS,02/12/2016,Hard Variable OVER 5k - NON VAT Recoverable,Estates Contract Management,CARILLION (AMBS) LIMITED,6487334,11816.26,Maintenance work
MOJ,NOMS,02/12/2016,FM - Soft Fixed Costs,Estates Contract Management,CARILLION (AMBS) LIMITED,6487395,11948.41,Maintenance work
MOJ,NOMS,29/12/2016,FM - Soft Fixed Costs,Estates Contract Management,CARILLION (AMBS) LIMITED,6514723,11948.41,Maintenance work
MOJ,NOMS,20/12/2016,Gas,Send,CORONA ENERGY RETAIL 4 LTD,6503807,12004.39,Gas utility costs
MOJ,NOMS,30/12/2016,Hard Variable OVER 5k - NON VAT Recoverable,Estates Contract Management,CARILLION (AMBS) LIMITED,6513710,12047.1,Maintenance work
MOJ,NOMS,12/12/2016,Electricity,Transport Group,EDF ENERGY,6494098,12118.28,Electricity utility costs
MOJ,NOMS,28/12/2016,FM - Soft Fixed Costs,Estates Contract Management,AMEY COMMUNITY LIMITED,6513135,12171.3,Maintenance work
MOJ,NOMS,12/12/2016,Electricity,North Sea Camp,EDF ENERGY,6494098,12328.21,Electricity utility costs
MOJ,NOMS,20/12/2016,Gas,Thorn Cross,CORONA ENERGY RETAIL 4 LTD,6503807,12345.68,Gas utility costs
MOJ,NOMS,28/12/2016,FM - Soft Fixed Costs,Estates Contract Management,AMEY COMMUNITY LIMITED,6512405,12460.28,Maintenance work
MOJ,NOMS,02/12/2016,FM - Soft Fixed Costs,Estates Contract Management,CARILLION (AMBS) LIMITED,6487331,12574.95,Maintenance work
MOJ,NOMS,28/12/2016,FM - Soft Fixed Costs,Estates Contract Management,AMEY COMMUNITY LIMITED,6512275,12582.72,Maintenance work
MOJ,NOMS,12/12/2016,Electricity,Kirklevington Grange,EDF ENERGY,6494098,12618.19,Electricity utility costs
MOJ,NOMS,12/12/2016,Electricity,Warren Hill,EDF ENERGY,6494098,12663.74,Electricity utility costs
MOJ,NOMS,20/12/2016,Gas,Bedford,CORONA ENERGY RETAIL 4 LTD,6503807,12714.42,Gas utility costs
MOJ,NOMS,28/12/2016,FM - Soft Fixed Costs,Estates Contract Management,AMEY COMMUNITY LIMITED,6512538,12786.93,Maintenance work
MOJ,NOMS,28/12/2016,FM - Soft Fixed Costs,Estates Contract Management,AMEY COMMUNITY LIMITED,6512670,12790.08,Maintenance work
MOJ,NOMS,12/12/2016,Electricity,Learning and Development Group,EDF ENERGY,6494098,12844.54,Electricity utility costs
MOJ,NOMS,28/12/2016,FM - Hard Variable Costs - up to 5k,Estates Contract Management,AMEY COMMUNITY LIMITED,6512675,12937.29,Maintenance work
MOJ,NOMS,12/12/2016,Electricity,Downview,EDF ENERGY,6494098,12956.89,Electricity utility costs
MOJ,NOMS,28/12/2016,FM - Soft Fixed Costs,Estates Contract Management,AMEY COMMUNITY LIMITED,6512277,12975.68,Maintenance work
MOJ,NOMS,28/12/2016,FM - Soft Fixed Costs,Estates Contract Management,AMEY COMMUNITY LIMITED,6512402,13027.12,Maintenance work
MOJ,NOMS,28/12/2016,FM - Soft Fixed Costs,Estates Contract Management,AMEY COMMUNITY LIMITED,6512400,13082.48,Maintenance work
MOJ,NOMS,28/12/2016,FM - Soft Fixed Costs,Estates Contract Management,AMEY COMMUNITY LIMITED,6512401,13151.91,Maintenance work
MOJ,NOMS,30/12/2016,FM - Soft Fixed Costs,Estates Contract Management,CARILLION (AMBS) LIMITED,6514640,13163.51,Maintenance work
MOJ,NOMS,07/12/2016,FM - Soft Fixed Costs,Estates Contract Management,CARILLION (AMBS) LIMITED,6487325,13163.51,Maintenance work
MOJ,NOMS,28/12/2016,FM - Soft Fixed Costs,Estates Contract Management,AMEY COMMUNITY LIMITED,6512403,13197.07,Maintenance work
MOJ,NOMS,08/12/2016,Hard Variable OVER 5k - NON VAT Recoverable,Estates Contract Management,CARILLION (AMBS) LIMITED,6487404,13202.62,Maintenance work
MOJ,NOMS,28/12/2016,FM - Soft Fixed Costs,Estates Contract Management,AMEY COMMUNITY LIMITED,6512545,13227.46,Maintenance work
MOJ,NOMS,09/12/2016,FM - Hard Variable Costs - up to 5k,Estates Contract Management,CARILLION (AMBS) LIMITED,6487375,13300.53,Maintenance work
MOJ,NOMS,19/12/2016,FM - Management Fee,Estates Contract Management,MITIE FACILITIES SERVICES LTD,6504170,13312.25,Maintenance work
MOJ,NOMS,28/12/2016,FM - Soft Fixed Costs,Estates Contract Management,AMEY COMMUNITY LIMITED,6512680,13314.72,Maintenance work
MOJ,NOMS,29/12/2016,FM - Hard Fixed Costs,Estates Contract Management,CARILLION (AMBS) LIMITED,6513709,13315.11,Maintenance work
MOJ,NOMS,28/12/2016,FM - Soft Fixed Costs,Estates Contract Management,AMEY COMMUNITY LIMITED,6512273,13326.47,Maintenance work
MOJ,NOMS,28/12/2016,FM - Soft Fixed Costs,Estates Contract Management,AMEY COMMUNITY LIMITED,6512300,13376.71,Maintenance work
MOJ,NOMS,28/12/2016,FM - Soft Fixed Costs,Estates Contract Management,AMEY COMMUNITY LIMITED,6512299,13390.27,Maintenance work
MOJ,NOMS,28/12/2016,Hard Variable OVER 5k - NON VAT Recoverable,Estates Contract Management,AMEY COMMUNITY LIMITED,6512402,13428.02,Maintenance work
MOJ,NOMS,12/12/2016,Electricity,Bedford,EDF ENERGY,6494098,13452.97,Electricity utility costs
MOJ,NOMS,02/12/2016,FM - Soft Fixed Costs,Estates Contract Management,CARILLION (AMBS) LIMITED,6487353,13462.56,Maintenance work
MOJ,NOMS,29/12/2016,FM - Soft Fixed Costs,Estates Contract Management,CARILLION (AMBS) LIMITED,6513716,13462.56,Maintenance work
MOJ,NOMS,02/12/2016,FM - Soft Fixed Costs,Estates Contract Management,CARILLION (AMBS) LIMITED,6487403,13556.74,Maintenance work
MOJ,NOMS,29/12/2016,FM - Soft Fixed Costs,Estates Contract Management,CARILLION (AMBS) LIMITED,6513681,13556.74,Maintenance work
MOJ,NOMS,28/12/2016,FM - Soft Fixed Costs,Estates Contract Management,AMEY COMMUNITY LIMITED,6513133,13688.41,Maintenance work
MOJ,NOMS,28/12/2016,FM - Hard Variable Costs - up to 5k,Estates Contract Management,AMEY COMMUNITY LIMITED,6513136,13752.47,Maintenance work
MOJ,NOMS,09/12/2016,FM - Hard Variable Costs - up to 5k,Estates Contract Management,CARILLION (AMBS) LIMITED,6487298,14034.92,Maintenance work
MOJ,NOMS,29/12/2016,FM - Soft Fixed Costs,Estates Contract Management,CARILLION (AMBS) LIMITED,6513718,14060.73,Maintenance work
MOJ,NOMS,02/12/2016,FM - Soft Fixed Costs,Estates Contract Management,CARILLION (AMBS) LIMITED,6487351,14060.73,Maintenance work
MOJ,NOMS,30/12/2016,FM - Soft Fixed Costs,Estates Contract Management,CARILLION (AMBS) LIMITED,6514639,14084.75,Maintenance work
MOJ,NOMS,12/12/2016,FM - Soft Fixed Costs,Estates Contract Management,CARILLION (AMBS) LIMITED,6487377,14084.75,Maintenance work
MOJ,NOMS,12/12/2016,Electricity,Cookham Wood,EDF ENERGY,6494098,14182.93,Electricity utility costs
MOJ,NOMS,02/12/2016,FM - Hard Fixed Costs,Estates Contract Management,CARILLION (AMBS) LIMITED,6487331,14217.1,Maintenance work
MOJ,NOMS,12/12/2016,Electricity,Drake Hall,EDF ENERGY,6494098,14264.03,Electricity utility costs
MOJ,NOMS,28/12/2016,FM - Soft Fixed Costs,Estates Contract Management,AMEY COMMUNITY LIMITED,6512278,14265.84,Maintenance work
MOJ,NOMS,20/12/2016,Gas,Downview,CORONA ENERGY RETAIL 4 LTD,6503807,14490.88,Gas utility costs
MOJ,NOMS,12/12/2016,Electricity,Foston Hall,EDF ENERGY,6494098,14508.42,Electricity utility costs
MOJ,NOMS,12/12/2016,Electricity,Send,EDF ENERGY,6494098,14677.69,Electricity utility costs
MOJ,NOMS,07/12/2016,FM - Soft Fixed Costs,Estates Contract Management,CARILLION (AMBS) LIMITED,6487326,14692.43,Maintenance work
MOJ,NOMS,30/12/2016,FM - Soft Fixed Costs,Estates Contract Management,CARILLION (AMBS) LIMITED,6514641,14692.43,Maintenance work
MOJ,NOMS,02/12/2016,FM - Soft Fixed Costs,Estates Contract Management,CARILLION (AMBS) LIMITED,6487396,14706.8,Maintenance work
MOJ,NOMS,29/12/2016,FM - Soft Fixed Costs,Estates Contract Management,CARILLION (AMBS) LIMITED,6513678,14706.8,Maintenance work
MOJ,NOMS,28/12/2016,Hard Variable OVER 5k - NON VAT Recoverable,Estates Contract Management,AMEY COMMUNITY LIMITED,6512546,14741.28,Maintenance work
MOJ,NOMS,07/12/2016,Hard Variable OVER 5k - NON VAT Recoverable,Estates Contract Management,CARILLION (AMBS) LIMITED,6487277,14783.99,Maintenance work
MOJ,NOMS,29/12/2016,FM - Soft Fixed Costs,Estates Contract Management,CARILLION (AMBS) LIMITED,6513717,14868.21,Maintenance work
MOJ,NOMS,02/12/2016,FM - Soft Fixed Costs,Estates Contract Management,CARILLION (AMBS) LIMITED,6487352,14868.21,Maintenance work
MOJ,NOMS,30/12/2016,FM - Hard Fixed Costs,Estates Contract Management,CARILLION (AMBS) LIMITED,6514724,14888.08,Maintenance work
MOJ,NOMS,08/12/2016,FM - Hard Fixed Costs,Estates Contract Management,CARILLION (AMBS) LIMITED,6487393,14888.08,Maintenance work
MOJ,NOMS,28/12/2016,FM - Soft Fixed Costs,Estates Contract Management,AMEY COMMUNITY LIMITED,6512677,14923.21,Maintenance work
MOJ,NOMS,29/12/2016,FM - Soft Fixed Costs,Estates Contract Management,CARILLION (AMBS) LIMITED,6513714,15160.38,Maintenance work
MOJ,NOMS,06/12/2016,FM - Soft Fixed Costs,Estates Contract Management,CARILLION (AMBS) LIMITED,6487356,15160.38,Maintenance work
MOJ,NOMS,07/12/2016,FM - Hard Variable Costs - up to 5k,Estates Contract Management,CARILLION (AMBS) LIMITED,6487378,15246.66,Maintenance work
MOJ,NOMS,06/12/2016,FM - Soft Fixed Costs,Estates Contract Management,CARILLION (AMBS) LIMITED,6487358,15274.82,Maintenance work
MOJ,NOMS,29/12/2016,FM - Soft Fixed Costs,Estates Contract Management,CARILLION (AMBS) LIMITED,6513712,15274.82,Maintenance work
MOJ,NOMS,28/12/2016,FM - Soft Fixed Costs,Estates Contract Management,AMEY COMMUNITY LIMITED,6512679,15411.52,Maintenance work
MOJ,NOMS,29/12/2016,FM - Ad-Hoc (Non Structural)  Maintenance- between 5k and 10k,Estates Contract Management,CARILLION (AMBS) LIMITED,6513717,15456.06,Maintenance work
MOJ,NOMS,12/12/2016,Electricity,Leicester,EDF ENERGY,6494098,15717.56,Electricity utility costs
MOJ,NOMS,20/12/2016,Gas,Exeter,CORONA ENERGY RETAIL 4 LTD,6503807,15724.93,Gas utility costs
MOJ,NOMS,28/12/2016,FM - Soft Fixed Costs,Estates Contract Management,AMEY COMMUNITY LIMITED,6512295,15740.39,Maintenance work
MOJ,NOMS,20/12/2016,Gas,Buckley Hall,CORONA ENERGY RETAIL 4 LTD,6503807,15864.12,Gas utility costs
MOJ,NOMS,20/12/2016,Gas,Leyhill,CORONA ENERGY RETAIL 4 LTD,6503807,15926.74,Gas utility costs
MOJ,NOMS,19/12/2016,Contracted-out Cleaning,Brixton,MITIE FACILITIES SERVICES LTD,6504132,15927.37,Cleaning services 
MOJ,NOMS,30/12/2016,Hard Variable OVER 5k - NON VAT Recoverable,Estates Contract Management,CARILLION (AMBS) LIMITED,6514640,15974.42,Maintenance work
MOJ,NOMS,28/12/2016,FM - Hard Variable Costs - up to 5k,Estates Contract Management,AMEY COMMUNITY LIMITED,6512298,15981.39,Maintenance work
MOJ,NOMS,20/12/2016,Gas,Bure,CORONA ENERGY RETAIL 4 LTD,6503807,16120.4,Gas utility costs
MOJ,NOMS,07/12/2016,FM - Hard Fixed Costs,Estates Contract Management,CARILLION (AMBS) LIMITED,6487328,16155.23,Maintenance work
MOJ,NOMS,30/12/2016,FM - Hard Fixed Costs,Estates Contract Management,CARILLION (AMBS) LIMITED,6514642,16155.23,Maintenance work
MOJ,NOMS,12/12/2016,Electricity,Thorn Cross,EDF ENERGY,6494098,16167.35,Electricity utility costs
MOJ,NOMS,12/12/2016,FM - Hard Variable Costs - up to 5k,Estates Contract Management,CARILLION (AMBS) LIMITED,6487377,16176.84,Maintenance work
MOJ,NOMS,12/12/2016,FM - Ad-Hoc Works (Non Structural) - up to 5k,Estates Contract Management,CARILLION (AMBS) LIMITED,6487303,16239.35,Maintenance work
MOJ,NOMS,28/12/2016,FM - Soft Fixed Costs,Estates Contract Management,AMEY COMMUNITY LIMITED,6513126,16256.43,Maintenance work
MOJ,NOMS,28/12/2016,FM - Soft Fixed Costs,Estates Contract Management,AMEY COMMUNITY LIMITED,6513131,16274.87,Maintenance work
MOJ,NOMS,20/12/2016,Gas,Cardiff,CORONA ENERGY RETAIL 4 LTD,6503807,16362.66,Gas utility costs
MOJ,NOMS,20/12/2016,Gas,Wetherby,CORONA ENERGY RETAIL 4 LTD,6503807,16435.01,Gas utility costs
MOJ,NOMS,28/12/2016,FM - Soft Fixed Costs,Estates Contract Management,AMEY COMMUNITY LIMITED,6512676,16683.03,Maintenance work
MOJ,NOMS,12/12/2016,Electricity,Low Newton,EDF ENERGY,6494098,16899.07,Electricity utility costs
MOJ,NOMS,12/12/2016,FM - Soft Fixed Costs,Estates Contract Management,CARILLION (AMBS) LIMITED,6487303,16912.49,Maintenance work
MOJ,NOMS,29/12/2016,FM - Soft Fixed Costs,Estates Contract Management,CARILLION (AMBS) LIMITED,6514726,16912.49,Maintenance work
MOJ,NOMS,28/12/2016,FM - Hard Variable Costs - up to 5k,Estates Contract Management,AMEY COMMUNITY LIMITED,6512277,16938.89,Maintenance work
MOJ,NOMS,08/12/2016,FM - Soft Fixed Costs,Estates Contract Management,CARILLION (AMBS) LIMITED,6487305,16990.09,Maintenance work
MOJ,NOMS,30/12/2016,FM - Soft Fixed Costs,Estates Contract Management,CARILLION (AMBS) LIMITED,6513684,16990.09,Maintenance work
MOJ,NOMS,12/12/2016,Electricity,Usk,EDF ENERGY,12988196,17066.14,Electricity utility costs
MOJ,NOMS,28/12/2016,FM - Soft Fixed Costs,Estates Contract Management,AMEY COMMUNITY LIMITED,6512540,17069.24,Maintenance work
MOJ,NOMS,30/12/2016,FM - Soft Fixed Costs,Estates Contract Management,CARILLION (AMBS) LIMITED,6514665,17132.75,Maintenance work
MOJ,NOMS,07/12/2016,FM - Hard Variable Costs - up to 5k,Estates Contract Management,CARILLION (AMBS) LIMITED,6487326,17182.6,Maintenance work
MOJ,NOMS,02/12/2016,FM - Soft Fixed Costs,Estates Contract Management,CARILLION (AMBS) LIMITED,6487400,17248.65,Maintenance work
MOJ,NOMS,29/12/2016,FM - Soft Fixed Costs,Estates Contract Management,CARILLION (AMBS) LIMITED,6513704,17248.65,Maintenance work
MOJ,NOMS,12/12/2016,Electricity,Swansea,EDF ENERGY,6494098,17290.03,Electricity utility costs
MOJ,NOMS,30/12/2016,Hard Variable OVER 5k - NON VAT Recoverable,Estates Contract Management,CARILLION (AMBS) LIMITED,6513683,17344.39,Maintenance work
MOJ,NOMS,12/12/2016,Electricity,Featherstone,EDF ENERGY,6494098,17423.81,Electricity utility costs
MOJ,NOMS,30/12/2016,Hard Variable OVER 5k - NON VAT Recoverable,Estates Contract Management,CARILLION (AMBS) LIMITED,6514657,17425.74,Maintenance work
MOJ,NOMS,12/12/2016,Electricity,Hollesley Bay,EDF ENERGY,6494098,17459.84,Electricity utility costs
MOJ,NOMS,20/12/2016,Gas,Preston,CORONA ENERGY RETAIL 4 LTD,6503807,17726.84,Gas utility costs
MOJ,NOMS,28/12/2016,FM - Hard Variable Costs - up to 5k,Estates Contract Management,AMEY COMMUNITY LIMITED,6513134,17732.06,Maintenance work
MOJ,NOMS,28/12/2016,FM - Soft Fixed Costs,Estates Contract Management,AMEY COMMUNITY LIMITED,6513262,17788.54,Maintenance work
MOJ,NOMS,29/12/2016,FM - Hard Variable Costs - up to 5k,Estates Contract Management,CARILLION (AMBS) LIMITED,6513708,17931.26,Maintenance work
MOJ,NOMS,12/12/2016,Electricity,Maidstone,EDF ENERGY,6494098,17960.06,Electricity utility costs
MOJ,NOMS,30/12/2016,FM - Hard Variable Costs - up to 5k,Estates Contract Management,CARILLION (AMBS) LIMITED,6513682,17988.4,Maintenance work
MOJ,NOMS,28/12/2016,FM - Soft Fixed Costs,Estates Contract Management,AMEY COMMUNITY LIMITED,6512298,18075.65,Maintenance work
MOJ,NOMS,20/12/2016,Gas,Standford Hill,CORONA ENERGY RETAIL 4 LTD,6503807,18142.11,Gas utility costs
MOJ,NOMS,28/12/2016,FM - Hard Variable Costs - up to 5k,Estates Contract Management,AMEY COMMUNITY LIMITED,6512540,18245.21,Maintenance work
MOJ,NOMS,02/12/2016,Hard Variable OVER 5k - NON VAT Recoverable,Estates Contract Management,CARILLION (AMBS) LIMITED,6487333,18262.25,Maintenance work
MOJ,NOMS,07/12/2016,FM - Soft Fixed Costs,Estates Contract Management,CARILLION (AMBS) LIMITED,6487276,18357.83,Maintenance work
MOJ,NOMS,02/12/2016,FM - Hard Fixed Costs,Estates Contract Management,CARILLION (AMBS) LIMITED,6487397,18395.47,Maintenance work
MOJ,NOMS,29/12/2016,FM - Hard Fixed Costs,Estates Contract Management,CARILLION (AMBS) LIMITED,6514722,18395.47,Maintenance work
MOJ,NOMS,12/12/2016,Electricity,Aylesbury,EDF ENERGY,6494098,18464.44,Electricity utility costs
MOJ,NOMS,12/12/2016,Electricity,Exeter,EDF ENERGY,6494098,18474.19,Electricity utility costs
MOJ,NOMS,20/12/2016,Gas,New Hall,CORONA ENERGY RETAIL 4 LTD,6503807,18525.4,Gas utility costs
MOJ,NOMS,30/12/2016,FM - Soft Fixed Costs,Estates Contract Management,CARILLION (AMBS) LIMITED,6513677,18585.11,Maintenance work
MOJ,NOMS,28/12/2016,FM - Soft Fixed Costs,Estates Contract Management,AMEY COMMUNITY LIMITED,6512547,18852.08,Maintenance work
MOJ,NOMS,28/12/2016,FM - Soft Fixed Costs,Estates Contract Management,AMEY COMMUNITY LIMITED,6512404,18900.77,Maintenance work
MOJ,NOMS,12/12/2016,Electricity,Eastwood Park,EDF ENERGY,6494098,19050.23,Electricity utility costs
MOJ,NOMS,28/12/2016,FM - Hard Variable Costs - up to 5k,Estates Contract Management,AMEY COMMUNITY LIMITED,6512716,19082.72,Maintenance work
MOJ,NOMS,12/12/2016,Electricity,New Hall,EDF ENERGY,6494098,19195.94,Electricity utility costs
MOJ,NOMS,28/12/2016,FM - Soft Fixed Costs,Estates Contract Management,AMEY COMMUNITY LIMITED,6512718,19272.51,Maintenance work
MOJ,NOMS,02/12/2016,FM - Hard Variable Costs - up to 5k,Estates Contract Management,CARILLION (AMBS) LIMITED,6487334,19304.87,Maintenance work
MOJ,NOMS,12/12/2016,Electricity,Erlestoke and Shepton Mallet,EDF ENERGY,6494098,19397.18,Electricity utility costs
MOJ,NOMS,05/12/2016,Contracted-out Building Maintenance,Learning and Development Group,G4S FACILITIES MANAGEMENT (UK) LTD,6488950,19469,Maintenance work
MOJ,NOMS,28/12/2016,Hard Variable OVER 5k - NON VAT Recoverable,Estates Contract Management,AMEY COMMUNITY LIMITED,6513136,19527.36,Maintenance work
MOJ,NOMS,28/12/2016,FM - Hard Fixed Costs,Estates Contract Management,AMEY COMMUNITY LIMITED,6512596,19594.04,Maintenance work
MOJ,NOMS,28/12/2016,FM - Hard Variable Costs - up to 5k,Estates Contract Management,AMEY COMMUNITY LIMITED,6512545,19679.73,Maintenance work
MOJ,NOMS,29/12/2016,FM - Soft Fixed Costs,Estates Contract Management,CARILLION (AMBS) LIMITED,6514667,19864.52,Maintenance work
MOJ,NOMS,09/12/2016,FM - Soft Fixed Costs,Estates Contract Management,CARILLION (AMBS) LIMITED,6487375,19864.52,Maintenance work
MOJ,NOMS,12/12/2016,Electricity,Morton Hall,EDF ENERGY,6494098,19904.53,Electricity utility costs
MOJ,NOMS,06/12/2016,FM - Soft Fixed Costs,Estates Contract Management,CARILLION (AMBS) LIMITED,6487398,19914.05,Maintenance work
MOJ,NOMS,08/12/2016,Hard Variable OVER 5k - NON VAT Recoverable,Estates Contract Management,CARILLION (AMBS) LIMITED,6487327,19955.76,Maintenance work
MOJ,NOMS,12/12/2016,Electricity,Buckley Hall,EDF ENERGY,6494098,19988.06,Electricity utility costs
MOJ,NOMS,08/12/2016,Resource Grants / Grant-in-Aid,Commissioning Strategies Group,CELL WORKOUT ENTERPRISE C.I.C,6492504,20000,Grant payments to voluntary and community sector organisations
MOJ,NOMS,07/12/2016,Hard Variable OVER 5k - NON VAT Recoverable,Estates Contract Management,CARILLION (AMBS) LIMITED,6487325,20084.63,Maintenance work
MOJ,NOMS,12/12/2016,Electricity,Huntercombe,EDF ENERGY,6494098,20130.18,Electricity utility costs
MOJ,NOMS,12/12/2016,Electricity,Bullingdon,EDF ENERGY,6494098,20180.7,Electricity utility costs
MOJ,NOMS,20/12/2016,Gas,Oakwood,CORONA ENERGY RETAIL 4 LTD,6503807,20317.84,Gas utility costs
MOJ,NOMS,30/12/2016,FM - Ad-Hoc (Non Structural)  Maintenance- between 5k and 10k,Estates Contract Management,CARILLION (AMBS) LIMITED,6514639,20342.29,Maintenance work
MOJ,NOMS,06/12/2016,Hard Variable OVER 5k - NON VAT Recoverable,Estates Contract Management,CARILLION (AMBS) LIMITED,6487398,20660.59,Maintenance work
MOJ,NOMS,12/12/2016,Electricity,Winchester,EDF ENERGY,6494098,20670.97,Electricity utility costs
MOJ,NOMS,12/12/2016,Electricity,Ford,EDF ENERGY,6494098,20805.05,Electricity utility costs
MOJ,NOMS,28/12/2016,FM - Hard Fixed Costs,Estates Contract Management,AMEY COMMUNITY LIMITED,6512681,20934.3,Maintenance work
MOJ,NOMS,12/12/2016,Electricity,Standford Hill,EDF ENERGY,6494098,20996.45,Electricity utility costs
MOJ,NOMS,12/12/2016,Electricity,Stocken,EDF ENERGY,6494098,21124.21,Electricity utility costs
MOJ,NOMS,29/12/2016,FM - Hard Fixed Costs,Estates Contract Management,CARILLION (AMBS) LIMITED,6514668,21207.9,Maintenance work
MOJ,NOMS,09/12/2016,FM - Soft Fixed Costs,Estates Contract Management,CARILLION (AMBS) LIMITED,6487298,21221.87,Maintenance work
MOJ,NOMS,29/12/2016,FM - Soft Fixed Costs,Estates Contract Management,CARILLION (AMBS) LIMITED,6513697,21221.87,Maintenance work
MOJ,NOMS,28/12/2016,FM - Soft Fixed Costs,Estates Contract Management,AMEY COMMUNITY LIMITED,6512595,21309.97,Maintenance work
MOJ,NOMS,19/12/2016,FM - Hard Fixed Costs,Estates Contract Management,MITIE FACILITIES SERVICES LTD,6504170,21356.28,Maintenance work
MOJ,NOMS,12/12/2016,Electricity,Wetherby,EDF ENERGY,6494098,21451.39,Electricity utility costs
MOJ,NOMS,12/12/2016,Electricity,Deerbolt,EDF ENERGY,6494098,21534.14,Electricity utility costs
MOJ,NOMS,20/12/2016,Gas,Hindley,CORONA ENERGY RETAIL 4 LTD,6503807,21537.22,Gas utility costs
MOJ,NOMS,20/12/2016,Gas,Brinsford,CORONA ENERGY RETAIL 4 LTD,6503807,21554,Gas utility costs
MOJ,NOMS,29/12/2016,FM - Soft Fixed Costs,Estates Contract Management,CARILLION (AMBS) LIMITED,6514653,21664.06,Maintenance work
MOJ,NOMS,20/12/2016,Gas,Brixton,CORONA ENERGY RETAIL 4 LTD,6503807,21724.1,Gas utility costs
MOJ,NOMS,30/12/2016,FM - Hard Fixed Costs,Estates Contract Management,CARILLION (AMBS) LIMITED,6513710,21840.47,Maintenance work
MOJ,NOMS,07/12/2016,Contracted-out Computer Services,CRC T&S,THE DERBYSHIRE LEICESTERSHIRE NOTTINGHAMSHIRE AND RUTLAND COMMUNITY REHABILITATION COMPANY,6492769,22007,Computer services 
MOJ,NOMS,01/12/2016,Contracted-out Resettlement Services,PS Plus 2,ADVANCED PERSONNEL MANAGEMENT GROUP UK LIMITED,6477650,22215,Resettlement and community services 
MOJ,NOMS,28/12/2016,FM - Hard Variable Costs - up to 5k,Estates Contract Management,AMEY COMMUNITY LIMITED,6512679,22256.65,Maintenance work
MOJ,NOMS,07/12/2016,FM - Hard Variable Costs - up to 5k,Estates Contract Management,CARILLION (AMBS) LIMITED,6487401,22309.24,Maintenance work
MOJ,NOMS,12/12/2016,Electricity,Styal,EDF ENERGY,6494098,22426.01,Electricity utility costs
MOJ,NOMS,12/12/2016,Electricity,Glen Parva,EDF ENERGY,6494098,22501.34,Electricity utility costs
MOJ,NOMS,07/12/2016,Legal Services - Non-Criminal,Electronic Mon HQ / Administration,BIRD & BIRD,6366612,22523.85,Legal representation
MOJ,NOMS,09/12/2016,FM - Hard Fixed Costs,Estates Contract Management,CARILLION (AMBS) LIMITED,6487364,22644.56,Maintenance work
MOJ,NOMS,12/12/2016,Electricity,Sudbury,EDF ENERGY,6494098,22819.02,Electricity utility costs
MOJ,NOMS,30/12/2016,FM - Soft Fixed Costs,Estates Contract Management,CARILLION (AMBS) LIMITED,6514638,22832.35,Maintenance work
MOJ,NOMS,07/12/2016,FM - Soft Fixed Costs,Estates Contract Management,CARILLION (AMBS) LIMITED,6487378,22832.35,Maintenance work
MOJ,NOMS,13/12/2016,Contracted-out Catering Services,Hewell,ARAMARK LTD,6496342,22894.82,Catering services 
MOJ,NOMS,20/12/2016,Gas,Guys Marsh,CORONA ENERGY RETAIL 4 LTD,6503807,22906.27,Gas utility costs
MOJ,NOMS,07/12/2016,Legal Services - Non-Criminal,Electronic Mon HQ / Administration,BIRD & BIRD,6393890,22965.6,Legal representation
MOJ,NOMS,30/12/2016,FM - Soft Fixed Costs,Estates Contract Management,CARILLION (AMBS) LIMITED,6514655,22966.71,Maintenance work
MOJ,NOMS,20/12/2016,Gas,Winchester,CORONA ENERGY RETAIL 4 LTD,6503807,22985.98,Gas utility costs
MOJ,NOMS,09/12/2016,FM - Soft Fixed Costs,Estates Contract Management,CARILLION (AMBS) LIMITED,6487273,23131.62,Maintenance work
MOJ,NOMS,05/12/2016,Contract IT Maintenance,Digital Prison,ENTSERV UK LTD,6487474,23216.8,IT maintenance and support
MOJ,NOMS,20/12/2016,Gas,Swinfen Hall,CORONA ENERGY RETAIL 4 LTD,6503807,23251.46,Gas utility costs
MOJ,NOMS,28/12/2016,FM - Soft Fixed Costs,Estates Contract Management,AMEY COMMUNITY LIMITED,6512398,23264.75,Maintenance work
MOJ,NOMS,28/12/2016,FM - Hard Fixed Costs,Estates Contract Management,AMEY COMMUNITY LIMITED,6512678,23323.29,Maintenance work
MOJ,NOMS,19/12/2016,Contracted-out Catering Services,Isis,MITIE FACILITIES SERVICES LTD,6504168,23397.56,Catering services 
MOJ,NOMS,28/12/2016,FM - Hard Fixed Costs,Estates Contract Management,AMEY COMMUNITY LIMITED,6512399,23425.83,Maintenance work
MOJ,NOMS,07/12/2016,FM - Hard Fixed Costs,Estates Contract Management,CARILLION (AMBS) LIMITED,6487326,23436.51,Maintenance work
MOJ,NOMS,30/12/2016,FM - Hard Fixed Costs,Estates Contract Management,CARILLION (AMBS) LIMITED,6514641,23436.51,Maintenance work
MOJ,NOMS,06/12/2016,FM - Hard Fixed Costs,Estates Contract Management,CARILLION (AMBS) LIMITED,6487391,23484.38,Maintenance work
MOJ,NOMS,12/12/2016,Electricity,Lewes,EDF ENERGY,6494098,23520.16,Electricity utility costs
MOJ,NOMS,20/12/2016,Gas,Whatton,CORONA ENERGY RETAIL 4 LTD,6503807,23602.92,Gas utility costs
MOJ,NOMS,12/12/2016,Electricity,Swinfen Hall,EDF ENERGY,6494098,23626.66,Electricity utility costs
MOJ,NOMS,29/12/2016,FM - Hard Variable Costs - up to 5k,Estates Contract Management,CARILLION (AMBS) LIMITED,6513715,23680.49,Maintenance work
MOJ,NOMS,12/12/2016,Electricity,Bure,EDF ENERGY,6494098,23722.4,Electricity utility costs
MOJ,NOMS,12/12/2016,Electricity,Verne (The),EDF ENERGY,6494098,23807.34,Electricity utility costs
MOJ,NOMS,08/12/2016,FM - Soft Fixed Costs,Estates Contract Management,CARILLION (AMBS) LIMITED,6487304,23824.67,Maintenance work
MOJ,NOMS,30/12/2016,FM - Soft Fixed Costs,Estates Contract Management,CARILLION (AMBS) LIMITED,6514727,23824.67,Maintenance work
MOJ,NOMS,20/12/2016,Gas,Doncaster,CORONA ENERGY RETAIL 4 LTD,6503807,23925.08,Gas utility costs
MOJ,NOMS,12/12/2016,Electricity,Bristol,EDF ENERGY,6494098,23992.64,Electricity utility costs
MOJ,NOMS,02/12/2016,Contracted-out Library,Isle of Wight,ISLE OF WIGHT COUNCIL,6442637,24093.99,Library services 
MOJ,NOMS,12/12/2016,Electricity,Preston,EDF ENERGY,6494098,24131.09,Electricity utility costs
MOJ,NOMS,20/12/2016,Gas,Bristol,CORONA ENERGY RETAIL 4 LTD,6503807,24161.57,Gas utility costs
MOJ,NOMS,29/12/2016,FM - Hard Fixed Costs,Estates Contract Management,CARILLION (AMBS) LIMITED,6513695,24229.35,Maintenance work
MOJ,NOMS,30/12/2016,FM - Soft Fixed Costs,Estates Contract Management,CARILLION (AMBS) LIMITED,6513683,24264.98,Maintenance work
MOJ,NOMS,08/12/2016,FM - Soft Fixed Costs,Estates Contract Management,CARILLION (AMBS) LIMITED,6487404,24264.98,Maintenance work
MOJ,NOMS,30/12/2016,FM - Hard Fixed Costs,Estates Contract Management,CARILLION (AMBS) LIMITED,6513707,24279.1,Maintenance work
MOJ,NOMS,20/12/2016,Gas,Ford,CORONA ENERGY RETAIL 4 LTD,6503807,24283.72,Gas utility costs
MOJ,NOMS,28/12/2016,FM - Hard Fixed Costs,Estates Contract Management,AMEY COMMUNITY LIMITED,6512293,24319.04,Maintenance work
MOJ,NOMS,20/12/2016,Gas,Durham,CORONA ENERGY RETAIL 4 LTD,6503807,24363.59,Gas utility costs
MOJ,NOMS,20/12/2016,Gas,Grendon,CORONA ENERGY RETAIL 4 LTD,6503807,24367.14,Gas utility costs
MOJ,NOMS,14/12/2016,Contract IT Maintenance,Fix 'n' Go,SAADIAN TECHNOLOGIES UK LTD,6418387,24410,IT maintenance and support
MOJ,NOMS,12/12/2016,Electricity,Haverigg,EDF ENERGY,6494098,24440.69,Electricity utility costs
MOJ,NOMS,05/12/2016,FM - Hard Fixed Costs,Estates Contract Management,CARILLION (AMBS) LIMITED,6487390,24443.37,Maintenance work
MOJ,NOMS,29/12/2016,FM - Hard Fixed Costs,Estates Contract Management,CARILLION (AMBS) LIMITED,6513711,24443.37,Maintenance work
MOJ,NOMS,12/12/2016,Electricity,Cardiff,EDF ENERGY,6494098,24466.14,Electricity utility costs
MOJ,NOMS,12/12/2016,Electricity,Grendon,EDF ENERGY,6494098,24481.97,Electricity utility costs
MOJ,NOMS,07/12/2016,Legal Services - Non-Criminal,MoJ Estates,MICHELMORES SOLICITORS,6491070,24579.24,Legal representation
MOJ,NOMS,08/12/2016,FM - Soft Fixed Costs,Estates Contract Management,CARILLION (AMBS) LIMITED,6487332,24608.96,Maintenance work
MOJ,NOMS,06/12/2016,FM - Hard Variable Costs - up to 5k,Estates Contract Management,CARILLION (AMBS) LIMITED,6487356,24787.17,Maintenance work
MOJ,NOMS,28/12/2016,FM - Soft Fixed Costs,Estates Contract Management,AMEY COMMUNITY LIMITED,6512674,24939.2,Maintenance work
MOJ,NOMS,20/12/2016,Contracted-out Escorts,Prisoner Escort & Custody Service (PECS),SERCO LTD,6505487,24955.3,Prisoner escort services 
MOJ,NOMS,20/12/2016,Gas,Gartree,CORONA ENERGY RETAIL 4 LTD,6503807,24972.38,Gas utility costs
MOJ,NOMS,30/12/2016,"Prisoner Compensation over 5,000",HQ Operational Business Support,GOVERNMENT LEGAL DEPARTMENT,6517064,25000,Costs in compensation claims - prisoners
MOJ,NOMS,20/12/2016,General Maintenance Materials,Director PSP Front Line Centrally Managed,SEMMCO LTD,12882010,25014.38,Maintenance work
MOJ,NOMS,20/12/2016,Gas,Kirkham,CORONA ENERGY RETAIL 4 LTD,6503807,25016.06,Gas utility costs
MOJ,NOMS,28/12/2016,Raw Materials Issued,PSP Industries HQ Manufacturing,VISION SUPPORT SERVICES LIMITED,6513902,25056,Raw materials for prison industries
MOJ,NOMS,06/12/2016,Raw Materials Issued,PSP Industries HQ Manufacturing,VISION SUPPORT SERVICES LIMITED,6488807,25056,Raw materials for prison industries
MOJ,NOMS,29/12/2016,Rates and Ground Rents,MoJ Estates,SOUTH GLOUCESTERSHIRE COUNCIL,6240692,25098.5,"Payment of rents, business rates and council tax"
MOJ,NOMS,20/12/2016,Gas,Wymott,CORONA ENERGY RETAIL 4 LTD,6503807,25135.64,Gas utility costs
MOJ,NOMS,28/12/2016,FM - Hard Fixed Costs,Estates Contract Management,AMEY COMMUNITY LIMITED,6512292,25188.4,Maintenance work
MOJ,NOMS,29/12/2016,WIP - Professional Fees,MoJ Estates,MACE LTD,6515199,25189.88,Professional fees for construction work
MOJ,NOMS,28/12/2016,FM - Hard Variable Costs - up to 5k,Estates Contract Management,AMEY COMMUNITY LIMITED,6513126,25213.91,Maintenance work
MOJ,NOMS,19/12/2016,Resource Grants / Grant-in-Aid,Commissioning Strategies Group,THE JUNCTION 42 FOUNDATION,6500334,25227.34,Grant payments to voluntary and community sector organisations
MOJ,NOMS,09/12/2016,WIP - Professional Fees,MoJ Estates,MACE LTD,6494582,25235.72,Professional fees for construction work
MOJ,NOMS,20/12/2016,Contracted-out Resettlement Services,Brixton,PRISON ADVICE & CARE TRUST (P A C T),6484563,25239.55,Resettlement and community services 
MOJ,NOMS,06/12/2016,WIP - Professional Fees,MoJ Estates,MOTT MACDONALD LTD,6480251,25290,Professional fees for construction work
MOJ,NOMS,21/12/2016,Resource Grants / Grant-in-Aid,Commissioning Strategies Group,PROSPER 4 BUSINESS,6505126,25333,Grant payments to voluntary and community sector organisations
MOJ,NOMS,12/12/2016,Resource Grants / Grant-in-Aid,Commissioning Strategies Group,PROSPER 4 BUSINESS,6494168,25333,Grant payments to voluntary and community sector organisations
MOJ,NOMS,29/12/2016,Rates and Ground Rents,MoJ Estates,SHROPSHIRE COUNCIL,6244615,25347,"Payment of rents, business rates and council tax"
MOJ,NOMS,12/12/2016,Electricity,Lincoln,EDF ENERGY,6494098,25368.24,Electricity utility costs
MOJ,NOMS,20/12/2016,Gas,Isle of Wight,CORONA ENERGY RETAIL 4 LTD,13007614,25442.3,Gas utility costs
MOJ,NOMS,19/12/2016,Contracted-out Catering Services,Brixton,MITIE FACILITIES SERVICES LTD,6504132,25522.04,Catering services 
MOJ,NOMS,29/12/2016,Rates and Ground Rents,MoJ Estates,SUFFOLK COASTAL DISTRICT COUNCIL,6240597,25595.5,"Payment of rents, business rates and council tax"
MOJ,NOMS,07/12/2016,"Prisoner Compensation over 5,000", Northumberland,GOVERNMENT LEGAL DEPARTMENT,6489220,25600,Costs in compensation claims - prisoners
MOJ,NOMS,15/12/2016,Contracted-out Resettlement Services,Onley,WARWICKSHIRE PENSION FUND,6501669,25628.5,Resettlement and community services 
MOJ,NOMS,02/12/2016,FM - Hard Fixed Costs,Estates Contract Management,CARILLION (AMBS) LIMITED,6487396,25637.17,Maintenance work
MOJ,NOMS,29/12/2016,FM - Hard Fixed Costs,Estates Contract Management,CARILLION (AMBS) LIMITED,6513678,25637.17,Maintenance work
MOJ,NOMS,09/12/2016,WIP - Professional Fees,MoJ Estates,MACE LTD,6494533,25638.28,Professional fees for construction work
MOJ,NOMS,28/12/2016,FM - Buildings related Emergency Action - more than 5k,Estates Contract Management,AMEY COMMUNITY LIMITED,6513270,25707.25,Maintenance work
MOJ,NOMS,19/12/2016,WIP - Professional Fees,MoJ Estates,MOTT MACDONALD LTD,6468051,25720.64,Professional fees for construction work
MOJ,NOMS,02/12/2016,FM - Hard Fixed Costs,Estates Contract Management,CARILLION (AMBS) LIMITED,6487403,25758.4,Maintenance work
MOJ,NOMS,29/12/2016,FM - Hard Fixed Costs,Estates Contract Management,CARILLION (AMBS) LIMITED,6513681,25758.4,Maintenance work
MOJ,NOMS,20/12/2016,Gas,Haverigg,CORONA ENERGY RETAIL 4 LTD,6503807,25768.09,Gas utility costs
MOJ,NOMS,28/12/2016,FM - Hard Fixed Costs,Estates Contract Management,AMEY COMMUNITY LIMITED,6512402,25843.36,Maintenance work
MOJ,NOMS,07/12/2016,FM - Hard Variable Costs - up to 5k,Estates Contract Management,CARILLION (AMBS) LIMITED,6487277,25943.13,Maintenance work
MOJ,NOMS,20/12/2016,Gas,Norwich,CORONA ENERGY RETAIL 4 LTD,6503807,25946.15,Gas utility costs
MOJ,NOMS,29/12/2016,FM - Ad-Hoc (Non Structural)  Maintenance- between 5k and 10k,Estates Contract Management,CARILLION (AMBS) LIMITED,6514667,25990.94,Maintenance work
MOJ,NOMS,30/12/2016,FM - Soft Fixed Costs,Estates Contract Management,CARILLION (AMBS) LIMITED,6513696,26019.8,Maintenance work
MOJ,NOMS,09/12/2016,FM - Hard Fixed Costs,Estates Contract Management,CARILLION (AMBS) LIMITED,6487275,26053.07,Maintenance work
MOJ,NOMS,20/12/2016,General Maintenance Materials,Director PSP Front Line Centrally Managed,SEMMCO LTD,12925144,26057,Maintenance work
MOJ,NOMS,29/12/2016,Rates and Ground Rents,MoJ Estates,LEEDS CITY COUNCIL,6244482,26092.5,"Payment of rents, business rates and council tax"
MOJ,NOMS,02/12/2016,FM - Hard Fixed Costs,Estates Contract Management,CARILLION (AMBS) LIMITED,6487334,26106.56,Maintenance work
MOJ,NOMS,28/12/2016,FM - Soft Fixed Costs,Estates Contract Management,AMEY COMMUNITY LIMITED,6513136,26115.3,Maintenance work
MOJ,NOMS,28/12/2016,FM - Hard Fixed Costs,Estates Contract Management,AMEY COMMUNITY LIMITED,6512544,26184.06,Maintenance work
MOJ,NOMS,12/12/2016,Contracted-out Catering Services,Woodhill,ARAMARK LTD,6496434,26237.32,Catering services 
MOJ,NOMS,20/12/2016,Gas,Rochester,CORONA ENERGY RETAIL 4 LTD,6503807,26259.34,Gas utility costs
MOJ,NOMS,14/12/2016,Inventory A/P Accrual,Wakefield,SILVER BIRCHES LABEL CO LTD,6488872,26265.15,Consumable items 
MOJ,NOMS,20/12/2016,Gas,Styal,CORONA ENERGY RETAIL 4 LTD,6503807,26282.9,Gas utility costs
MOJ,NOMS,02/12/2016,FM - Hard Fixed Costs,Estates Contract Management,CARILLION (AMBS) LIMITED,6487350,26321.65,Maintenance work
MOJ,NOMS,29/12/2016,FM - Hard Fixed Costs,Estates Contract Management,CARILLION (AMBS) LIMITED,6514719,26321.65,Maintenance work
MOJ,NOMS,12/12/2016,Electricity,Leyhill,EDF ENERGY,6494098,26419.24,Electricity utility costs
MOJ,NOMS,13/12/2016,Contracted-out operation of prisons and detention centres,Dovegate,MORETON PRISON SERVICES LTD,6490076,26496,Prisons and detention centres operated by an external provider
MOJ,NOMS,29/12/2016,Rates and Ground Rents,MoJ Estates,SOUTH STAFFORDSHIRE COUNCIL,6242751,26589.5,"Payment of rents, business rates and council tax"
MOJ,NOMS,19/12/2016,Resource Grants / Grant-in-Aid,Commissioning Strategies Group,ACTES TRUST,6501761,26603,Grant payments to voluntary and community sector organisations
MOJ,NOMS,19/12/2016,Resource Grants / Grant-in-Aid,Commissioning Strategies Group,ACTES TRUST,6501763,26603,Grant payments to voluntary and community sector organisations
MOJ,NOMS,19/12/2016,Contracted-out Resettlement Services,PS Plus 2,ADVANCED PERSONNEL MANAGEMENT GROUP UK LIMITED,6504032,26695,Resettlement and community services 
MOJ,NOMS,19/12/2016,Contracted-out Probation Trusts,Staffordshire and West Midlands CRC,THE STAFFORDSHIRE AND WEST MIDLANDS COMMUNITY REHABILITATION COMPANY,6486565,26712.07,Probation services
MOJ,NOMS,23/12/2016,Contracted-out operation of prisons and detention centres,Dovegate,MORETON PRISON SERVICES LTD,6508852,26729.14,Prisons and detention centres operated by an external provider
MOJ,NOMS,13/12/2016,Contracted-out operation of prisons and detention centres,Dovegate,MORETON PRISON SERVICES LTD,6490333,26729.14,Prisons and detention centres operated by an external provider
MOJ,NOMS,29/12/2016,FM - Hard Fixed Costs,Estates Contract Management,CARILLION (AMBS) LIMITED,6514721,26731.33,Maintenance work
MOJ,NOMS,02/12/2016,FM - Hard Fixed Costs,Estates Contract Management,CARILLION (AMBS) LIMITED,6487399,26731.33,Maintenance work
MOJ,NOMS,09/12/2016,Recruitment Advertising and Media,Learning and Development Group,HAVAS PEOPLE LTD,6494602,26742.8,Recruitment costs
MOJ,NOMS,30/12/2016,FM - Hard Fixed Costs,Estates Contract Management,CARILLION (AMBS) LIMITED,6514639,26763.93,Maintenance work
MOJ,NOMS,12/12/2016,FM - Hard Fixed Costs,Estates Contract Management,CARILLION (AMBS) LIMITED,6487377,26763.93,Maintenance work
MOJ,NOMS,02/12/2016,Hard Variable OVER 5k - NON VAT Recoverable,Estates Contract Management,CARILLION (AMBS) LIMITED,6487362,26795.71,Maintenance work
MOJ,NOMS,12/12/2016,Electricity,Portland,EDF ENERGY,6494098,26827.67,Electricity utility costs
MOJ,NOMS,23/12/2016,Contracted-out Computer Services,Director PSP Front Line Centrally Managed,HOME OFFICE,6509178,26831.95,Computer services 
MOJ,NOMS,23/12/2016,Resource Grants / Grant-in-Aid,Commissioning Strategies Group,THE INVOLVE FOUNDATION,6508479,26872.67,Grant payments to voluntary and community sector organisations
MOJ,NOMS,15/12/2016,Resource Grants / Grant-in-Aid,Commissioning Strategies Group,THE INVOLVE FOUNDATION,6498223,26872.67,Grant payments to voluntary and community sector organisations
MOJ,NOMS,30/12/2016,FM - Soft Fixed Costs,Estates Contract Management,CARILLION (AMBS) LIMITED,6513698,26917.45,Maintenance work
MOJ,NOMS,08/12/2016,FM - Soft Fixed Costs,Estates Contract Management,CARILLION (AMBS) LIMITED,6487327,26917.45,Maintenance work
MOJ,NOMS,19/12/2016,Contracted-out Resettlement Services,LDU Cluster Hampshire,HAMPSHIRE COUNTY COUNCIL,6504960,27000,Resettlement and community services 
MOJ,NOMS,12/12/2016,Raw Materials - ESS/LBA Industries Internal Use within the HO,PSP Industries HQ Manufacturing,BCB INTERNATIONAL LTD,6489391,27033.36,Raw materials for prison industries
MOJ,NOMS,13/12/2016,Raw Materials - ESS/LBA Industries Internal Use within the HO,Isle of Wight,PREMIER FOREST PRODUCTS LTD,6472520,27036.36,Raw materials for prison industries
MOJ,NOMS,19/12/2016,Contracted-out Plant and Equipment Maintenance,Isis,MITIE FACILITIES SERVICES LTD,6504167,27166.44,Maintenance work
MOJ,NOMS,06/12/2016,FM - Hard Fixed Costs,Estates Contract Management,CARILLION (AMBS) LIMITED,6487330,27264.22,Maintenance work
MOJ,NOMS,30/12/2016,FM - Hard Fixed Costs,Estates Contract Management,CARILLION (AMBS) LIMITED,6514656,27264.22,Maintenance work
MOJ,NOMS,20/12/2016,Gas,Lincoln,CORONA ENERGY RETAIL 4 LTD,6503807,27307.01,Gas utility costs
MOJ,NOMS,29/12/2016,Rates and Ground Rents,MoJ Estates,LEWES DISTRICT COUNCIL,6240656,27335,"Payment of rents, business rates and council tax"
MOJ,NOMS,29/12/2016,Rates and Ground Rents,MoJ Estates,RUSHCLIFFE BOROUGH COUNCIL,6244599,27335,"Payment of rents, business rates and council tax"
MOJ,NOMS,09/12/2016,Recruitment Advertising and Media,Learning and Development Group,HAVAS PEOPLE LTD,6494605,27343.25,Recruitment costs
MOJ,NOMS,20/12/2016,Other Fuels,Wayland,CORONA ENERGY RETAIL 4 LTD,6503807,27366.85,Fuel utility costs
MOJ,NOMS,20/12/2016,Gas,Wakefield,CORONA ENERGY RETAIL 4 LTD,6503807,27437.03,Gas utility costs
MOJ,NOMS,01/12/2016,Contracted-out Resettlement Services,PS Plus 2,ADVANCED PERSONNEL MANAGEMENT GROUP UK LIMITED,6477649,27445,Resettlement and community services 
MOJ,NOMS,12/12/2016,Electricity,Guys Marsh,EDF ENERGY,6494098,27466.79,Electricity utility costs
MOJ,NOMS,12/12/2016,Electricity,Stoke Heath,EDF ENERGY,6494098,27475.78,Electricity utility costs
MOJ,NOMS,06/12/2016,WIP - Professional Fees,MoJ Estates,MOTT MACDONALD LTD,6450723,27509.82,Professional fees for construction work
MOJ,NOMS,20/12/2016,Gas,Mount (The),CORONA ENERGY RETAIL 4 LTD,6503807,27565.51,Gas utility costs
MOJ,NOMS,12/12/2016,Electricity,Onley,EDF ENERGY,6494098,27574.08,Electricity utility costs
MOJ,NOMS,12/12/2016,Electricity,Gartree,EDF ENERGY,6494098,27656.05,Electricity utility costs
MOJ,NOMS,12/12/2016,Electricity,Channings Wood,EDF ENERGY,6494098,27694.38,Electricity utility costs
MOJ,NOMS,01/12/2016,Specialist Contractors,Public Protection North West,ROYAL COLLEGE OF PSYCHIATRISTS (THE),6476568,27702,Specialist contractors engaged under a fixed-term contract for services 
MOJ,NOMS,20/12/2016,Gas,Nottingham,CORONA ENERGY RETAIL 4 LTD,6503807,27771.72,Gas utility costs
MOJ,NOMS,09/12/2016,Ad-Hoc Major Maintenance and Capital Works - more than 10k,Estates Contract Management,CARILLION (AMBS) LIMITED,6485672,27831.52,Major repair and operationally critical new work.
MOJ,NOMS,29/12/2016,Rates and Ground Rents,MoJ Estates,DAVENTRY DISTRICT COUNCIL,6242733,27832,"Payment of rents, business rates and council tax"
MOJ,NOMS,23/12/2016,Contracted-out Computer Services,CRC T&S,THE MERSEYSIDE COMMUNITY REHABILITATION COMPANY,6511215,27840,Computer services 
MOJ,NOMS,07/12/2016,FM - Soft Fixed Costs,Estates Contract Management,CARILLION (AMBS) LIMITED,6487277,27880.36,Maintenance work
MOJ,NOMS,09/12/2016,Clothing,PSP Industries HQ Manufacturing,CARPENTER LTD,6496530,27895.68,Mattresses for prisoners' beds
MOJ,NOMS,12/12/2016,Electricity,Chelmsford,EDF ENERGY,6494098,27938.36,Electricity utility costs
MOJ,NOMS,29/12/2016,Resource Grants / Grant-in-Aid,Commissioning Strategies Group,PRINCIPLES IN FINANCE,6508476,27947,Grant payments to voluntary and community sector organisations
MOJ,NOMS,14/12/2016,Resource Grants / Grant-in-Aid,Commissioning Strategies Group,PRINCIPLES IN FINANCE,6498220,27947,Grant payments to voluntary and community sector organisations
MOJ,NOMS,12/12/2016,Electricity,Stafford,EDF ENERGY,6494098,27949.02,Electricity utility costs
MOJ,NOMS,30/12/2016,FM - Hard Fixed Costs,Estates Contract Management,CARILLION (AMBS) LIMITED,6514665,27956.2,Maintenance work
MOJ,NOMS,29/12/2016,Rates and Ground Rents,MoJ Estates,NORTH DORSET DISTRICT COUNCIL,6244498,28080.5,"Payment of rents, business rates and council tax"
MOJ,NOMS,20/12/2016,Gas,Maidstone,CORONA ENERGY RETAIL 4 LTD,6503807,28189.88,Gas utility costs
MOJ,NOMS,20/12/2016,Gas,Onley,CORONA ENERGY RETAIL 4 LTD,6503807,28318.7,Gas utility costs
MOJ,NOMS,12/12/2016,Electricity,Isis,EDF ENERGY,6494098,28319.69,Electricity utility costs
MOJ,NOMS,22/12/2016,Contracted-out Resettlement Services,PS Plus 2,SHAW TRUST,6507422,28365,Resettlement and community services 
MOJ,NOMS,29/12/2016,FM - Hard Fixed Costs,Estates Contract Management,CARILLION (AMBS) LIMITED,6514653,28388.45,Maintenance work
MOJ,NOMS,28/12/2016,Contract IT Maintenance,Digital Studio,ENTSERV UK LTD,6515234,28424.62,IT maintenance and support
MOJ,NOMS,20/12/2016,Gas,Whitemoor,CORONA ENERGY RETAIL 4 LTD,6503807,28428.02,Gas utility costs
MOJ,NOMS,28/12/2016,FM - Hard Fixed Costs,Estates Contract Management,AMEY COMMUNITY LIMITED,6512296,28446.46,Maintenance work
MOJ,NOMS,19/12/2016,Contracted-out Probation Trusts,North West Probation Service,THE CHESHIRE AND GREATER MANCHESTER COMMUNITY REHABILITATION COMPANY,6445038,28473.38,Probation services
MOJ,NOMS,07/12/2016,Contracted-out - Electronic Monitoring Equipment (Lot 3) & Networks (Lot 4),Electronic Monitoring,G4S MONITORING TECHNOLOGIES LTD,6482940,28500,Electronic monitoring services 
MOJ,NOMS,20/12/2016,Gas,Garth,CORONA ENERGY RETAIL 4 LTD,6503807,28560.18,Gas utility costs
MOJ,NOMS,28/12/2016,FM - Hard Fixed Costs,Estates Contract Management,AMEY COMMUNITY LIMITED,6512405,28593.2,Maintenance work
MOJ,NOMS,08/12/2016,FM - Hard Variable Costs - up to 5k,Estates Contract Management,CARILLION (AMBS) LIMITED,6487327,28616.11,Maintenance work
MOJ,NOMS,13/12/2016,Contracted-out operation of prisons and detention centres,Peterborough,PETERBOROUGH PRISON MANAGEMENT LTD,6496794,28627.3,Prisons and detention centres operated by an external provider
MOJ,NOMS,06/12/2016,FM - Ad-Hoc (Non Structural)  Maintenance- between 5k and 10k,Estates Contract Management,CARILLION (AMBS) LIMITED,6487356,28717.06,Maintenance work
MOJ,NOMS,12/12/2016,Electricity,Lancaster Farms,EDF ENERGY,6494098,28745.15,Electricity utility costs
MOJ,NOMS,12/12/2016,Electricity,Whatton,EDF ENERGY,6494098,28781.29,Electricity utility costs
MOJ,NOMS,02/12/2016,Contracted-out Library,Isle of Wight,ISLE OF WIGHT COUNCIL,6442634,28893.86,Library services 
MOJ,NOMS,12/12/2016,Electricity,Coldingley,EDF ENERGY,6494098,28908.37,Electricity utility costs
MOJ,NOMS,20/12/2016,Gas,Lancaster Farms,CORONA ENERGY RETAIL 4 LTD,6503807,28912.45,Gas utility costs
MOJ,NOMS,19/12/2016,Professional Advice,HQ Operational Business Support,GOVERNMENT LEGAL DEPARTMENT,435884,28924.6,Professional advice
MOJ,NOMS,28/12/2016,FM - Hard Fixed Costs,Estates Contract Management,AMEY COMMUNITY LIMITED,6512669,28929.85,Maintenance work
MOJ,NOMS,30/12/2016,FM - Soft Fixed Costs,Estates Contract Management,CARILLION (AMBS) LIMITED,6513682,29039.17,Maintenance work
MOJ,NOMS,07/12/2016,FM - Soft Fixed Costs,Estates Contract Management,CARILLION (AMBS) LIMITED,6487401,29039.17,Maintenance work
MOJ,NOMS,12/12/2016,Electricity,Brixton,EDF ENERGY,6494098,29041.39,Electricity utility costs
MOJ,NOMS,22/12/2016,Contracted-out Library,Mount (The),HERTFORDSHIRE COUNTY COUNCIL,6509860,29058,Library services 
MOJ,NOMS,09/12/2016,Contracted-out operation of prisons and detention centres,Altcourse,FAZAKERLEY PRISON SERVICES LTD,6487446,29086.2,Prisons and detention centres operated by an external provider
MOJ,NOMS,29/12/2016,Rates and Ground Rents,MoJ Estates,TEIGNBRIDGE DISTRICT COUNCIL,6242862,29323,"Payment of rents, business rates and council tax"
MOJ,NOMS,14/12/2016,Contracted-out - Electronic Monitoring Equipment (Lot 3) & Networks (Lot 4),Electronic Monitoring,G4S MONITORING TECHNOLOGIES LTD,6491601,29400,Electronic monitoring services 
MOJ,NOMS,12/12/2016,Electricity,Hindley,EDF ENERGY,6494098,29519.68,Electricity utility costs
MOJ,NOMS,07/12/2016,FM - Hard Fixed Costs,Estates Contract Management,CARILLION (AMBS) LIMITED,6487325,29521.5,Maintenance work
MOJ,NOMS,30/12/2016,FM - Hard Fixed Costs,Estates Contract Management,CARILLION (AMBS) LIMITED,6514640,29521.5,Maintenance work
MOJ,NOMS,12/12/2016,Electricity,Whitemoor,EDF ENERGY,6494098,29556.24,Electricity utility costs
MOJ,NOMS,02/12/2016,Contracted-out Library,Isle of Wight,ISLE OF WIGHT COUNCIL,6442633,29628.13,Library services 
MOJ,NOMS,28/12/2016,Raw Materials Issued,PSP Industries HQ Manufacturing,VISION SUPPORT SERVICES LIMITED,6514519,29646,Raw materials for prison industries
MOJ,NOMS,06/12/2016,Raw Materials Issued,PSP Industries HQ Manufacturing,VISION SUPPORT SERVICES LIMITED,6489197,29646,Raw materials for prison industries
MOJ,NOMS,20/12/2016,Gas,Leeds,CORONA ENERGY RETAIL 4 LTD,6503807,29670.24,Gas utility costs
MOJ,NOMS,28/12/2016,FM - Hard Fixed Costs,Estates Contract Management,AMEY COMMUNITY LIMITED,6513134,29719.67,Maintenance work
MOJ,NOMS,29/12/2016,FM - Buildings related Emergency Action - more than 5k,Estates Contract Management,AMEY COMMUNITY LIMITED,6512664,29760,Maintenance work
MOJ,NOMS,02/12/2016,Contracted-out Library,Isle of Wight,ISLE OF WIGHT COUNCIL,6442636,29772.49,Library services 
MOJ,NOMS,05/12/2016,Contracted-out Computer Services,Director PSP Front Line Centrally Managed,TRUSTMARQUE SOLUTIONS LTD,6490033,29777.88,Computer services 
MOJ,NOMS,29/12/2016,Rates and Ground Rents,MoJ Estates,AYLESBURY VALE DISTRICT COUNCIL,6240592,29820,"Payment of rents, business rates and council tax"
MOJ,NOMS,29/12/2016,Rates and Ground Rents,MoJ Estates,BRISTOL CITY COUNCIL,6244494,29820,"Payment of rents, business rates and council tax"
MOJ,NOMS,29/12/2016,Rates and Ground Rents,MoJ Estates,NORTH DORSET DISTRICT COUNCIL,6459305,29820,"Payment of rents, business rates and council tax"
MOJ,NOMS,28/12/2016,FM - Hard Fixed Costs,Estates Contract Management,AMEY COMMUNITY LIMITED,6512541,29929.4,Maintenance work
MOJ,NOMS,07/12/2016,FM - Hard Fixed Costs,Estates Contract Management,CARILLION (AMBS) LIMITED,6487276,29955.22,Maintenance work
MOJ,NOMS,29/12/2016,"Prisoner Compensation over 5,000",Stocken,GOVERNMENT LEGAL DEPARTMENT,6510685,30000,Costs in compensation claims - prisoners
MOJ,NOMS,05/12/2016,FM - Hard Fixed Costs,Estates Contract Management,AMEY COMMUNITY LIMITED,6477711,30034.89,Maintenance work
MOJ,NOMS,20/12/2016,Gas,Glen Parva,CORONA ENERGY RETAIL 4 LTD,6503807,30041.28,Gas utility costs
MOJ,NOMS,19/12/2016,Contracted-out Resettlement Services,PS Plus 2,ADVANCED PERSONNEL MANAGEMENT GROUP UK LIMITED,6504365,30145,Resettlement and community services 
MOJ,NOMS,07/12/2016,Office Equipment Purchases Under 10k,Berwyn,L & P (PSCS),6491879,30170.1,"Equipment, furniture and fittings"
MOJ,NOMS,09/12/2016,FM - Hard Fixed Costs,Estates Contract Management,CARILLION (AMBS) LIMITED,6487273,30311.54,Maintenance work
MOJ,NOMS,02/12/2016,FM - Hard Fixed Costs,Estates Contract Management,CARILLION (AMBS) LIMITED,6487333,30357.92,Maintenance work
MOJ,NOMS,29/12/2016,FM - Hard Fixed Costs,Estates Contract Management,CARILLION (AMBS) LIMITED,6513708,30357.92,Maintenance work
MOJ,NOMS,15/12/2016,Recreation,Featherstone,JLA LTD,6501209,30484.8,Provision of goods / services for prisoners' recreational activities
MOJ,NOMS,12/12/2016,Electricity,Brinsford,EDF ENERGY,6494098,30514.81,Electricity utility costs
MOJ,NOMS,02/12/2016,Contracted-out Library,Isle of Wight,ISLE OF WIGHT COUNCIL,6442635,30545.8,Library services 
MOJ,NOMS,05/12/2016,Water and Sewage,Huntercombe,THAMES WATER UTILITIES LTD,6476585,30549.54,Water and sewage utility costs
MOJ,NOMS,08/12/2016,Water and Sewage,Lindholme,YORKSHIRE WATER SERVICES LTD,6494049,30853.49,Water and sewage utility costs
MOJ,NOMS,20/12/2016,Water and Sewage,Cardiff,DWR CMYRU WELSH WATER,6508369,30922.13,Water and sewage utility costs
MOJ,NOMS,02/12/2016,FM - Hard Fixed Costs,Estates Contract Management,CARILLION (AMBS) LIMITED,6487353,31028.68,Maintenance work
MOJ,NOMS,29/12/2016,FM - Hard Fixed Costs,Estates Contract Management,CARILLION (AMBS) LIMITED,6513716,31028.68,Maintenance work
MOJ,NOMS,29/12/2016,Rates and Ground Rents,MoJ Estates,BLABY DISTRICT COUNCIL,6242730,31062.5,"Payment of rents, business rates and council tax"
MOJ,NOMS,29/12/2016,Rates and Ground Rents,MoJ Estates,CARDIFF COUNTY COUNCIL OF THE CITY & COUNTY OF CARDIFF,6242882,31104,"Payment of rents, business rates and council tax"
MOJ,NOMS,05/12/2016,Specialist Contractors,Community Rehabilitation Services,PRICEWATERHOUSECOOPERS LLP,6481436,31104,Specialist contractors engaged under a fixed-term contract for services 
MOJ,NOMS,08/12/2016,Water and Sewage,Risley,UNITED UTILITIES WATER PLC,6494013,31292.83,Water and sewage utility costs
MOJ,NOMS,28/12/2016,Hard Variable OVER 5k - NON VAT Recoverable,Estates Contract Management,AMEY COMMUNITY LIMITED,6512540,31358.05,Maintenance work
MOJ,NOMS,12/12/2016,Electricity,Norwich,EDF ENERGY,6494098,31521.44,Electricity utility costs
MOJ,NOMS,28/12/2016,FM - Hard Fixed Costs,Estates Contract Management,AMEY COMMUNITY LIMITED,6513133,31563.36,Maintenance work
MOJ,NOMS,20/12/2016,Water and Sewage,Sodexo Northumberland,NORTHUMBRIAN WATER,6506707,31566.28,Water and sewage utility costs
MOJ,NOMS,08/12/2016,Water and Sewage,Liverpool,UNITED UTILITIES WATER PLC,6494008,31582.03,Water and sewage utility costs
MOJ,NOMS,28/12/2016,FM - Hard Fixed Costs,Estates Contract Management,AMEY COMMUNITY LIMITED,6512400,31630.8,Maintenance work
MOJ,NOMS,07/12/2016,Legal Services - Non-Criminal,Electronic Mon HQ / Administration,BIRD & BIRD,6460818,31715.7,Legal representation
MOJ,NOMS,23/12/2016,Contract IT Maintenance,Fix 'n' Go,ENTSERV UK LTD,6513283,31766.61,IT maintenance and support
MOJ,NOMS,13/12/2016,Repair and Maintenance - materials,Lindholme,PREMIER FOREST PRODUCTS LTD,6493440,31806.76,Maintenance of equipment used in prison industries
MOJ,NOMS,12/12/2016,Electricity,Durham,EDF ENERGY,6494098,31914.84,Electricity utility costs
MOJ,NOMS,28/12/2016,FM - Hard Fixed Costs,Estates Contract Management,AMEY COMMUNITY LIMITED,6512543,31916.05,Maintenance work
MOJ,NOMS,12/12/2016,Electricity,Long Lartin,EDF ENERGY,6494098,31939.45,Electricity utility costs
MOJ,NOMS,12/12/2016,Electricity,Humber,EDF ENERGY,6494098,32003.36,Electricity utility costs
MOJ,NOMS,12/12/2016,Electricity,Dartmoor,EDF ENERGY,6494098,32045.84,Electricity utility costs
MOJ,NOMS,29/12/2016,Water and Sewage,Verne (The),BRISTOL & WESSEX WATER BILLING SERVICES LTD,6515435,32054.59,Water and sewage utility costs
MOJ,NOMS,20/12/2016,Gas,Featherstone,CORONA ENERGY RETAIL 4 LTD,6503807,32248.77,Gas utility costs
MOJ,NOMS,29/12/2016,Rates and Ground Rents,MoJ Estates,SOUTH STAFFORDSHIRE COUNCIL,6242742,32305,"Payment of rents, business rates and council tax"
MOJ,NOMS,16/12/2016,Water and Sewage,Rochester,SOUTHERN WATER SERVICES LTD,6503653,32361.53,Water and sewage utility costs
MOJ,NOMS,28/12/2016,FM - Hard Fixed Costs,Estates Contract Management,AMEY COMMUNITY LIMITED,6512275,32382.98,Maintenance work
MOJ,NOMS,28/12/2016,Hard Variable OVER 5k - NON VAT Recoverable,Estates Contract Management,AMEY COMMUNITY LIMITED,6512680,32481.12,Maintenance work
MOJ,NOMS,08/12/2016,Water and Sewage,Kirkham,UNITED UTILITIES WATER PLC,6494004,32738.06,Water and sewage utility costs
MOJ,NOMS,20/12/2016,Gas,Stocken,CORONA ENERGY RETAIL 4 LTD,6503807,32741.64,Gas utility costs
MOJ,NOMS,12/12/2016,Electricity,Rochester,EDF ENERGY,6494098,32839.79,Electricity utility costs
MOJ,NOMS,19/12/2016,Professional works advice / services,Isis,MITIE FACILITIES SERVICES LTD,6504167,32856.68,Fees for professional services for maintenance on prison estate
MOJ,NOMS,08/12/2016,FM - Hard Variable Costs - up to 5k,Estates Contract Management,CARILLION (AMBS) LIMITED,6487305,32922.76,Maintenance work
MOJ,NOMS,30/12/2016,FM - Ad-Hoc (Non Structural)  Maintenance- between 5k and 10k,Estates Contract Management,CARILLION (AMBS) LIMITED,6514640,33131.65,Maintenance work
MOJ,NOMS,12/12/2016,Electricity,Wayland,EDF ENERGY,6494098,33310.91,Electricity utility costs
MOJ,NOMS,21/12/2016,Contracted-out operation of prisons and detention centres,Oakwood,G4S CARE & JUSTICE SERVICES (UK) LTD,6481126,33326,Prisons and detention centres operated by an external provider
MOJ,NOMS,20/12/2016,Gas,Stafford,CORONA ENERGY RETAIL 4 LTD,6503807,33345.26,Gas utility costs
MOJ,NOMS,29/12/2016,Rates and Ground Rents,MoJ Estates,WARRINGTON BOROUGH COUNCIL,6240698,33547.5,"Payment of rents, business rates and council tax"
MOJ,NOMS,07/12/2016,"New structural works, structural maintenance and equipment",MoJ Estates,SHAYLOR GROUP PLC,6490897,33706.08,Maintenance work
MOJ,NOMS,12/12/2016,Electricity,Kirkham,EDF ENERGY,6494098,33751.03,Electricity utility costs
MOJ,NOMS,19/12/2016,"Prisoner Compensation over 5,000",Swaleside,GOVERNMENT LEGAL DEPARTMENT,13000478,33781,Costs in compensation claims - prisoners
MOJ,NOMS,12/12/2016,Electricity,Wealstun,EDF ENERGY,6494098,33809.93,Electricity utility costs
MOJ,NOMS,19/12/2016,Occupational Health Services,Director PSP Front Line Centrally Managed,OH ASSIST LTD,6463725,33862.35,Occupational health services for staff
MOJ,NOMS,28/12/2016,FM - Soft Fixed Costs,Estates Contract Management,AMEY COMMUNITY LIMITED,6512675,33905.38,Maintenance work
MOJ,NOMS,20/12/2016,Gas,Wealstun,CORONA ENERGY RETAIL 4 LTD,6503807,33961.06,Gas utility costs
MOJ,NOMS,29/12/2016,Rates and Ground Rents,MoJ Estates,DURHAM COUNTY COUNCIL,6242843,34044.5,"Payment of rents, business rates and council tax"
MOJ,NOMS,20/12/2016,Gas,Lindholme,CORONA ENERGY RETAIL 4 LTD,6503807,34094.57,Gas utility costs
MOJ,NOMS,20/12/2016,Gas,Verne (The),CORONA ENERGY RETAIL 4 LTD,6503807,34115.11,Gas utility costs
MOJ,NOMS,23/12/2016,Contracted-out operation of prisons and detention centres,Dovegate,MORETON PRISON SERVICES LTD,6509685,34224,Prisons and detention centres operated by an external provider
MOJ,NOMS,20/12/2016,Gas,Channings Wood,CORONA ENERGY RETAIL 4 LTD,6503807,34253.36,Gas utility costs
MOJ,NOMS,01/12/2016,Contracted-out Resettlement Services,PS Plus 2,ADVANCED PERSONNEL MANAGEMENT GROUP UK LIMITED,6477651,34320,Resettlement and community services 
MOJ,NOMS,02/12/2016,FM - Hard Fixed Costs,Estates Contract Management,CARILLION (AMBS) LIMITED,6487354,34367.43,Maintenance work
MOJ,NOMS,29/12/2016,FM - Hard Fixed Costs,Estates Contract Management,CARILLION (AMBS) LIMITED,6513715,34367.43,Maintenance work
MOJ,NOMS,16/12/2016,Occupational Health Services,ER and Reward Team,OH ASSIST LTD,6449008,34605,Occupational health services for staff
MOJ,NOMS,28/12/2016,FM - Hard Fixed Costs,Estates Contract Management,AMEY COMMUNITY LIMITED,6512673,34609.78,Maintenance work
MOJ,NOMS,02/12/2016,FM - Hard Fixed Costs,Estates Contract Management,CARILLION (AMBS) LIMITED,6487400,34700.77,Maintenance work
MOJ,NOMS,29/12/2016,FM - Hard Fixed Costs,Estates Contract Management,CARILLION (AMBS) LIMITED,6513704,34700.77,Maintenance work
MOJ,NOMS,29/12/2016,Rates and Ground Rents,MoJ Estates,MEDWAY COUNCIL,6249777,34790,"Payment of rents, business rates and council tax"
MOJ,NOMS,30/12/2016,FM - Hard Fixed Costs,Estates Contract Management,CARILLION (AMBS) LIMITED,6513713,34823.17,Maintenance work
MOJ,NOMS,30/12/2016,Contracted-out Library,Whatton,INSPIRE,6516315,34836.86,Library services 
MOJ,NOMS,30/12/2016,FM - Hard Fixed Costs,Estates Contract Management,CARILLION (AMBS) LIMITED,6514669,34972.76,Maintenance work
MOJ,NOMS,19/12/2016,Contracted-out Education,Morton Hall,LINCOLN COLLEGE,6492341,34998.44,Education services 
MOJ,NOMS,23/12/2016,Training Materials,Commissioning Group,MEGANEXUS LTD,6513246,35079.6,Training materials used in prisoner training courses
MOJ,NOMS,05/12/2016,Training Materials,Commissioning Group,MEGANEXUS LTD,6490344,35079.6,Training materials used in prisoner training courses
MOJ,NOMS,29/12/2016,Rates and Ground Rents,MoJ Estates,NORWICH CITY COUNCIL,6242749,35287,"Payment of rents, business rates and council tax"
MOJ,NOMS,29/12/2016,Rates and Ground Rents,MoJ Estates,SURREY HEATH BOROUGH COUNCIL,6242795,35287,"Payment of rents, business rates and council tax"
MOJ,NOMS,28/12/2016,FM - Hard Fixed Costs,Estates Contract Management,AMEY COMMUNITY LIMITED,6512294,35293.18,Maintenance work
MOJ,NOMS,12/12/2016,Electricity,Hull,EDF ENERGY,6494098,35557.68,Electricity utility costs
MOJ,NOMS,20/12/2016,Gas,Moorland,CORONA ENERGY RETAIL 4 LTD,6503807,35565.96,Gas utility costs
MOJ,NOMS,29/12/2016,Raw Materials Issued,PSP Industries HQ Manufacturing,VISION SUPPORT SERVICES LIMITED,6515705,35712,Raw materials for prison industries
MOJ,NOMS,30/12/2016,FM - Hard Fixed Costs,Estates Contract Management,CARILLION (AMBS) LIMITED,6513685,35748.65,Maintenance work
MOJ,NOMS,02/12/2016,FM - Hard Fixed Costs,Estates Contract Management,CARILLION (AMBS) LIMITED,6487362,35748.65,Maintenance work
MOJ,NOMS,20/12/2016,Gas,Swaleside,CORONA ENERGY RETAIL 4 LTD,6503807,35776.88,Gas utility costs
MOJ,NOMS,29/12/2016,Rates and Ground Rents,MoJ Estates,LICHFIELD DISTRICT COUNCIL,6242734,35784,"Payment of rents, business rates and council tax"
MOJ,NOMS,12/12/2016,Electricity,MoJ Estates,EDF ENERGY,45458686,35912.04,Electricity utility costs
MOJ,NOMS,29/12/2016,Rates and Ground Rents,MoJ Estates,HARBOROUGH DISTRICT COUNCIL,6242895,36032.5,"Payment of rents, business rates and council tax"
MOJ,NOMS,28/12/2016,FM - Hard Fixed Costs,Estates Contract Management,AMEY COMMUNITY LIMITED,6512680,36061.07,Maintenance work
MOJ,NOMS,02/12/2016,FM - Hard Fixed Costs,Estates Contract Management,CARILLION (AMBS) LIMITED,6487352,36106.81,Maintenance work
MOJ,NOMS,29/12/2016,FM - Hard Fixed Costs,Estates Contract Management,CARILLION (AMBS) LIMITED,6513717,36106.81,Maintenance work
MOJ,NOMS,15/12/2016,WIP - Acquisitions,MoJ Estates,G4S CARE & JUSTICE SERVICES (UK) LTD,6360516,36116.58,Enhancement to buildings
MOJ,NOMS,20/12/2016,Gas,Sodexo Northumberland,CORONA ENERGY RETAIL 4 LTD,6503807,36206.98,Gas utility costs
MOJ,NOMS,20/12/2016,Gas,Stoke Heath,CORONA ENERGY RETAIL 4 LTD,6503807,36298.21,Gas utility costs
MOJ,NOMS,28/12/2016,FM - Hard Fixed Costs,Estates Contract Management,AMEY COMMUNITY LIMITED,6512300,36345.41,Maintenance work
MOJ,NOMS,28/12/2016,FM - Hard Fixed Costs,Estates Contract Management,AMEY COMMUNITY LIMITED,6512276,36350.53,Maintenance work
MOJ,NOMS,15/12/2016,Translation Services,Director PSP Front Line Centrally Managed,THEBIGWORD INTERPRETING SERVICES LTD,6494178,36430.28,Translation and interpreting services
MOJ,NOMS,08/12/2016,"Staff Compensation over 5,000",Thorn Cross,GOVERNMENT LEGAL DEPARTMENT,6493994,36500,Costs in compensation claims - staff
MOJ,NOMS,29/12/2016,Rates and Ground Rents,MoJ Estates,WIGAN COUNCIL,6242884,36530,"Payment of rents, business rates and council tax"
MOJ,NOMS,06/12/2016,FM - Ad-Hoc (Non Structural)  Maintenance- between 5k and 10k,Estates Contract Management,CARILLION (AMBS) LIMITED,6487391,36720.82,Maintenance work
MOJ,NOMS,30/12/2016,FM - Hard Fixed Costs,Estates Contract Management,CARILLION (AMBS) LIMITED,6514670,36889.74,Maintenance work
MOJ,NOMS,06/12/2016,FM - Hard Fixed Costs,Estates Contract Management,CARILLION (AMBS) LIMITED,6487357,36889.74,Maintenance work
MOJ,NOMS,20/12/2016,Gas,Holme House,CORONA ENERGY RETAIL 4 LTD,6503807,36986.96,Gas utility costs
MOJ,NOMS,28/12/2016,FM - Hard Fixed Costs,Estates Contract Management,AMEY COMMUNITY LIMITED,6512277,37013.07,Maintenance work
MOJ,NOMS,30/12/2016,Contracted-out operation of prisons and detention centres,Altcourse,FAZAKERLEY PRISON SERVICES LTD,6510953,37144.82,Prisons and detention centres operated by an external provider
MOJ,NOMS,13/12/2016,Contracted-out operation of prisons and detention centres,Altcourse,FAZAKERLEY PRISON SERVICES LTD,6496143,37144.82,Prisons and detention centres operated by an external provider
MOJ,NOMS,29/12/2016,Contracted-out Other Services,Professional works advice / services,SOPRA STERIA LTD,6470430,37191.31,Fees for professional services for maintenance on prison estate
MOJ,NOMS,07/12/2016,Water and Sewage,Wormwood Scrubs,THAMES WATER UTILITIES LTD,6487955,37196.87,Water and sewage utility costs
MOJ,NOMS,20/12/2016,Gas,Highdown,CORONA ENERGY RETAIL 4 LTD,6503807,37217.44,Gas utility costs
MOJ,NOMS,14/12/2016,Contracted-out Escorts,Prisoner Escort & Custody Service (PECS),GEO AMEY PECS LTD,6500051,37240.23,Prisoner escort services 
MOJ,NOMS,16/12/2016,Occupational Health Services,ER and Reward Team,OH ASSIST LTD,6497476,37260,Occupational health services for staff
MOJ,NOMS,20/12/2016,FM - Hard Variable Costs - up to 5k,Estates Contract Management,CARILLION (AMBS) LIMITED,12974556,37298.48,Maintenance work
MOJ,NOMS,19/12/2016,Contracted-out Resettlement Services,PS Plus 2,ADVANCED PERSONNEL MANAGEMENT GROUP UK LIMITED,6504367,37305,Resettlement and community services 
MOJ,NOMS,28/12/2016,Hard Variable OVER 5k - NON VAT Recoverable,Estates Contract Management,AMEY COMMUNITY LIMITED,6512538,37325.52,Maintenance work
MOJ,NOMS,12/12/2016,Electricity,Pentonville,EDF ENERGY,6494098,37423.92,Electricity utility costs
MOJ,NOMS,16/12/2016,Occupational Health Services,ER and Reward Team,OH ASSIST LTD,6497415,37430,Occupational health services for staff
MOJ,NOMS,07/12/2016,Occupational Health Services,ER and Reward Team,OH ASSIST LTD,6482776,37430,Occupational health services for staff
MOJ,NOMS,06/12/2016,FM - Hard Fixed Costs,Estates Contract Management,CARILLION (AMBS) LIMITED,6487355,37444.27,Maintenance work
MOJ,NOMS,07/12/2016,FM - Hard Fixed Costs,Estates Contract Management,CARILLION (AMBS) LIMITED,6487376,37473.5,Maintenance work
MOJ,NOMS,07/12/2016,Contracted-out Resettlement Services,Leyhill,RECOOP,6490696,37500,Resettlement and community services 
MOJ,NOMS,29/12/2016,Rates and Ground Rents,MoJ Estates,DURHAM COUNTY COUNCIL,6242853,37523.5,"Payment of rents, business rates and council tax"
MOJ,NOMS,29/12/2016,Rates and Ground Rents,MoJ Estates,WYCHAVON DISTRICT COUNCIL,6240565,37523.5,"Payment of rents, business rates and council tax"
MOJ,NOMS,23/12/2016,Occupational Health Services,ER and Reward Team,OH ASSIST LTD,6511689,37612.6,Occupational health services for staff
MOJ,NOMS,13/12/2016,Contracted-out operation of prisons and detention centres,Lowdham Grange,LOWDHAM GRANGE PRISON SERVICES LTD,6490352,37689.6,Prisons and detention centres operated by an external provider
MOJ,NOMS,28/12/2016,FM - Hard Fixed Costs,Estates Contract Management,AMEY COMMUNITY LIMITED,6512403,37691.49,Maintenance work
MOJ,NOMS,13/12/2016,Contracted-out operation of prisons and detention centres,Bronzefield,ASHFORD PRISON SERVICES LTD,6496916,37721.12,Prisons and detention centres operated by an external provider
MOJ,NOMS,28/12/2016,FM - Hard Fixed Costs,Estates Contract Management,AMEY COMMUNITY LIMITED,6512538,37829.94,Maintenance work
MOJ,NOMS,28/12/2016,Raw Materials Issued,PSP Industries HQ Manufacturing,VISION SUPPORT SERVICES LIMITED,6513900,37917.6,Raw materials for prison industries
MOJ,NOMS,23/12/2016,Contracted-out Computer Services,Director PSP Front Line Centrally Managed,HOME OFFICE,6509814,37964.4,Computer services 
MOJ,NOMS,23/12/2016,"Prisoner Compensation over 5,000",Director PSP Front Line Centrally Managed,GOVERNMENT LEGAL DEPARTMENT,6508350,38000,Costs in compensation claims - prisoners
MOJ,NOMS,02/12/2016,Ad-Hoc Major Maintenance and Capital Works - more than 10k,Estates Contract Management,AMEY COMMUNITY LIMITED,6477657,38094.41,Major repair and operationally critical new work.
MOJ,NOMS,28/12/2016,FM - Hard Fixed Costs,Estates Contract Management,AMEY COMMUNITY LIMITED,6512670,38103.1,Maintenance work
MOJ,NOMS,19/12/2016,Contracted-out Resettlement Services,PS Plus 2,ADVANCED PERSONNEL MANAGEMENT GROUP UK LIMITED,6504369,38210,Resettlement and community services 
MOJ,NOMS,29/12/2016,Rates and Ground Rents,MoJ Estates,CHELMSFORD BOROUGH COUNCIL,6240605,38269,"Payment of rents, business rates and council tax"
MOJ,NOMS,12/12/2016,Electricity,Doncaster,EDF ENERGY,6494098,38305.39,Electricity utility costs
MOJ,NOMS,02/12/2016,FM - Hard Fixed Costs,Estates Contract Management,CARILLION (AMBS) LIMITED,6487395,38338.82,Maintenance work
MOJ,NOMS,29/12/2016,FM - Hard Fixed Costs,Estates Contract Management,CARILLION (AMBS) LIMITED,6514723,38338.82,Maintenance work
MOJ,NOMS,30/12/2016,Ad-Hoc Major Maintenance and Capital Works - more than 10k,Estates Contract Management,CARILLION (AMBS) LIMITED,6514646,38519.4,Major repair and operationally critical new work.
MOJ,NOMS,28/12/2016,FM - Hard Fixed Costs,Estates Contract Management,AMEY COMMUNITY LIMITED,6512295,38586.38,Maintenance work
MOJ,NOMS,28/12/2016,FM - Hard Fixed Costs,Estates Contract Management,AMEY COMMUNITY LIMITED,6513135,38596.37,Maintenance work
MOJ,NOMS,29/12/2016,FM - Hard Fixed Costs,Estates Contract Management,CARILLION (AMBS) LIMITED,6514720,38668.43,Maintenance work
MOJ,NOMS,02/12/2016,FM - Hard Fixed Costs,Estates Contract Management,CARILLION (AMBS) LIMITED,6487379,38668.43,Maintenance work
MOJ,NOMS,05/12/2016,Clothing,PSP Industries HQ Manufacturing,CARPENTER LTD,6489214,38760.46,Mattresses for prisoners' beds
MOJ,NOMS,20/12/2016,Gas,Belmarsh,CORONA ENERGY RETAIL 4 LTD,6503807,38876.22,Gas utility costs
MOJ,NOMS,12/12/2016,Electricity,Leeds,EDF ENERGY,6494098,38892.14,Electricity utility costs
MOJ,NOMS,29/12/2016,Contracted-out operation of prisons and detention centres,Lowdham Grange,LOWDHAM GRANGE PRISON SERVICES LTD,6509186,38945.92,Prisons and detention centres operated by an external provider
MOJ,NOMS,20/12/2016,Gas,Wandsworth,CORONA ENERGY RETAIL 4 LTD,6503807,38954.26,Gas utility costs
MOJ,NOMS,12/12/2016,Electricity,Feltham,EDF ENERGY,6494098,38999.63,Electricity utility costs
MOJ,NOMS,23/12/2016,Resource Grants / Grant-in-Aid,Commissioning Strategies Group,TEES VALLEY ARTS,6508485,39141.91,Grant payments to voluntary and community sector organisations
MOJ,NOMS,28/12/2016,FM - Hard Fixed Costs,Estates Contract Management,AMEY COMMUNITY LIMITED,6512297,39142.61,Maintenance work
MOJ,NOMS,20/12/2016,Gas,Humber,CORONA ENERGY RETAIL 4 LTD,6503807,39180.04,Gas utility costs
MOJ,NOMS,29/12/2016,Resource Grants / Grant-in-Aid,Commissioning Strategies Group,KINGSTON WELCARE,6508422,39185,Grant payments to voluntary and community sector organisations
MOJ,NOMS,20/12/2016,Gas,Wormwood Scrubs,CORONA ENERGY RETAIL 4 LTD,6503807,39208.17,Gas utility costs
MOJ,NOMS,12/12/2016,Raw Materials - ESS/LBA Industries Internal Use within the HO,PSP Industries HQ Staff,BCB INTERNATIONAL LTD,6479197,39312,Raw materials for prison industries
MOJ,NOMS,29/12/2016,FM - Hard Fixed Costs,Estates Contract Management,CARILLION (AMBS) LIMITED,6513712,39349.53,Maintenance work
MOJ,NOMS,06/12/2016,FM - Hard Fixed Costs,Estates Contract Management,CARILLION (AMBS) LIMITED,6487358,39349.53,Maintenance work
MOJ,NOMS,12/12/2016,Electricity,Holme House,EDF ENERGY,6494098,39809.23,Electricity utility costs
MOJ,NOMS,23/12/2016,Resource Grants / Grant-in-Aid,Commissioning Strategies Group,CENTRE FOR ENTREPRENEURS LTD,6508460,39831.67,Grant payments to voluntary and community sector organisations
MOJ,NOMS,19/12/2016,Resource Grants / Grant-in-Aid,Commissioning Strategies Group,CENTRE FOR ENTREPRENEURS LTD,6501638,39831.67,Grant payments to voluntary and community sector organisations
MOJ,NOMS,14/12/2016,Contract IT Maintenance,Digital Prison,ENTSERV UK LTD,6477392,39875.9,IT maintenance and support
MOJ,NOMS,12/12/2016,Electricity,Nottingham,EDF ENERGY,6494098,39890.5,Electricity utility costs
MOJ,NOMS,07/12/2016,Legal Services - Non-Criminal,Electronic Mon HQ / Administration,BIRD & BIRD,6420468,39907,Legal representation
MOJ,NOMS,28/12/2016,FM - Hard Variable Costs - up to 5k,Estates Contract Management,AMEY COMMUNITY LIMITED,6512670,39942.89,Maintenance work
MOJ,NOMS,12/12/2016,Electricity,Wormwood Scrubs,EDF ENERGY,6494098,39995.72,Electricity utility costs
MOJ,NOMS,29/12/2016,FM - Hard Fixed Costs,Estates Contract Management,CARILLION (AMBS) LIMITED,6513714,40317.59,Maintenance work
MOJ,NOMS,06/12/2016,FM - Hard Fixed Costs,Estates Contract Management,CARILLION (AMBS) LIMITED,6487356,40317.59,Maintenance work
MOJ,NOMS,23/12/2016,Contracted-out Medical services,Berwyn,BETSI CADWALADR UNIVERSITY HEALTH BOARD,6510356,40359,Healthcare services in prison; amount is recovered from NHS England
MOJ,NOMS,05/12/2016,Contracted-out Catering Services,Holme House,ESS SUPPORT SERVICES WORLDWIDE,6487281,40413.15,Catering services 
MOJ,NOMS,28/12/2016,FM - Hard Variable Costs - up to 5k,Estates Contract Management,AMEY COMMUNITY LIMITED,6512274,40451.67,Maintenance work
MOJ,NOMS,06/12/2016,Hard Variable OVER 5k - NON VAT Recoverable,Estates Contract Management,CARILLION (AMBS) LIMITED,6487356,40493.82,Maintenance work
MOJ,NOMS,29/12/2016,Rates and Ground Rents,MoJ Estates,ST EDMUNDSBURY BOROUGH COUNCIL,6240595,40505.5,"Payment of rents, business rates and council tax"
MOJ,NOMS,06/12/2016,Resource Grants / Grant-in-Aid,Commissioning Strategies Group,UNIVERSITY OF GREENWICH,6442977,40518,Grant payments to voluntary and community sector organisations
MOJ,NOMS,20/12/2016,Gas,Bullingdon,CORONA ENERGY RETAIL 4 LTD,6503807,40525.03,Gas utility costs
MOJ,NOMS,20/12/2016,Gas,Manchester,CORONA ENERGY RETAIL 4 LTD,6503807,40702.72,Gas utility costs
MOJ,NOMS,29/12/2016,Rates and Ground Rents,MoJ Estates,NEWARK & SHERWOOD DISTRICT COUNCIL,6242753,40754,"Payment of rents, business rates and council tax"
MOJ,NOMS,29/12/2016,Rates and Ground Rents,MoJ Estates,RUTLAND DISTRICT COUNCIL,6244604,40754,"Payment of rents, business rates and council tax"
MOJ,NOMS,21/12/2016,FM - Soft Fixed Costs,Estates Contract Management,CARILLION (AMBS) LIMITED,6506738,40757,Maintenance work
MOJ,NOMS,21/12/2016,FM - Soft Fixed Costs,Estates Contract Management,CARILLION (AMBS) LIMITED,6506736,40757,Maintenance work
MOJ,NOMS,30/12/2016,Hard Variable OVER 5k - NON VAT Recoverable,Estates Contract Management,CARILLION (AMBS) LIMITED,6513682,40856.18,Maintenance work
MOJ,NOMS,12/12/2016,Electricity,Isle of Wight,EDF ENERGY,19482294,40937.21,Electricity utility costs
MOJ,NOMS,29/12/2016,Rates and Ground Rents,MoJ Estates,BRECKLAND DISTRICT COUNCIL,6251916,41002.5,"Payment of rents, business rates and council tax"
MOJ,NOMS,20/12/2016,Gas,Ranby,CORONA ENERGY RETAIL 4 LTD,6503807,41012.48,Gas utility costs
MOJ,NOMS,13/12/2016,Contracted-out Probation Boards,South East and Eastern Probation Service,THE BEDFORDSHIRE CAMBRIDGESHIRE HERTFORDSHIRE AND NORTHAMPTONSHIRE COMMUNITY REHABILITATION COMPANY,6496978,41020,Probation services
MOJ,NOMS,28/12/2016,FM - Hard Fixed Costs,Estates Contract Management,AMEY COMMUNITY LIMITED,6513126,41054.48,Maintenance work
MOJ,NOMS,20/12/2016,Gas,Frankland,CORONA ENERGY RETAIL 4 LTD,6503807,41368.56,Gas utility costs
MOJ,NOMS,30/12/2016,FM - Hard Fixed Costs,Estates Contract Management,CARILLION (AMBS) LIMITED,6513698,41390.99,Maintenance work
MOJ,NOMS,08/12/2016,FM - Hard Fixed Costs,Estates Contract Management,CARILLION (AMBS) LIMITED,6487327,41390.99,Maintenance work
MOJ,NOMS,02/12/2016,FM - Hard Fixed Costs,Estates Contract Management,CARILLION (AMBS) LIMITED,6487361,41413.41,Maintenance work
MOJ,NOMS,30/12/2016,FM - Hard Fixed Costs,Estates Contract Management,CARILLION (AMBS) LIMITED,6513705,41413.41,Maintenance work
MOJ,NOMS,28/12/2016,FM - Hard Fixed Costs,Estates Contract Management,AMEY COMMUNITY LIMITED,6512278,41426.3,Maintenance work
MOJ,NOMS,20/12/2016,FM - Soft Fixed Costs,Estates Contract Management,CARILLION (AMBS) LIMITED,12974556,41659.79,Maintenance work
MOJ,NOMS,30/12/2016,FM - Soft Fixed Costs,Estates Contract Management,CARILLION (AMBS) LIMITED,13029332,41659.79,Maintenance work
MOJ,NOMS,28/12/2016,FM - Hard Fixed Costs,Estates Contract Management,AMEY COMMUNITY LIMITED,6512298,41761.53,Maintenance work
MOJ,NOMS,20/12/2016,Gas,G4S Birmingham,CORONA ENERGY RETAIL 4 LTD,6503807,41775.32,Gas utility costs
MOJ,NOMS,13/12/2016,Contracted-out operation of prisons and detention centres,Lowdham Grange,LOWDHAM GRANGE PRISON SERVICES LTD,6490351,41779.2,Prisons and detention centres operated by an external provider
MOJ,NOMS,30/12/2016,FM - Ad-Hoc (Non Structural)  Maintenance- between 5k and 10k,Estates Contract Management,CARILLION (AMBS) LIMITED,6513705,41803,Maintenance work
MOJ,NOMS,19/12/2016,Contracted-out Probation Trusts,North West Probation Service,THE CHESHIRE AND GREATER MANCHESTER COMMUNITY REHABILITATION COMPANY,6445039,41814.43,Probation services
MOJ,NOMS,20/12/2016,Gas,Feltham,CORONA ENERGY RETAIL 4 LTD,6503807,41927.12,Gas utility costs
MOJ,NOMS,20/12/2016,Gas,Elmley,CORONA ENERGY RETAIL 4 LTD,6503807,42079.44,Gas utility costs
MOJ,NOMS,05/12/2016,Training Courses,Medway Secure Training Centre,NACRO,6488921,42084.33,Training courses for prisoners 
MOJ,NOMS,19/12/2016,Training Courses,Medway Secure Training Centre,NACRO,6504997,42084.33,Training courses for prisoners 
MOJ,NOMS,29/12/2016,FM - Hard Fixed Costs,Estates Contract Management,CARILLION (AMBS) LIMITED,6513718,42106.31,Maintenance work
MOJ,NOMS,02/12/2016,FM - Hard Fixed Costs,Estates Contract Management,CARILLION (AMBS) LIMITED,6487351,42106.31,Maintenance work
MOJ,NOMS,22/12/2016,Contracted-out Computer Services,Planning and Analysis Group,MATRIX INSIGHT LTD,6493482,42171.91,Computer services 
MOJ,NOMS,19/12/2016,FM - Soft Fixed Costs,Estates Contract Management,AMEY COMMUNITY LIMITED,6477655,42201.48,Maintenance work
MOJ,NOMS,28/12/2016,FM - Hard Fixed Costs,Estates Contract Management,AMEY COMMUNITY LIMITED,6512299,42267.99,Maintenance work
MOJ,NOMS,13/12/2016,Contracted-out operation of prisons and detention centres,Peterborough,PETERBOROUGH PRISON MANAGEMENT LTD,6496796,42389.48,Prisons and detention centres operated by an external provider
MOJ,NOMS,12/12/2016,Electricity,Risley,EDF ENERGY,6494098,42407.68,Electricity utility costs
MOJ,NOMS,08/12/2016,Contracted-out Probation Boards,North West Probation Service,THE MERSEYSIDE COMMUNITY REHABILITATION COMPANY,6489336,42437.74,Probation services
MOJ,NOMS,29/12/2016,Rates and Ground Rents,MoJ Estates,BASSETLAW DISTRICT COUNCIL,6242757,42493.5,"Payment of rents, business rates and council tax"
MOJ,NOMS,12/12/2016,Electricity,Woodhill,EDF ENERGY,6494098,42516.22,Electricity utility costs
MOJ,NOMS,29/12/2016,Rates and Ground Rents,MoJ Estates,STOCKTON-ON-TEES BOROUGH COUNCIL,6244475,42742,"Payment of rents, business rates and council tax"
MOJ,NOMS,06/12/2016,Training Materials,Cookham Wood,KINETIC YOUTH LTD,6487793,42750,Training materials used in prisoner training courses
MOJ,NOMS,21/12/2016,Specialist Contractors,Community Rehabilitation Services,PRICEWATERHOUSECOOPERS LLP,6497622,42768,Specialist contractors engaged under a fixed-term contract for services 
MOJ,NOMS,30/12/2016,FM - Hard Fixed Costs,Estates Contract Management,CARILLION (AMBS) LIMITED,6514727,42771.72,Maintenance work
MOJ,NOMS,08/12/2016,FM - Hard Fixed Costs,Estates Contract Management,CARILLION (AMBS) LIMITED,6487304,42771.72,Maintenance work
MOJ,NOMS,20/12/2016,Gas,Hewell,CORONA ENERGY RETAIL 4 LTD,6503807,42826.01,Heat Energy Services
MOJ,NOMS,28/12/2016,Contracted-out operation of prisons and detention centres,Rye Hill,ONLEY PRISON SERVICES LTD,6510932,42845.59,Prisons and detention centres operated by an external provider
MOJ,NOMS,13/12/2016,Contracted-out operation of prisons and detention centres,Rye Hill,ONLEY PRISON SERVICES LTD,6496131,42845.6,Prisons and detention centres operated by an external provider
MOJ,NOMS,22/12/2016,Contract IT Maintenance,Digital Prison,ENTSERV UK LTD,6499662,42998.12,IT maintenance and support
MOJ,NOMS,28/12/2016,FM - Hard Fixed Costs,Estates Contract Management,AMEY COMMUNITY LIMITED,6512716,43058.54,Maintenance work
MOJ,NOMS,20/12/2016,Contracted-out - Electronic Monitoring Equipment (Lot 3) & Networks (Lot 4),Electronic Monitoring,TELEFONICA UK LTD,6506734,43074.42,Electronic monitoring services 
MOJ,NOMS,29/12/2016,Resource Grants / Grant-in-Aid,Commissioning Strategies Group,RISE MUTUAL CIC,6508473,43147.89,Grant payments to voluntary and community sector organisations
MOJ,NOMS,28/12/2016,Contracted-out operation of prisons and detention centres,Lowdham Grange,LOWDHAM GRANGE PRISON SERVICES LTD,6509185,43171.84,Prisons and detention centres operated by an external provider
MOJ,NOMS,28/12/2016,FM - Hard Fixed Costs,Estates Contract Management,AMEY COMMUNITY LIMITED,6513131,43234.91,Maintenance work
MOJ,NOMS,20/12/2016,Gas,Littlehey,CORONA ENERGY RETAIL 4 LTD,6503807,43394.72,Gas utility costs
MOJ,NOMS,29/12/2016,Rates and Ground Rents,MoJ Estates,DACORUM BOROUGH COUNCIL,6242925,43488,"Payment of rents, business rates and council tax"
MOJ,NOMS,30/12/2016,FM - Hard Fixed Costs,Estates Contract Management,CARILLION (AMBS) LIMITED,6513677,43524.8,Maintenance work
MOJ,NOMS,22/12/2016,Contract IT Maintenance,Fix 'n' Go,ENTSERV UK LTD,6481206,43578.59,IT maintenance and support
MOJ,NOMS,28/12/2016,FM - Hard Fixed Costs,Estates Contract Management,AMEY COMMUNITY LIMITED,6512672,43789.42,Maintenance work
MOJ,NOMS,16/12/2016,Occupational Health Services,ER and Reward Team,OH ASSIST LTD,6463691,43885,Occupational health services for staff
MOJ,NOMS,06/12/2016,WIP - Acquisitions,MoJ Estates,ISG CONSTRUCTION LTD,6484107,44012.35,Enhancement to buildings
MOJ,NOMS,09/12/2016,Gas,Lewes,COFELY ENERGY SERVICES UK LTD,6496037,44281.16,Heat Energy Services
MOJ,NOMS,07/12/2016,Clothing,PSP Industries HQ Manufacturing,VISION SUPPORT SERVICES LIMITED,6492346,44362.36,Purchase of fabric for the manufacture of prisoner clothing and other consumable items by prison industries
MOJ,NOMS,23/12/2016,Clothing,PSP Industries HQ Manufacturing,VISION SUPPORT SERVICES LIMITED,6505409,44362.36,Purchase of fabric for the manufacture of prisoner clothing and other consumable items by prison industries
MOJ,NOMS,12/12/2016,Electricity,Mount (The),EDF ENERGY,6494098,44424.85,Electricity utility costs
MOJ,NOMS,14/12/2016,WIP - Professional Fees,MoJ Estates,BAILEY PARTNERSHIP,6497632,44490.32,Professional fees for construction work
MOJ,NOMS,28/12/2016,FM - Hard Fixed Costs,Estates Contract Management,AMEY COMMUNITY LIMITED,6512273,44672.24,Maintenance work
MOJ,NOMS,20/12/2016,Gas,Long Lartin,CORONA ENERGY RETAIL 4 LTD,6503807,44721.67,Gas utility costs
MOJ,NOMS,28/12/2016,FM - Hard Fixed Costs,Estates Contract Management,AMEY COMMUNITY LIMITED,6513127,44789.28,Maintenance work
MOJ,NOMS,28/12/2016,FM - Hard Fixed Costs,Estates Contract Management,AMEY COMMUNITY LIMITED,6512547,44874.32,Maintenance work
MOJ,NOMS,29/12/2016,Rates and Ground Rents,MoJ Estates,SPELTHORNE BOROUGH COUNCIL,6242893,44978.5,"Payment of rents, business rates and council tax"
MOJ,NOMS,13/12/2016,Contracted-out operation of prisons and detention centres,Peterborough,PETERBOROUGH PRISON MANAGEMENT LTD,6496793,45072,Prisons and detention centres operated by an external provider
MOJ,NOMS,12/12/2016,Electricity,Full Sutton,EDF ENERGY,6494098,45152.03,Electricity utility costs
MOJ,NOMS,09/12/2016,FM - Hard Fixed Costs,Estates Contract Management,CARILLION (AMBS) LIMITED,6487375,45198.54,Maintenance work
MOJ,NOMS,29/12/2016,FM - Hard Fixed Costs,Estates Contract Management,CARILLION (AMBS) LIMITED,6514667,45198.54,Maintenance work
MOJ,NOMS,12/12/2016,Electricity,Wakefield,EDF ENERGY,6494098,45385.75,Electricity utility costs
MOJ,NOMS,19/12/2016,Resource Grants / Grant-in-Aid,Commissioning Strategies Group,RISE MUTUAL CIC,119,45401.06,Grant payments to voluntary and community sector organisations
MOJ,NOMS,29/12/2016,Raw Materials Issued,PSP Industries HQ Manufacturing,VISION SUPPORT SERVICES LIMITED,6513901,45442.44,Raw materials for prison industries
MOJ,NOMS,29/12/2016,Rates and Ground Rents,MoJ Estates,LEEDS CITY COUNCIL,6244486,45475.5,"Payment of rents, business rates and council tax"
MOJ,NOMS,12/12/2016,Electricity,Elmley,EDF ENERGY,6494098,45574.44,Electricity utility costs
MOJ,NOMS,28/12/2016,FM - Hard Fixed Costs,Estates Contract Management,AMEY COMMUNITY LIMITED,6512677,45663.75,Maintenance work
MOJ,NOMS,29/12/2016,Rates and Ground Rents,MoJ Estates,SALFORD CITY COUNCIL,6288560,45724,"Payment of rents, business rates and council tax"
MOJ,NOMS,28/12/2016,FM - Hard Fixed Costs,Estates Contract Management,AMEY COMMUNITY LIMITED,6512401,45729.5,Maintenance work
MOJ,NOMS,28/12/2016,FM - Hard Fixed Costs,Estates Contract Management,AMEY COMMUNITY LIMITED,6512540,45849.97,Maintenance work
MOJ,NOMS,29/12/2016,Rates and Ground Rents,MoJ Estates,WANDSWORTH BOROUGH COUNCIL,6240658,46013,"Payment of rents, business rates and council tax"
MOJ,NOMS,28/12/2016,FM - Hard Fixed Costs,Estates Contract Management,AMEY COMMUNITY LIMITED,6512674,46164.51,Maintenance work
MOJ,NOMS,29/12/2016,Rates and Ground Rents,MoJ Estates,LONDON BOROUGH OF HOUNSLOW,6240646,46271.5,"Payment of rents, business rates and council tax"
MOJ,NOMS,19/12/2016,Contracted-out Security Services,Public Protection London,OCS GROUP UK LTD T/A CANNON,6501621,46337.89,Security guards used to protect property 
MOJ,NOMS,30/12/2016,Buildings - Acquisitions,Estates Contract Management,CARILLION (AMBS) LIMITED,6514643,46342.67,Enhancement to buildings
MOJ,NOMS,12/12/2016,Electricity,Swaleside,EDF ENERGY,6494098,46354.73,Electricity utility costs
MOJ,NOMS,12/12/2016,"New structural works, structural maintenance and equipment",MoJ Estates,ISG CONSTRUCTION LTD,6374893,46424.96,Maintenance work
MOJ,NOMS,14/12/2016,Specialist Contractors,Community Rehabilitation Services,PRICEWATERHOUSECOOPERS LLP,6499689,46507.5,Specialist contractors engaged under a fixed-term contract for services 
MOJ,NOMS,21/12/2016,Hard Variable OVER 5k - NON VAT Recoverable,Nottingham,AMEY COMMUNITY LIMITED,6260604,46553.02,Maintenance work
MOJ,NOMS,06/12/2016,FM - Hard Fixed Costs,Estates Contract Management,CARILLION (AMBS) LIMITED,6487398,46637.05,Maintenance work
MOJ,NOMS,29/12/2016,Rates and Ground Rents,MoJ Estates,CITY OF WAKEFIELD,6242855,46718,"Payment of rents, business rates and council tax"
MOJ,NOMS,29/12/2016,Rates and Ground Rents,MoJ Estates,LONDON BOROUGH OF ISLINGTON,6240609,46788.5,"Payment of rents, business rates and council tax"
MOJ,NOMS,28/12/2016,FM - Hard Fixed Costs,Estates Contract Management,AMEY COMMUNITY LIMITED,6512398,46914.74,Maintenance work
MOJ,NOMS,12/12/2016,Water and Sewage,Channings Wood,SOUTH WEST WATER LTD,6497075,46917.86,Water and sewage utility costs
MOJ,NOMS,01/12/2016,Contracted-out Computer Services,CRC T&S,SOPRA STERIA LTD,6486485,47054.59,Computer services 
MOJ,NOMS,02/12/2016,FM - Buildings related Emergency Action - more than 5k,Estates Contract Management,CARILLION (AMBS) LIMITED,6486410,47165.15,Maintenance work
MOJ,NOMS,15/12/2016,Contracted-out Probation Trusts,THE DORSET DEVON AND CORNWALL COMMUNITY REHABILITATION COMPANY,THE DORSET DEVON AND CORNWALL COMMUNITY REHABILITATION COMPANY,6492778,47186.83,Probation services
MOJ,NOMS,12/12/2016,Contracted-out Other Services,Deerbolt,COFELY ENERGY SERVICES UK LTD,6496039,47219.39,Heat Energy Services
MOJ,NOMS,28/12/2016,FM - Hard Fixed Costs,Estates Contract Management,AMEY COMMUNITY LIMITED,6512676,47238.98,Maintenance work
MOJ,NOMS,30/12/2016,Contract IT Maintenance,Quantum,TOLOMY LTD,6497231,47300,IT maintenance and support
MOJ,NOMS,28/12/2016,FM - Hard Fixed Costs,Estates Contract Management,AMEY COMMUNITY LIMITED,6512595,47373.12,Maintenance work
MOJ,NOMS,23/12/2016,Contracted-out - Electronic Monitoring Equipment (Lot 3) & Networks (Lot 4),Electronic Monitoring,TELEFONICA UK LTD,6471333,47410.57,Electronic monitoring services 
MOJ,NOMS,12/12/2016,Electricity,Highdown,EDF ENERGY,6494098,47432.04,Electricity utility costs
MOJ,NOMS,06/12/2016,Raw Materials Issued,PSP Industries HQ Manufacturing,VISION SUPPORT SERVICES LIMITED,6489200,47433.6,Raw materials for prison industries
MOJ,NOMS,29/12/2016,Rates and Ground Rents,MoJ Estates,LANCASTER CITY COUNCIL,6242755,47463.5,"Payment of rents, business rates and council tax"
MOJ,NOMS,12/12/2016,Electricity,Hewell,EDF ENERGY,6494098,47970.72,Electricity utility costs
MOJ,NOMS,29/12/2016,Rates and Ground Rents,MoJ Estates,LIVERPOOL CITY COUNCIL,6251918,48209,"Payment of rents, business rates and council tax"
MOJ,NOMS,28/12/2016,Contracted-out operation of prisons and detention centres,Lowdham Grange,LOWDHAM GRANGE PRISON SERVICES LTD,6508855,48222.19,Prisons and detention centres operated by an external provider
MOJ,NOMS,13/12/2016,Contracted-out operation of prisons and detention centres,Lowdham Grange,LOWDHAM GRANGE PRISON SERVICES LTD,6490336,48222.19,Prisons and detention centres operated by an external provider
MOJ,NOMS,16/12/2016,Raw Materials Issued,PSP Industries HQ Manufacturing,VISION SUPPORT SERVICES LIMITED,6504961,48312,Raw materials for prison industries
MOJ,NOMS,14/12/2016,Raw Materials Issued,PSP Industries HQ Manufacturing,VISION SUPPORT SERVICES LIMITED,6501226,48312,Raw materials for prison industries
MOJ,NOMS,07/12/2016,Raw Materials Issued,PSP Industries HQ Manufacturing,VISION SUPPORT SERVICES LIMITED,6487797,48314.93,Raw materials for prison industries
MOJ,NOMS,28/12/2016,FM - Hard Fixed Costs,Estates Contract Management,AMEY COMMUNITY LIMITED,6512404,48621.99,Maintenance work
MOJ,NOMS,22/12/2016,Recruitment Advertising and Media,Organisational Development Group,HAVAS PEOPLE LTD,12909076,48821.67,Recruitment costs
MOJ,NOMS,09/12/2016,Ad-Hoc Major Maintenance and Capital Works - more than 10k,Estates Contract Management,CARILLION (AMBS) LIMITED,6485671,48874.99,Major repair and operationally critical new work.
MOJ,NOMS,29/12/2016,Rates and Ground Rents,MoJ Estates,LIVERPOOL CITY COUNCIL,6240578,49203,"Payment of rents, business rates and council tax"
MOJ,NOMS,12/12/2016,Electricity,Liverpool,EDF ENERGY,6494098,49253.35,Electricity utility costs
MOJ,NOMS,28/12/2016,FM - Hard Fixed Costs,Estates Contract Management,AMEY COMMUNITY LIMITED,6512274,49373.03,Maintenance work
MOJ,NOMS,29/12/2016,FM - Hard Fixed Costs,Estates Contract Management,CARILLION (AMBS) LIMITED,6513697,49412.8,Maintenance work
MOJ,NOMS,09/12/2016,FM - Hard Fixed Costs,Estates Contract Management,CARILLION (AMBS) LIMITED,6487298,49412.81,Maintenance work
MOJ,NOMS,07/12/2016,Hard Variable OVER 5k - NON VAT Recoverable,Estates Contract Management,CARILLION (AMBS) LIMITED,6487401,49662.06,Maintenance work
MOJ,NOMS,28/12/2016,Probation - Approved premises,Director of National Probation Service,ST VINCENT DE PAUL SOCIETY REF ST CHRISTOPHERS,6514563,49726.5,Grant to voluntary approved probation premises
MOJ,NOMS,13/12/2016,Probation - Approved premises,Director of National Probation Service,ST VINCENT DE PAUL SOCIETY REF ST CHRISTOPHERS,6499702,49726.5,Grant to voluntary approved probation premises
MOJ,NOMS,28/12/2016,Probation - Approved premises,Director of National Probation Service,ST VINCENT DE PAUL SOCIETY REF ST CHRISTOPHERS,6514564,49726.5,Grant to voluntary approved probation premises
MOJ,NOMS,30/12/2016,Resource Grants / Grant-in-Aid,Commissioning Strategies Group,HOMES 4 YORKSHIRE LTD,6511700,49766.67,Grant payments to voluntary and community sector organisations
MOJ,NOMS,30/12/2016,Resource Grants / Grant-in-Aid,Commissioning Strategies Group,HOMES 4 YORKSHIRE LTD,6511701,49766.67,Grant payments to voluntary and community sector organisations
MOJ,NOMS,30/12/2016,FM - Hard Fixed Costs,Estates Contract Management,CARILLION (AMBS) LIMITED,6514655,49823.32,Maintenance work
MOJ,NOMS,20/12/2016,Gas,Highpoint,CORONA ENERGY RETAIL 4 LTD,6503807,49905.32,Gas utility costs
MOJ,NOMS,22/12/2016,Contracted-out Resettlement Services,PS Plus 2,SHAW TRUST,6507421,49940,Resettlement and community services 
MOJ,NOMS,28/12/2016,FM - Hard Fixed Costs,Estates Contract Management,AMEY COMMUNITY LIMITED,6512718,49940.41,Maintenance work
MOJ,NOMS,30/12/2016,Resource Grants / Grant-in-Aid,Commissioning Strategies Group,THE CONSERVATION FOUNDATION,6508477,50000,Grant payments to voluntary and community sector organisations
MOJ,NOMS,19/12/2016,Resource Grants / Grant-in-Aid,Commissioning Strategies Group,THE CONSERVATION FOUNDATION,6500307,50000,Grant payments to voluntary and community sector organisations
MOJ,NOMS,29/12/2016,Hard Variable OVER 5k - NON VAT Recoverable,Estates Contract Management,CARILLION (AMBS) LIMITED,6513715,50121.35,Maintenance work
MOJ,NOMS,14/12/2016,Probation - Approved premises,Director of National Probation Service,HESTIA HOUSING SUPPORT CO LTD REF BATTERSEA & STREATHAM,6499782,50154.42,Grant to voluntary approved probation premises
MOJ,NOMS,13/12/2016,Probation - Approved premises,Director of National Probation Service,HESTIA HOUSING SUPPORT CO LTD REF BATTERSEA & STREATHAM,6499780,50154.42,Grant to voluntary approved probation premises
MOJ,NOMS,06/12/2016,Hard Variable OVER 5k - NON VAT Recoverable,Estates Contract Management,CARILLION (AMBS) LIMITED,6487357,50264.82,Maintenance work
MOJ,NOMS,14/12/2016,Contracted-out - Electronic Monitoring Equipment (Lot 3) & Networks (Lot 4),Electronic Monitoring,TELEFONICA UK LTD,6461966,50432.81,Electronic monitoring services 
MOJ,NOMS,28/12/2016,FM - Hard Fixed Costs,Estates Contract Management,AMEY COMMUNITY LIMITED,6512675,50461.71,Maintenance work
MOJ,NOMS,12/12/2016,Electricity,Ranby,EDF ENERGY,6494098,50524.25,Electricity utility costs
MOJ,NOMS,13/12/2016,Contracted-out operation of prisons and detention centres,Peterborough,PETERBOROUGH PRISON MANAGEMENT LTD,6496792,50817.7,Prisons and detention centres operated by an external provider
MOJ,NOMS,28/12/2016,FM - Hard Fixed Costs,Estates Contract Management,AMEY COMMUNITY LIMITED,6513262,50855.24,Maintenance work
MOJ,NOMS,28/12/2016,Water and Sewage,Swaleside,SOUTHERN WATER SERVICES LTD,6513613,50945.18,Water and sewage utility costs
MOJ,NOMS,29/12/2016,Rates and Ground Rents,MoJ Estates,BRIDGEND COUNTY BOROUGH COUNCIL,6249771,51030,"Payment of rents, business rates and council tax"
MOJ,NOMS,29/12/2016,Rates and Ground Rents,MoJ Estates,PETERBOROUGH CITY COUNCIL,6242750,51125,"Payment of rents, business rates and council tax"
MOJ,NOMS,21/12/2016,FM - Hard Fixed Costs,Nottingham,AMEY COMMUNITY LIMITED,6260604,51301.09,Maintenance work
MOJ,NOMS,09/12/2016,Subsistence,Central Budget,CALDER CONFERENCES LTD,6495597,51390.76,Subsistence and hotel accommodation for staff working away from their home area 
MOJ,NOMS,30/12/2016,Intangible WIP Additions,Offender Management and Public Protection Group,ZAIZI LTD,6464696,51439.2,Intangible Additions
MOJ,NOMS,12/12/2016,FM - Hard Variable Costs - up to 5k,Estates Contract Management,CARILLION (AMBS) LIMITED,6487303,51496.5,Maintenance work
MOJ,NOMS,19/12/2016,Recruitment,MOJ Shared Services NOMS Delivery,HAMPSHIRE CONSTABULARY,6470207,51520,Recruitment of staff
MOJ,NOMS,09/12/2016,Probation - Approved premises,Director of National Probation Service,ASHLEY HOUSE,6495640,52208.5,Grant to voluntary approved probation premises
MOJ,NOMS,23/12/2016,Probation - Approved premises,Director of National Probation Service,ASHLEY HOUSE,6511755,52208.5,Grant to voluntary approved probation premises
MOJ,NOMS,13/12/2016,Contracted-out Other Services,Isle of Wight,COFELY ENERGY SERVICES UK LTD,6468426,52294.09,Heat Energy Services
MOJ,NOMS,28/12/2016,FM - Hard Fixed Costs,Estates Contract Management,AMEY COMMUNITY LIMITED,6512679,52424.26,Maintenance work
MOJ,NOMS,28/12/2016,FM - Hard Fixed Costs,Estates Contract Management,AMEY COMMUNITY LIMITED,6512671,52465.09,Maintenance work
MOJ,NOMS,21/12/2016,Raw Materials - ESS/LBA Industries Internal Use within the HO,PSP Industries HQ Staff,JLA LTD,6473576,52547.04,Raw materials for prison industries
MOJ,NOMS,12/12/2016,Electricity,Manchester,EDF ENERGY,6494098,52571.93,Electricity utility costs
MOJ,NOMS,12/12/2016,Electricity,Littlehey,EDF ENERGY,6494098,52950.71,Electricity utility costs
MOJ,NOMS,23/12/2016,Clothing,PSP Industries HQ Manufacturing,CARPENTER LTD,6496531,53020.8,Mattresses for prisoners' beds
MOJ,NOMS,29/12/2016,Rates and Ground Rents,MoJ Estates,THE ROYAL BOROUGH OF GREENWICH,6240714,53251,"Payment of rents, business rates and council tax"
MOJ,NOMS,30/12/2016,Clothing,Director PSP Front Line Centrally Managed,PIK-A-PAK,6514675,53254.66,Purchase of fabric for the manufacture of prisoner clothing and other consumable items by prison industries
MOJ,NOMS,09/12/2016,Intangible - Software - Acquisitions,Digital Studio,ENTSERV UK LTD,6455634,53304.08,"In-year purchases and discoveries over 10,000."
MOJ,NOMS,08/12/2016,FM - Hard Fixed Costs,Estates Contract Management,CARILLION (AMBS) LIMITED,6487332,53385.96,Maintenance work
MOJ,NOMS,12/12/2016,Electricity,Highpoint,EDF ENERGY,12988196,53459.88,Electricity utility costs
MOJ,NOMS,12/12/2016,Electricity,Wandsworth,EDF ENERGY,6494098,53533.57,Electricity utility costs
MOJ,NOMS,29/12/2016,Rates and Ground Rents,MoJ Estates,WEST DEVON BOROUGH COUNCIL,6508457,53553.45,"Payment of rents, business rates and council tax"
MOJ,NOMS,12/12/2016,Contracted-out Other Services,Chelmsford,COFELY ENERGY SERVICES UK LTD,6497909,53794.32,Heat Energy Services
MOJ,NOMS,19/12/2016,Probation - Approved premises,Director of National Probation Service,CARDIGAN HOUSE APPROVED PREMISE,6506102,53920.33,Grant to voluntary approved probation premises
MOJ,NOMS,05/12/2016,Probation - Approved premises,Director of National Probation Service,CARDIGAN HOUSE APPROVED PREMISE,6489411,53920.33,Grant to voluntary approved probation premises
MOJ,NOMS,29/12/2016,Probation - Approved premises,Director of National Probation Service,ST VINCENT DE PAUL SOCIETY REF OZANAM HOUSE,6514618,54091.5,Grant to voluntary approved probation premises
MOJ,NOMS,19/12/2016,Probation - Approved premises,Director of National Probation Service,ST VINCENT DE PAUL SOCIETY REF OZANAM HOUSE,6497948,54091.5,Grant to voluntary approved probation premises
MOJ,NOMS,29/12/2016,Probation - Approved premises,Director of National Probation Service,ST VINCENT DE PAUL SOCIETY REF OZANAM HOUSE,6514619,54091.5,Grant to voluntary approved probation premises
MOJ,NOMS,28/12/2016,FM - Hard Fixed Costs,Estates Contract Management,AMEY COMMUNITY LIMITED,6513136,54259.6,Maintenance work
MOJ,NOMS,13/12/2016,Contracted-out operation of prisons and detention centres,Bronzefield,ASHFORD PRISON SERVICES LTD,6496931,54350.18,Prisons and detention centres operated by an external provider
MOJ,NOMS,12/12/2016,Electricity,Belmarsh,EDF ENERGY,6494098,54799.68,Electricity utility costs
MOJ,NOMS,08/12/2016,Probation - Approved premises,Director of National Probation Service,ADELAIDE HOUSE,6491430,54861.75,Grant to voluntary approved probation premises
MOJ,NOMS,08/12/2016,Probation - Approved premises,Director of National Probation Service,ADELAIDE HOUSE,6491425,54861.75,Grant to voluntary approved probation premises
MOJ,NOMS,08/12/2016,Probation - Approved premises,Director of National Probation Service,ADELAIDE HOUSE,6491431,54861.75,Grant to voluntary approved probation premises
MOJ,NOMS,08/12/2016,Probation - Approved premises,Director of National Probation Service,ADELAIDE HOUSE,6491426,54861.75,Grant to voluntary approved probation premises
MOJ,NOMS,19/12/2016,"Prisoner Compensation over 5,000",Garth,GOVERNMENT LEGAL DEPARTMENT,6501820,55000,Costs in compensation claims - prisoners
MOJ,NOMS,19/12/2016,Contracted-out Resettlement Services,PS Plus 2,SHAW TRUST,6500860,55005,Resettlement and community services 
MOJ,NOMS,28/12/2016,FM - Hard Fixed Costs,Estates Contract Management,AMEY COMMUNITY LIMITED,6512545,55100.61,Maintenance work
MOJ,NOMS,21/12/2016,Contracted-out Escorts,Prisoner Escort & Custody Service (PECS),SERCO LTD,6505488,55322.76,Prisoner escort services 
MOJ,NOMS,12/12/2016,Probation - Approved premises,Director of National Probation Service,ST JOHN'S APPROVED PREMISES,6491291,55375.33,Grant to voluntary approved probation premises
MOJ,NOMS,12/12/2016,Probation - Approved premises,Director of National Probation Service,ST JOHN'S APPROVED PREMISES,6492474,55375.33,Grant to voluntary approved probation premises
MOJ,NOMS,12/12/2016,Hard Variable OVER 5k - NON VAT Recoverable,Estates Contract Management,CARILLION (AMBS) LIMITED,6487377,55614.5,Maintenance work
MOJ,NOMS,12/12/2016,Electricity,Oakwood,EDF ENERGY,6494098,55623.37,Electricity utility costs
MOJ,NOMS,29/12/2016,Rates and Ground Rents,MoJ Estates,CHORLEY BOROUGH COUNCIL,6244472,55664,"Payment of rents, business rates and council tax"
MOJ,NOMS,29/12/2016,Rates and Ground Rents,MoJ Estates,SWALE BOROUGH COUNCIL,6244609,55664,"Payment of rents, business rates and council tax"
MOJ,NOMS,30/12/2016,FM - Hard Fixed Costs,Estates Contract Management,CARILLION (AMBS) LIMITED,6513683,55706.86,Maintenance work
MOJ,NOMS,08/12/2016,FM - Hard Fixed Costs,Estates Contract Management,CARILLION (AMBS) LIMITED,6487404,55706.86,Maintenance work
MOJ,NOMS,09/12/2016,Gas,Dartmoor,COFELY ENERGY SERVICES UK LTD,6496038,55922.02,Heat Energy Services
MOJ,NOMS,29/12/2016,Rates and Ground Rents,MoJ Estates,HUNTINGDONSHIRE DISTRICT COUNCIL,6240651,56161,"Payment of rents, business rates and council tax"
MOJ,NOMS,22/12/2016,Contracted-out Resettlement Services,PS Plus 2,SHAW TRUST,6507420,56185,Resettlement and community services 
MOJ,NOMS,12/12/2016,Electricity,G4S Birmingham,EDF ENERGY,6494098,56215.18,Electricity utility costs
MOJ,NOMS,15/12/2016,Resource Grants / Grant-in-Aid,Commissioning Strategies Group,PRISONERS ABROAD,6503083,56250,Grant payments to voluntary and community sector organisations
MOJ,NOMS,29/12/2016,Rates and Ground Rents,MoJ Estates,THE EAST RIDING OF YORKSHIRE COUNCIL,6240701,56658,"Payment of rents, business rates and council tax"
MOJ,NOMS,01/12/2016,Structural works / maintenance - Fees & professional services,MoJ Estates,MACE LTD,6486124,56733.7,Fees for professional services for maintenance on prison estate
MOJ,NOMS,01/12/2016,Buildings - Acquisitions,Estates Contract Management,CARILLION (AMBS) LIMITED,6485676,57103.25,Enhancement to buildings
MOJ,NOMS,30/12/2016,Intangible WIP Additions,Offender Management and Public Protection Group,ZAIZI LTD,6497146,57564,Intangible Additions
MOJ,NOMS,12/12/2016,FM - Hard Fixed Costs,Estates Contract Management,CARILLION (AMBS) LIMITED,6487303,57701.06,Maintenance work
MOJ,NOMS,29/12/2016,FM - Hard Fixed Costs,Estates Contract Management,CARILLION (AMBS) LIMITED,6514726,57701.06,Maintenance work
MOJ,NOMS,12/12/2016,Contracted-out Resettlement Services,New Hall,BRADFORD RAPE CRISIS & SEXUAL ABUSE SURVIVORS SERVICE,6446158,58000,Resettlement and community services 
MOJ,NOMS,28/12/2016,FM - Hard Fixed Costs,Estates Contract Management,AMEY COMMUNITY LIMITED,6512546,58044.91,Maintenance work
MOJ,NOMS,08/12/2016,FM - Hard Fixed Costs,Estates Contract Management,CARILLION (AMBS) LIMITED,6487305,58063.94,Maintenance work
MOJ,NOMS,30/12/2016,FM - Hard Fixed Costs,Estates Contract Management,CARILLION (AMBS) LIMITED,6513684,58063.94,Maintenance work
MOJ,NOMS,29/12/2016,Rates and Ground Rents,MoJ Estates,BIRMINGHAM CITY COUNCIL,6242947,58149,"Payment of rents, business rates and council tax"
MOJ,NOMS,28/12/2016,Clothing,Medway Secure Training Centre,ARAMARK LTD,6512904,58482.22,Purchase of fabric for the manufacture of prisoner clothing and other consumable items by prison industries
MOJ,NOMS,29/12/2016,Rates and Ground Rents,MoJ Estates,CHERWELL DISTRICT COUNCIL,6240661,58646,"Payment of rents, business rates and council tax"
MOJ,NOMS,28/12/2016,FM - Buildings related Emergency Action - more than 5k,Estates Contract Management,AMEY COMMUNITY LIMITED,6512291,59089.27,Maintenance work
MOJ,NOMS,13/12/2016,Contracted-out operation of prisons and detention centres,Peterborough,PETERBOROUGH PRISON MANAGEMENT LTD,6496791,59688,Prisons and detention centres operated by an external provider
MOJ,NOMS,29/12/2016,Contracted-out Resettlement Services,Feltham,HOUNSLOW YOUTH COUNSELLING SERVICE,6508404,59798,Resettlement and community services 
MOJ,NOMS,12/12/2016,Electricity,Frankland,EDF ENERGY,6494098,59839.46,Electricity utility costs
MOJ,NOMS,05/12/2016,Probation - Approved premises,Director of National Probation Service,RIPON HOUSE,6489410,59911.5,Grant to voluntary approved probation premises
MOJ,NOMS,30/12/2016,FM - Hard Fixed Costs,Estates Contract Management,CARILLION (AMBS) LIMITED,6513696,60076.5,Grant to voluntary approved probation premises
MOJ,NOMS,23/12/2016,Probation - Approved premises,Director of National Probation Service,ELIZABETH FRY CHARITY,6508036,60082.67,Grant to voluntary approved probation premises
MOJ,NOMS,12/12/2016,Probation - Approved premises,Director of National Probation Service,ELIZABETH FRY CHARITY,6496392,60082.67,Grant to voluntary approved probation premises
MOJ,NOMS,29/12/2016,Rates and Ground Rents,MoJ Estates,KINGSTON-UPON T/A HULL CITY COUNCIL,6242848,60137,"Payment of rents, business rates and council tax"
MOJ,NOMS,29/12/2016,Rates and Ground Rents,MoJ Estates,CHORLEY BOROUGH COUNCIL,6242841,60137,"Payment of rents, business rates and council tax"
MOJ,NOMS,29/12/2016,Rates and Ground Rents,MoJ Estates,EAST STAFFORDSHIRE BOROUGH COUNCIL,6270799,60192.24,"Payment of rents, business rates and council tax"
MOJ,NOMS,14/12/2016,Contracted-out Escorts,Prisoner Escort & Custody Service (PECS),GEO AMEY PECS LTD,6498786,60257.75,Prisoner escort services 
MOJ,NOMS,15/12/2016,Contracted-out Resettlement Services,PS Plus 2,ADVANCED PERSONNEL MANAGEMENT GROUP UK LIMITED,6499591,60441.71,Resettlement and community services 
MOJ,NOMS,19/12/2016,Probation - Approved premises,Director of National Probation Service,HESTIA HOUSING SUPPORT CO LTD REF BATTERSEA & STREATHAM,6499781,60596.17,Grant to voluntary approved probation premises
MOJ,NOMS,19/12/2016,Probation - Approved premises,Director of National Probation Service,HESTIA HOUSING SUPPORT CO LTD REF BATTERSEA & STREATHAM,6498984,60596.17,Grant to voluntary approved probation premises
MOJ,NOMS,07/12/2016,Hard Variable OVER 5k - NON VAT Recoverable,Estates Contract Management,CARILLION (AMBS) LIMITED,6487378,60712.51,Maintenance work
MOJ,NOMS,20/12/2016,Contracted-out Other Services,Isle of Wight,COFELY ENERGY SERVICES UK LTD,6497885,60772.45,Heat Energy Services
MOJ,NOMS,14/12/2016,Raw Materials Issued,PSP Industries HQ Manufacturing,VISION SUPPORT SERVICES LTD,6501225,60940.8,Raw materials for prison industries
MOJ,NOMS,29/12/2016,Rates and Ground Rents,MoJ Estates,NOTTINGHAM CITY COUNCIL,6242731,61131,"Payment of rents, business rates and council tax"
MOJ,NOMS,19/12/2016,Contracted-out Resettlement Services,PS Plus 2,ADVANCED PERSONNEL MANAGEMENT GROUP UK LIMITED,6504370,61365,Resettlement and community services 
MOJ,NOMS,21/12/2016,Contracted-out Escorts,Prisoner Escort & Custody Service (PECS),SERCO LTD,6505486,61820.63,Prisoner escort services 
MOJ,NOMS,30/12/2016,FM - Hard Fixed Costs,Estates Contract Management,CARILLION (AMBS) LIMITED,6513682,61821.21,Maintenance work
MOJ,NOMS,07/12/2016,FM - Hard Fixed Costs,Estates Contract Management,CARILLION (AMBS) LIMITED,6487401,61821.21,Maintenance work
MOJ,NOMS,15/12/2016,WIP - Professional Fees,MoJ Estates,BILFINGER GVA,6477415,62469,Professional fees for construction work
MOJ,NOMS,29/12/2016,Rates and Ground Rents,MoJ Estates,BROMSGROVE DISTRICT COUNCIL,6240696,62622,"Payment of rents, business rates and council tax"
MOJ,NOMS,23/12/2016,Contracted-out Resettlement Services,LDU Cluster Gwent,CAERPHILLY COUNTY BOROUGH COUNCIL,6510588,63008,Resettlement and community services 
MOJ,NOMS,23/12/2016,Contracted-out Resettlement Services,PS Plus 2,ADVANCED PERSONNEL MANAGEMENT GROUP UK LIMITED,6504034,63280,Resettlement and community services 
MOJ,NOMS,29/12/2016,Rates and Ground Rents,MoJ Estates,MANCHESTER CITY COUNCIL,6240708,63616,"Payment of rents, business rates and council tax"
MOJ,NOMS,12/12/2016,Hard Variable OVER 5k - NON VAT Recoverable,Estates Contract Management,CARILLION (AMBS) LIMITED,6487303,63694.45,Maintenance work
MOJ,NOMS,29/12/2016,Rates and Ground Rents,MoJ Estates,FENLAND DISTRICT COUNCIL,6240703,64113,"Payment of rents, business rates and council tax"
MOJ,NOMS,19/12/2016,Contracted-out Probation Trusts,West Yorkshire CRC,THE WEST YORKSHIRE COMMUNITY REHABILITATION COMPANY,6492372,64232.57,Probation services
MOJ,NOMS,29/12/2016,Contracted-out Probation Trusts,West Yorkshire CRC,THE WEST YORKSHIRE COMMUNITY REHABILITATION COMPANY,6506760,64232.57,Probation services
MOJ,NOMS,08/12/2016,Raw Materials Issued,PSP Industries HQ Manufacturing,VISION SUPPORT SERVICES LIMITED,6492344,64342.92,Raw materials for prison industries
MOJ,NOMS,07/12/2016,FM - Hard Fixed Costs,Estates Contract Management,CARILLION (AMBS) LIMITED,6487277,64372.29,Maintenance work
MOJ,NOMS,23/12/2016,Contracted-out Medical services,North East Probation Service,LEEDS PARTNERSHIPS NHS FOUNDATION NHS TRUST,6492797,64603.79,Healthcare services
MOJ,NOMS,13/12/2016,Contracted-out operation of prisons and detention centres,Bronzefield,ASHFORD PRISON SERVICES LTD,6496917,64818.52,Prisons and detention centres operated by an external provider
MOJ,NOMS,28/12/2016,Contract IT Maintenance,Fix 'n' Go,ENTSERV UK LTD,6513282,65740.14,IT maintenance and support
MOJ,NOMS,02/12/2016,"New structural works, structural maintenance and equipment",MoJ Estates,SHAYLOR GROUP PLC,6482888,65885.66,Maintenance work
MOJ,NOMS,30/12/2016,Contracted-out operation of prisons and detention centres,Altcourse,FAZAKERLEY PRISON SERVICES LTD,6517107,66155,Prisons and detention centres operated by an external provider
MOJ,NOMS,20/12/2016,Rates and Ground Rents,MoJ Estates,HOME OFFICE,6507381,66156.4,"Payment of rents, business rates and council tax"
MOJ,NOMS,29/12/2016,Rates and Ground Rents,MoJ Estates,SWALE BOROUGH COUNCIL,6244611,67095,"Payment of rents, business rates and council tax"
MOJ,NOMS,30/12/2016,FM - Buildings related Emergency Action - more than 5k,Estates Contract Management,CARILLION (AMBS) LIMITED,6513703,67746.43,Maintenance work
MOJ,NOMS,08/12/2016,Contracted-out operation of prisons and detention centres,Ashfield,PUCKLECHURCH CUSTODIAL SERVICES LTD,6490314,67880,Prisons and detention centres operated by an external provider
MOJ,NOMS,23/12/2016,Contracted-out operation of prisons and detention centres,Ashfield,PUCKLECHURCH CUSTODIAL SERVICES LTD,6508808,67880,Prisons and detention centres operated by an external provider
MOJ,NOMS,14/12/2016,Contract IT Maintenance,Digital Prison,ENTSERV UK LTD,6477393,68029.96,IT maintenance and support
MOJ,NOMS,29/12/2016,Rates and Ground Rents,MoJ Estates,THE EAST RIDING OF YORKSHIRE COUNCIL,6240712,68089,"Payment of rents, business rates and council tax"
MOJ,NOMS,29/12/2016,Rates and Ground Rents,MoJ Estates,LB OF HAMMERSMITH & FULHAM,6240663,68761,"Payment of rents, business rates and council tax"
MOJ,NOMS,23/12/2016,Contracted-out operation of prisons and detention centres,Doncaster,SERCO LTD,6510196,68874.3,Prisons and detention centres operated by an external provider
MOJ,NOMS,30/12/2016,Raw Materials - ESS/LBA Industries Internal Use within the HO,PSP Industries HQ Manufacturing,W & J KNOX LTD,6516253,68965.34,Raw materials for prison industries
MOJ,NOMS,06/12/2016,WIP - Professional Fees,MoJ Estates,MOTT MACDONALD LTD,6450724,69343.99,Professional fees for construction work
MOJ,NOMS,19/12/2016,Translation Services,Central Budget,CAPITA TRANSLATION & INTERPRETING,6503735,70625.92,Translation and interpreting services
MOJ,NOMS,28/12/2016,Raw Materials Issued,PSP Industries HQ Manufacturing,VISION SUPPORT SERVICES LIMITED,6514517,70835.4,Raw materials for prison industries
MOJ,NOMS,14/12/2016,Contracted-out Escorts,Prisoner Escort & Custody Service (PECS),GEO AMEY PECS LTD,6500050,70882.03,Prisoner escort services 
MOJ,NOMS,29/12/2016,Rates and Ground Rents,MoJ Estates,REIGATE & BANSTEAD BOROUGH COUNCIL,6242809,71071,"Payment of rents, business rates and council tax"
MOJ,NOMS,29/12/2016,Rates and Ground Rents,MoJ Estates,THE ROYAL BOROUGH OF GREENWICH,6242871,71346,"Payment of rents, business rates and council tax"
MOJ,NOMS,19/12/2016,WIP - Acquisitions,MoJ Estates,GALLIFORD TRY CONSTRUCTION UK LIMITED,6501297,72000,Enhancement to buildings
MOJ,NOMS,07/12/2016,Subsistence,Central Budget,CALDER CONFERENCES LTD,6492508,72596.88,Subsistence and hotel accommodation for staff working away from their home area 
MOJ,NOMS,12/12/2016,Contracted-out Escorts,Prisoner Escort & Custody Service (PECS),GEO AMEY PECS LTD,6492855,73309.85,Prisoner escort services 
MOJ,NOMS,30/12/2016,FM - Hard Fixed Costs,Estates Contract Management,CARILLION (AMBS) LIMITED,13029332,73632.13,Maintenance work
MOJ,NOMS,20/12/2016,FM - Hard Fixed Costs,Estates Contract Management,CARILLION (AMBS) LIMITED,12974556,73632.13,Maintenance work
MOJ,NOMS,13/12/2016,Contracted-out operation of prisons and detention centres,Dovegate,MORETON PRISON SERVICES LTD,6490335,73645.67,Prisons and detention centres operated by an external provider
MOJ,NOMS,23/12/2016,Contracted-out operation of prisons and detention centres,Dovegate,MORETON PRISON SERVICES LTD,6508851,73645.67,Prisons and detention centres operated by an external provider
MOJ,NOMS,19/12/2016,Contracted-out Resettlement Services,PS Plus 2,SHAW TRUST,6500861,74110,Resettlement and community services 
MOJ,NOMS,28/12/2016,Contract IT Maintenance,Fix 'n' Go,ENTSERV UK LTD,6513285,74407.53,IT maintenance and support
MOJ,NOMS,09/12/2016,Hard Variable OVER 5k - NON VAT Recoverable,Estates Contract Management,CARILLION (AMBS) LIMITED,6487375,75173.09,Maintenance work
MOJ,NOMS,09/12/2016,Ad-Hoc Major Maintenance and Capital Works - more than 10k,Estates Contract Management,CARILLION (AMBS) LIMITED,6485673,75511.44,Major repair and operationally critical new work.
MOJ,NOMS,29/12/2016,Rates and Ground Rents,MoJ Estates,NORTHUMBERLAND COUNTY COUNCIL,6240678,75544,"Payment of rents, business rates and council tax"
MOJ,NOMS,29/12/2016,Rates and Ground Rents,MoJ Estates,MILTON KEYNES COUNCIL,6242792,76041,"Payment of rents, business rates and council tax"
MOJ,NOMS,30/12/2016,FM - Hard Fixed Costs,Estates Contract Management,CARILLION (AMBS) LIMITED,6514638,76413,Maintenance work
MOJ,NOMS,07/12/2016,FM - Hard Fixed Costs,Estates Contract Management,CARILLION (AMBS) LIMITED,6487378,76413.01,Maintenance work
MOJ,NOMS,13/12/2016,WIP - Professional Fees,MoJ Estates,MACE LTD,6497855,76523.62,Professional fees for construction work
MOJ,NOMS,05/12/2016,FM - Buildings related Emergency Action - more than 5k,Estates Contract Management,CARILLION (AMBS) LIMITED,6485665,77161.34,Maintenance work
MOJ,NOMS,19/12/2016,Contracted-out Resettlement Services,PS Plus 2,SHAW TRUST,6500859,77358.6,Resettlement and community services 
MOJ,NOMS,16/12/2016,Raw Materials - ESS/LBA Industries Internal Use within the HO,PSP Industries HQ Staff,JLA LTD,6500476,78820.56,Raw materials for prison industries
MOJ,NOMS,14/12/2016,Contract IT Maintenance,Commissioning Group,XMA LTD,6500950,79081.88,IT maintenance and support
MOJ,NOMS,14/12/2016,Contracted-out operation of prisons and detention centres,Forest Bank,AGECROFT PRISON MANAGEMENT LTD,6490213,79927.02,Prisons and detention centres operated by an external provider
MOJ,NOMS,30/12/2016,Contracted-out operation of prisons and detention centres,Forest Bank,AGECROFT PRISON MANAGEMENT LTD,6509863,79927.02,Prisons and detention centres operated by an external provider
MOJ,NOMS,02/12/2016,Ad-Hoc Major Maintenance and Capital Works - more than 10k,Estates Contract Management,AMEY COMMUNITY LIMITED,6488161,80400,Major repair and operationally critical new work.
MOJ,NOMS,28/12/2016,Contract IT Maintenance,Fix 'n' Go,ENTSERV UK LTD,6514145,80446.81,IT maintenance and support
MOJ,NOMS,19/12/2016,"Staff Compensation over 5,000",Glen Parva,GOVERNMENT LEGAL DEPARTMENT,6501724,80486.86,Costs in compensation claims - staff
MOJ,NOMS,21/12/2016,Contracted-out Resettlement Services,PS Plus 2,IXION HOLDINGS (CONTRACTS) LTD,6490969,80776,Resettlement and community services 
MOJ,NOMS,20/12/2016,Hard Variable OVER 5k - NON VAT Recoverable,Estates Contract Management,CARILLION (AMBS) LIMITED,12974556,82041.22,Maintenance work
MOJ,NOMS,22/12/2016,WIP - Acquisitions,MoJ Estates,KIER CONSTRUCTION LTD,6510700,82075.62,Enhancement to buildings
MOJ,NOMS,21/12/2016,Contracted-out Resettlement Services,PS Plus 2,ADVANCED PERSONNEL MANAGEMENT GROUP UK LIMITED,6504363,82451.55,Resettlement and community services 
MOJ,NOMS,16/12/2016,Contracted-out Resettlement Services,PS Plus 2,ADVANCED PERSONNEL MANAGEMENT GROUP UK LIMITED,6477681,82915,Resettlement and community services 
MOJ,NOMS,29/12/2016,Rates and Ground Rents,MoJ Estates,DURHAM COUNTY COUNCIL,6242763,85484,"Payment of rents, business rates and council tax"
MOJ,NOMS,12/12/2016,Contracted-out Escorts,Prisoner Escort & Custody Service (PECS),GEO AMEY PECS LTD,6493017,87510.32,Prisoner escort services 
MOJ,NOMS,20/12/2016,Contracted-out Computer Services,Quantum,i2N LTD,6499132,90180.8,Computer services 
MOJ,NOMS,05/12/2016,Contracted-out Computer Services,Quantum,i2N LTD,6461867,90214.4,Computer services 
MOJ,NOMS,15/12/2016,WIP - Acquisitions,MoJ Estates,ISG CONSTRUCTION LTD,6501268,90918.38,Enhancement to buildings
MOJ,NOMS,29/12/2016,WIP - Acquisitions,MoJ Estates,ISG CONSTRUCTION LTD,6514422,90932.64,Enhancement to buildings
MOJ,NOMS,20/12/2016,Contracted-out Resettlement Services,PS Plus 2,ADVANCED PERSONNEL MANAGEMENT GROUP UK LIMITED,6499592,91500.64,Resettlement and community services 
MOJ,NOMS,22/12/2016,Intangible WIP Additions,Digital Studio,KAINOS SOFTWARE LTD,6476087,91529.2,Intangible Additions
MOJ,NOMS,29/12/2016,Contracted-out Electronic Monitoring Service (Lots 1 & 2),Electronic Monitoring,CAPITA BUSINESS SERVICES LTD,6505658,91799,Electronic monitoring services 
MOJ,NOMS,12/12/2016,Contracted-out Escorts,Prisoner Escort & Custody Service (PECS),GEO AMEY PECS LTD,6492856,92518.3,Prisoner escort services 
MOJ,NOMS,15/12/2016,Contracted-out Resettlement Services,PS Plus 2,ADVANCED PERSONNEL MANAGEMENT GROUP UK LIMITED,6499593,92629.49,Resettlement and community services 
MOJ,NOMS,07/12/2016,Specialist Contractors,Procurement Group,PRICEWATERHOUSECOOPERS LLP,6479200,94506.76,Specialist contractors engaged under a fixed-term contract for services 
MOJ,NOMS,13/12/2016,Clothing,PSP Industries HQ Manufacturing,CHARLES FELLOWS SUPPLIES LTD,6497386,94674.96,Purchase of fabric for the manufacture of prisoner clothing and other consumable items by prison industries
MOJ,NOMS,12/12/2016,Electricity,Lindholme,EDF ENERGY,6494098,97245.7,Electricity utility costs
MOJ,NOMS,19/12/2016,Contract IT Maintenance,Quantum,ZAIZI LTD,6464695,97393.75,IT maintenance and support
MOJ,NOMS,08/12/2016,Contract IT Maintenance,Digital Prison,G4S CARE & JUSTICE SERVICES (UK) LTD,6462093,97881.37,IT maintenance and support
MOJ,NOMS,19/12/2016,Contract IT Maintenance,Quantum,ZAIZI LTD,6500952,98032.03,IT maintenance and support
MOJ,NOMS,29/12/2016,Contracted-out Building Maintenance,Brixton,MITIE FACILITIES SERVICES LTD,6504166,98205.7,Maintenance work
MOJ,NOMS,12/12/2016,Contracted-out Resettlement Services,PS Plus 2,IXION HOLDINGS (CONTRACTS) LTD,6490970,98984.29,Resettlement and community services 
MOJ,NOMS,06/12/2016,WIP - Acquisitions,MoJ Estates,VINCI CONSTRUCTION UK LTD,6489778,100150.45,Enhancement to buildings
MOJ,NOMS,29/12/2016,Contract IT Maintenance,Digital Prison,IDENTITY E2E LTD,6510018,104468.75,IT maintenance and support
MOJ,NOMS,12/12/2016,Electricity,Wymott,EDF ENERGY,6494098,104964.56,Electricity utility costs
MOJ,NOMS,14/12/2016,Contract IT Maintenance,Digital Studio,ENTSERV UK LTD,6432888,107736.56,IT maintenance and support
MOJ,NOMS,29/12/2016,Clothing,PSP Industries HQ Manufacturing,CARPENTER LTD,6503046,108959.02,Mattresses for prisoners' beds
MOJ,NOMS,29/12/2016,Contracted-out Resettlement Services,PS Plus 2,IXION HOLDINGS (CONTRACTS) LTD,6503058,111540.13,Resettlement and community services 
MOJ,NOMS,29/12/2016,Contracted-out Resettlement Services,PS Plus 2,ADVANCED PERSONNEL MANAGEMENT GROUP UK LIMITED,6504362,112544.29,Resettlement and community services 
MOJ,NOMS,29/12/2016,Contracted-out operation of prisons and detention centres,Doncaster,SERCO LTD,6510194,112563.85,Prisons and detention centres operated by an external provider
MOJ,NOMS,12/12/2016,Structural works / maintenance - Fees & professional services,MoJ Estates,MOTT MACDONALD LTD,6490892,115673.4,Enhancement to buildings
MOJ,NOMS,29/12/2016,Contracted-out Resettlement Services,PS Plus 2,IXION HOLDINGS (CONTRACTS) LTD,6503059,116405.59,Resettlement and community services 
MOJ,NOMS,06/12/2016,Contracted-out Escorts,Prisoner Escort & Custody Service (PECS),SERCO LTD,6481807,117813.02,Prisoner escort services 
MOJ,NOMS,29/12/2016,Rates and Ground Rents,MoJ Estates,THE ROYAL BOROUGH OF GREENWICH,6240633,117876,"Payment of rents, business rates and council tax"
MOJ,NOMS,20/12/2016,Gas,Portland,CORONA ENERGY RETAIL 4 LTD,6503807,118295.76,Gas utility costs
MOJ,NOMS,14/12/2016,Contracted-out - Electronic Monitoring Equipment (Lot 3) & Networks (Lot 4),Electronic Monitoring,G4S MONITORING TECHNOLOGIES LTD,6463967,118738.8,Electronic monitoring services 
MOJ,NOMS,29/12/2016,Probation - Approved premises,Offender Management and Public Protection Group,LANGLEY HOUSE TRUST,6508439,118850,Grant to voluntary approved probation premises
MOJ,NOMS,16/12/2016,Clothing,PSP Industries HQ Manufacturing,CHARLES FELLOWS SUPPLIES LTD,6495587,120664.44,Purchase of fabric for the manufacture of prisoner clothing and other consumable items by prison industries
MOJ,NOMS,29/12/2016,Clothing,PSP Industries HQ Manufacturing,CHARLES FELLOWS SUPPLIES LTD,6510546,120664.44,Purchase of fabric for the manufacture of prisoner clothing and other consumable items by prison industries
MOJ,NOMS,16/12/2016,Clothing,PSP Industries HQ Manufacturing,CHARLES FELLOWS SUPPLIES LTD,6501709,120664.44,Purchase of fabric for the manufacture of prisoner clothing and other consumable items by prison industries
MOJ,NOMS,29/12/2016,Rates and Ground Rents,MoJ Estates,SOUTH STAFFORDSHIRE COUNCIL,6240574,123256,"Payment of rents, business rates and council tax"
MOJ,NOMS,20/12/2016,Specialist Contractors,Strategic Support Administration and Assurance,THE POLICE AND CRIME COMMISSIONER FOR SOUTH WALES,6507776,125000,Specialist contractors engaged under a fixed-term contract for services 
MOJ,NOMS,29/12/2016,FM - Management Fee,Estates Contract Management,AMEY COMMUNITY LIMITED,6508469,127415.5,Maintenance work
MOJ,NOMS,21/12/2016,FM - Management Fee,Estates Contract Management,AMEY COMMUNITY LIMITED,6504227,127415.5,Maintenance work
MOJ,NOMS,05/12/2016,Training Courses,Medway Secure Training Centre,NACRO,6488922,128696.42,Training courses for prisoners 
MOJ,NOMS,22/12/2016,Training Courses,Medway Secure Training Centre,NACRO,6509285,128696.42,Training courses for prisoners 
MOJ,NOMS,14/12/2016,Contracted-out operation of prisons and detention centres,Forest Bank,AGECROFT PRISON MANAGEMENT LTD,6489876,131587.2,Prisons and detention centres operated by an external provider
MOJ,NOMS,29/12/2016,Contracted-out Electronic Monitoring Service (Lots 1 & 2),Electronic Monitoring,CAPITA BUSINESS SERVICES LTD,6505656,135428.76,Electronic monitoring services 
MOJ,NOMS,30/12/2016,Contracted-out operation of prisons and detention centres,Forest Bank,AGECROFT PRISON MANAGEMENT LTD,6509865,135973.44,Prisons and detention centres operated by an external provider
MOJ,NOMS,13/12/2016,WIP - Acquisitions,MoJ Estates,ISG CONSTRUCTION LTD,6497687,136830.66,Enhancement to buildings
MOJ,NOMS,14/12/2016,Vehicle costs,Central Budget,ALLSTAR BUSINESS SOLUTIONS LTD,6500218,138968.65,Purchase of motor fuel
MOJ,NOMS,19/12/2016,Contracted-out operation of prisons and detention centres,Sodexo Northumberland,SODEXO LTD,6503381,142066.68,Prisons and detention centres operated by an external provider
MOJ,NOMS,19/12/2016,Contracted-out operation of prisons and detention centres,Sodexo Northumberland,SODEXO LTD,6503382,143363.69,Prisons and detention centres operated by an external provider
MOJ,NOMS,15/12/2016,Specialist Contractors,Central Budget,CAPITA BUSINESS SERVICES LTD,6501828,144101.74,Specialist contractors engaged under a fixed-term contract for services 
MOJ,NOMS,16/12/2016,WIP - Acquisitions,MoJ Estates,HENRY BOOT CONSTRUCTION LTD,6501178,144331.94,Enhancement to buildings
MOJ,NOMS,02/12/2016,Contract IT Maintenance,Fix 'n' Go,ENTSERV UK LTD,6481205,146444,IT maintenance and support
MOJ,NOMS,12/12/2016,Contracted-out Resettlement Services,PS Plus 2,CAREER CONNECT,6496756,151619.89,Resettlement and community services 
MOJ,NOMS,16/12/2016,WIP - Acquisitions,MoJ Estates,VINCI CONSTRUCTION UK LTD,6406440,156000,Enhancement to buildings
MOJ,NOMS,02/12/2016,Specialist Contractors,Procurement Group,PRICEWATERHOUSECOOPERS LLP,6479198,158053.5,Specialist contractors engaged under a fixed-term contract for services 
MOJ,NOMS,16/12/2016,Occupational Health Services,ER and Reward Team,OH ASSIST LTD,6478120,164571.5,Occupational health services for staff
MOJ,NOMS,12/12/2016,Contract IT Maintenance,Fix 'n' Go,ENTSERV UK LTD,6432887,164586.21,IT maintenance and support
MOJ,NOMS,06/12/2016,Contract IT Maintenance,MoJ ICT,TOLOMY LTD,6466883,168476.5,IT maintenance and support
MOJ,NOMS,30/12/2016,Contract IT Maintenance,MoJ ICT,TOLOMY LTD,6497230,170535.88,IT maintenance and support
MOJ,NOMS,16/12/2016,Occupational Health Services,ER and Reward Team,OH ASSIST LTD,6447269,172523.08,Occupational health services for staff
MOJ,NOMS,08/12/2016,Specialist Contractors,Central Budget,CAPITA BUSINESS SERVICES LTD,6494238,174040.22,Specialist contractors engaged under a fixed-term contract for services 
MOJ,NOMS,16/12/2016,Contract IT Maintenance,Digital Prison,IDENTITY E2E LTD,6503985,176956.25,IT maintenance and support
MOJ,NOMS,29/12/2016,FM - Buildings related Emergency Action - more than 5k,Estates Contract Management,CARILLION (AMBS) LIMITED,6514645,179285.09,Maintenance work
MOJ,NOMS,12/12/2016,Specialist Contractors,Central Budget,CAPITA BUSINESS SERVICES LTD,6494248,180218.81,Specialist contractors engaged under a fixed-term contract for services 
MOJ,NOMS,06/12/2016,Specialist Contractors,Central Budget,CAPITA BUSINESS SERVICES LTD,6490482,181812.37,Specialist contractors engaged under a fixed-term contract for services 
MOJ,NOMS,29/12/2016,FM - Management Fee,Estates Contract Management,CARILLION (AMBS) LIMITED,6508468,184605,Maintenance work
MOJ,NOMS,29/12/2016,FM - Management Fee,Estates Contract Management,CARILLION (AMBS) LIMITED,6508466,184605,Maintenance work
MOJ,NOMS,21/12/2016,FM - Management Fee,Estates Contract Management,CARILLION (AMBS) LIMITED,6506736,184605,Maintenance work
MOJ,NOMS,21/12/2016,FM - Management Fee,Estates Contract Management,CARILLION (AMBS) LIMITED,6506738,184605,Maintenance work
MOJ,NOMS,29/12/2016,Occupational Health Services,ER and Reward Team,OH ASSIST LTD,6512647,189008.46,Occupational health services for staff
MOJ,NOMS,15/12/2016,Specialist Contractors,Central Budget,CAPITA BUSINESS SERVICES LTD,6490481,189154.42,Specialist contractors engaged under a fixed-term contract for services 
MOJ,NOMS,29/12/2016,Specialist Contractors,Central Budget,CAPITA BUSINESS SERVICES LTD,6513638,195915.62,Specialist contractors engaged under a fixed-term contract for services 
MOJ,NOMS,29/12/2016,WIP - Acquisitions,MoJ Estates,GALLIFORD TRY CONSTRUCTION UK LIMITED,6508233,198000,Enhancement to buildings
MOJ,NOMS,29/12/2016,Specialist Contractors,Central Budget,CAPITA BUSINESS SERVICES LTD,6505178,202005.52,Specialist contractors engaged under a fixed-term contract for services 
MOJ,NOMS,12/12/2016,Assisted Prison Visits,Operational Services and Interventions Group,KAINOS SOFTWARE LTD,6459517,202238.7,Computer services 
MOJ,NOMS,06/12/2016,WIP - Acquisitions,Digital Prison,ENTSERV UK LTD,6490219,206397.18, IT maintenance & support
MOJ,NOMS,15/12/2016,WIP - Acquisitions,MoJ Estates,VINCI CONSTRUCTION UK LTD,6489777,208670.83,Descriptor wrong - maintenance work
MOJ,NOMS,16/12/2016,Recruitment,Organisational Development Group,CATCH 22 CHARITY LTD,6503697,213329.5,Recruitment of staff
MOJ,NOMS,29/12/2016,FM - Hard Variable Costs - up to 5k,Estates Contract Management,CARILLION (AMBS) LIMITED,6508468,220000,Maintenance work
MOJ,NOMS,21/12/2016,FM - Hard Variable Costs - up to 5k,Estates Contract Management,CARILLION (AMBS) LIMITED,6506738,220000,Maintenance work
MOJ,NOMS,21/12/2016,FM - Hard Variable Costs - up to 5k,Estates Contract Management,CARILLION (AMBS) LIMITED,6506736,220000,Maintenance work
MOJ,NOMS,29/12/2016,FM - Hard Variable Costs - up to 5k,Estates Contract Management,CARILLION (AMBS) LIMITED,6508466,220000,Maintenance work
MOJ,NOMS,20/12/2016,WIP - Acquisitions,MoJ Estates,WATES CONSTRUCTION LTD,6503980,225400.93,Enhancement to buildings
MOJ,NOMS,15/12/2016,WIP - Acquisitions,MoJ Estates,HENRY BOOT CONSTRUCTION LTD,6335604,229477.56,Enhancement to buildings
MOJ,NOMS,29/12/2016,Specialist Contractors,Central Budget,CAPITA BUSINESS SERVICES LTD,6497227,234434.42,Specialist contractors engaged under a fixed-term contract for services 
MOJ,NOMS,05/12/2016,WIP - Acquisitions,Digital Prison,ENTSERV UK LTD,6487451,240916.45,Enhancement to buildings
MOJ,NOMS,19/12/2016,Intangible - Software - Acquisitions,Offender Management and Public Protection Group,SAADIAN TECHNOLOGIES UK LTD,6487267,241440,"In-year purchases and discoveries over 10,000."
MOJ,NOMS,01/12/2016,WIP - Acquisitions,CRC T&S,SOPRA STERIA LTD,6485987,245777.35,Enhancement to buildings
MOJ,NOMS,20/12/2016,"Staff Compensation over 5,000",HQ Operational Business Support,GOVERNMENT LEGAL DEPARTMENT,13003578,254436.1,Staff Compensation payment
MOJ,NOMS,28/12/2016,FM - Management Fee,Estates Contract Management,AMEY COMMUNITY LIMITED,6513263,268485.94,Maintenance work
MOJ,NOMS,20/12/2016,Consultancy,Electronic Monitoring - Change,PA CONSULTING SERVICES LTD,6508409,268896,Consultancy services
MOJ,NOMS,14/12/2016,Contract IT Maintenance,Digital Studio,ENTSERV UK LTD,6431638,272713.08,IT maintenance and support
MOJ,NOMS,12/12/2016,Contracted-out - Electronic Monitoring Equipment (Lot 3) & Networks (Lot 4),Electronic Monitoring,G4S MONITORING TECHNOLOGIES LTD,6485046,273765.6,Electronic monitoring services 
MOJ,NOMS,13/12/2016,Contracted-out operation of prisons and detention centres,Altcourse,FAZAKERLEY PRISON SERVICES LTD,6496141,275296.02,Prisons and detention centres operated by an external provider
MOJ,NOMS,30/12/2016,WIP - Acquisitions,MoJ Estates,ISG CONSTRUCTION LTD,6516417,276851.48,Enhancement to buildings
MOJ,NOMS,20/12/2016,WIP - Acquisitions,MoJ Estates,WATES CONSTRUCTION LTD,6503979,282793.25,Enhancement to buildings
MOJ,NOMS,30/12/2016,Contract IT Maintenance,Quantum,TOLOMY LTD,6487414,283800,IT maintenance and support
MOJ,NOMS,30/12/2016,Contracted-out operation of prisons and detention centres,Altcourse,FAZAKERLEY PRISON SERVICES LTD,6510951,284472.55,Prisons and detention centres operated by an external provider
MOJ,NOMS,23/12/2016,Contracted-out Probation Boards,Director of National Probation Service,GREATER MANCHESTER PENSION FUND,6511155,294165,Probation services
MOJ,NOMS,20/12/2016,Consultancy,Electronic Monitoring - Change,PA CONSULTING SERVICES LTD,6508408,303096,Consultancy services
MOJ,NOMS,29/12/2016,WIP - Acquisitions,MoJ Estates,SHAYLOR GROUP PLC,6511213,313200,Enhancement to buildings
MOJ,NOMS,05/12/2016,Contract IT Maintenance,Quantum,BEAUMONT COLSON,6489891,361620,IT maintenance and support
MOJ,NOMS,12/12/2016,WIP - Acquisitions,MoJ Estates,GALLIFORD TRY CONSTRUCTION (UK) LTD,6493358,369240.01,Enhancement to buildings
MOJ,NOMS,29/12/2016,FM - Management Fee,Estates Contract Management,CARILLION (AMBS) LIMITED,6514654,370453.19,Maintenance work
MOJ,NOMS,06/12/2016,FM - Management Fee,Estates Contract Management,CARILLION (AMBS) LIMITED,6487363,376156.64,Maintenance work
MOJ,NOMS,29/12/2016,Maintenance Work,HS Directorate Prisons Central,CAPITA SECURE INFORMATION SOLUTIONS LTD,6505192,389980.96,Maintenance work
MOJ,NOMS,20/12/2016,WIP - Acquisitions,MoJ Estates,WATES CONSTRUCTION LTD,6495989,390043.82,Enhancement to buildings
MOJ,NOMS,12/12/2016,WIP - Acquisitions,MoJ Estates,ISG CONSTRUCTION LTD,6492216,412796.51,Enhancement to buildings
MOJ,NOMS,12/12/2016,Contracted-out - Electronic Monitoring Equipment (Lot 3) & Networks (Lot 4),Electronic Monitoring,G4S MONITORING TECHNOLOGIES LTD,6426693,448500,Electronic monitoring services 
MOJ,NOMS,22/12/2016,Contracted-out operation of prisons and detention centres,Parc,BRIDGEND CUSTODIAL SERVICES LTD,19466274,519912.69,Prisons and detention centres operated by an external provider
MOJ,NOMS,01/12/2016,Prison Shop Cost of Sales,Retail Project Charges,DHL SUPPLY CHAIN LTD,6483442,587951.91,Prison shop run through a national contract at no cost to taxpayer�
MOJ,NOMS,29/12/2016,Contracted-out Other Services,Bail Accommodation Support Services,HOME GROUP LTD (STONHAM),6493946,595835.87,Resettlement and community services 
MOJ,NOMS,21/12/2016,FM - Soft Fixed Costs,Estates Contract Management,AMEY COMMUNITY LIMITED,6504227,613455,Maintenance work
MOJ,NOMS,21/12/2016,FM - Soft Fixed Costs,Estates Contract Management,AMEY COMMUNITY LIMITED,6504226,613455,Maintenance work
MOJ,NOMS,19/12/2016,Translation  services,Central Budget,CAPITA TRANSLATION & INTERPRETING,6503735,620917.69,Translation and interpreting services
MOJ,NOMS,16/12/2016,Prison Shop Cost of Sales,Retail Project Charges,DHL SUPPLY CHAIN LTD,6497228,643149.67,Prison shop run through a national contract at no cost to taxpayer�
MOJ,NOMS,20/12/2016,Contract IT Maintenance,MOJ Shared Services NOMS Delivery,ENTSERV UK LTD,6497875,653993,IT maintenance and support
MOJ,NOMS,29/12/2016,Contract IT Maintenance,MOJ Shared Services NOMS Delivery,ENTSERV UK LTD,6508859,654611.28,IT maintenance and support
MOJ,NOMS,16/12/2016,Contracted-out operation of prisons and detention centres,Dovegate,MORETON PRISON SERVICES LTD,6490740,654641.17,Prisons and detention centres operated by an external provider
MOJ,NOMS,29/12/2016,Contracted-out Electronic Monitoring Service (Lots 1 & 2),Electronic Monitoring,CAPITA BUSINESS SERVICES LTD,6505657,662174.63,Electronic monitoring services 
MOJ,NOMS,22/12/2016,Prison Shop Cost of Sales,Retail Project Charges,DHL SUPPLY CHAIN LTD,6503129,664170.12,Prison shop run through a national contract at no cost to taxpayer�
MOJ,NOMS,29/12/2016,Prison Shop Cost of Sales,Retail Project Charges,DHL SUPPLY CHAIN LTD,6509143,695300.27,Prison shop run through a national contract at no cost to taxpayer�
MOJ,NOMS,29/12/2016,Contracted-out operation of prisons and detention centres,Dovegate,MORETON PRISON SERVICES LTD,6509183,703146.41,Prisons and detention centres operated by an external provider
MOJ,NOMS,16/12/2016,Contracted-out Probation Trusts,Norfolk and Suffolk CRC,THE NORFOLK AND SUFFOLK COMMUNITY REHABILITATION COMPANY,12979762,801578.04,Probation services
MOJ,NOMS,19/12/2016,Contracted-out Probation Trusts,Durham and Tees Valley CRC,THE DURHAM TEES VALLEY COMMUNITY REHABILITATION COMPANY,6503750,900000,Probation services
MOJ,NOMS,15/12/2016,Contracted-out Probation Trusts,Dorset Devon and Cornwall CRC,THE DORSET DEVON AND CORNWALL COMMUNITY REHABILITATION COMPANY,6492778,942512.86,Probation services
MOJ,NOMS,30/12/2016,Staff work related travel,Central Budget,REDFERN TRAVEL LIMITED,6517108,946865.97,Staff work related travel
MOJ,NOMS,16/12/2016,Contracted-out Probation Trusts,Northumbria CRC,THE NORTHUMBRIA COMMUNITY REHABILITATION COMPANY LTD,12979758,947259.63,Probation services
MOJ,NOMS,16/12/2016,Contracted-out Probation Trusts,Essex CRC,THE ESSEX COMMUNITY REHABILITATION COMPANY,12979764,954667.63,Probation services
MOJ,NOMS,20/12/2016,Contracted-out Probation Trusts,Durham and Tees Valley CRC,THE DURHAM TEES VALLEY COMMUNITY REHABILITATION COMPANY,12977390,963555.04,Probation services
MOJ,NOMS,20/12/2016,Contracted-out Probation Trusts,South Yorkshire CRC,THE SOUTH YORKSHIRE COMMUNITY REHABILITATION COMPANY,12979754,985187.93,Probation services
MOJ,NOMS,29/12/2016,Contracted-out Probation Trusts,Warwickshire and West Mercia CRC,THE WARWICKSHIRE AND WEST MERCIA COMMUNITY REHABILITATION COMPANY,13009698,1017850,Probation services
MOJ,NOMS,19/12/2016,Contracted-out Probation Trusts,Warwickshire and West Mercia CRC,THE WARWICKSHIRE AND WEST MERCIA COMMUNITY REHABILITATION COMPANY,12994046,1017850,Probation services
MOJ,NOMS,16/12/2016,Tangible IT - Acquisitions,Electronic Monitoring,G4S MONITORING TECHNOLOGIES LTD,6485045,1061400,Capital expenditure on IT
MOJ,NOMS,16/12/2016,Legal Services - Non-Criminal,Central Budget,GOVERNMENT LEGAL DEPARTMENT,6503658,1115938.69,Legal representation
MOJ,NOMS,13/12/2016,Contracted-out Probation Trusts,Hampshire and Isle of Wight CRC,THE HAMPSHIRE AND ISLE OF WIGHT COMMUNITY REHABILITATION COMPANY,12980354,1135563.5,Probation services
MOJ,NOMS,29/12/2016,Contracted-out Probation Trusts,Merseyside CRC,THE MERSEYSIDE COMMUNITY REHABILITATION COMPANY,12995848,1179845.45,Probation services
MOJ,NOMS,16/12/2016,Contracted-out Probation Trusts,Merseyside CRC,THE MERSEYSIDE COMMUNITY REHABILITATION COMPANY,12987924,1179845.45,Probation services
MOJ,NOMS,16/12/2016,Contracted-out Probation Trusts,Thames Valley CRC,THE THAMES VALLEY COMMUNITY REHABILITATION COMPANY,12993064,1183815.23,Probation services
MOJ,NOMS,08/12/2016,Contracted-out operation of prisons and detention centres,Ashfield,PUCKLECHURCH CUSTODIAL SERVICES LTD,6490075,1228920,Prisons and detention centres operated by an external provider
MOJ,NOMS,07/12/2016,Contracted-out Prison Shop,Retail Project Charges,DHL SUPPLY CHAIN LTD,6492509,1247777.09,Prison shop run through a national contract at no cost to taxpayer�
MOJ,NOMS,22/12/2016,Contracted-out Prison Shop,Retail Project Charges,DHL SUPPLY CHAIN LTD,6509668,1255613.15,Prison shop run through a national contract at no cost to taxpayer�
MOJ,NOMS,16/12/2016,Contracted-out Probation Trusts,The Cumbria and Lancashire CRC,THE CUMBRIA AND LANCASHIRE COMMUNITY REHABILITATION COMPANY,12979756,1267601.33,Probation services
MOJ,NOMS,29/12/2016,Contracted-out operation of prisons and detention centres,Ashfield,PUCKLECHURCH CUSTODIAL SERVICES LTD,6509683,1269884,Prisons and detention centres operated by an external provider
MOJ,NOMS,05/12/2016,Staff work related travel,Central Budget,REDFERN TRAVEL LIMITED,6489338,1289932.57,Staff work related travel
MOJ,NOMS,19/12/2016,Contracted-out operation of prisons and detention centres,Sodexo Northumberland,SODEXO LTD,6504620,1308198.36,Prisons and detention centres operated by an external provider
MOJ,NOMS,15/12/2016,Contracted-out Probation Trusts,Humberside Lincolnshire and North Yorkshire CRC,THE HUMBERSIDE LINCOLNSHIRE AND NORTH YORKSHIRE COMMUNITY REHABILITATION COMPANY,12982614,1321975.31,Probation services
MOJ,NOMS,29/12/2016,Contracted-out Probation Trusts,Humberside Lincolnshire and North Yorkshire CRC,THE HUMBERSIDE LINCOLNSHIRE AND NORTH YORKSHIRE COMMUNITY REHABILITATION COMPANY,12982612,1321975.31,Probation services
MOJ,NOMS,29/12/2016,Contracted-out Probation Trusts,West Yorkshire CRC,THE WEST YORKSHIRE COMMUNITY REHABILITATION COMPANY,6506758,1382283.41,Probation services
MOJ,NOMS,19/12/2016,Contracted-out Probation Trusts,West Yorkshire CRC,THE WEST YORKSHIRE COMMUNITY REHABILITATION COMPANY,6492373,1382283.41,Probation services
MOJ,NOMS,20/12/2016,Contracted-out Probation Trusts,West Yorkshire CRC,THE WEST YORKSHIRE COMMUNITY REHABILITATION COMPANY,6491066,1382283.41,Probation services
MOJ,NOMS,19/12/2016,Contracted-out operation of prisons and detention centres,Peterborough,PETERBOROUGH PRISON MANAGEMENT LTD,6496795,1385683.36,Prisons and detention centres operated by an external provider
MOJ,NOMS,29/12/2016,Contracted-out operation of prisons and detention centres,Doncaster,SERCO LTD,6510195,1389914.69,Prisons and detention centres operated by an external provider
MOJ,NOMS,15/12/2016,Contracted-out Probation Trusts,Bristol Gloucestershire Somerset and Wiltshire CRC,THE BRISTOL GLOUCESTERSHIRE SOMERSET AND WILTSHIRE COMMUNITY REHABILITATION COMPANY,12982058,1418924.16,Probation services
MOJ,NOMS,20/12/2016,Prison Shop Cost of Sales,Retail Project Charges,DHL SUPPLY CHAIN LTD,6508405,1466038.33,Prison shop run through a national contract at no cost to taxpayer�
MOJ,NOMS,16/12/2016,Contracted-out Probation Trusts,Bedfordshire Cambridgeshire Hertfordshire and Northamptonshire CRC,THE BEDFORDSHIRE CAMBRIDGESHIRE HERTFORDSHIRE AND NORTHAMPTONSHIRE COMMUNITY REHABILITATION COMPANY,12979760,1485055.28,Probation services
MOJ,NOMS,01/12/2016,Contracted-out operation of prisons and detention centres,Oakwood,G4S CARE & JUSTICE SERVICES (UK) LTD,6482872,1616196.65,Prisons and detention centres operated by an external provider
MOJ,NOMS,21/12/2016,Contracted-out operation of prisons and detention centres,Oakwood,G4S CARE & JUSTICE SERVICES (UK) LTD,6481129,1668196.87,Prisons and detention centres operated by an external provider
MOJ,NOMS,20/12/2016,Contracted-out operation of prisons and detention centres,Rye Hill,ONLEY PRISON SERVICES LTD,6496028,1725067.23,Prisons and detention centres operated by an external provider
MOJ,NOMS,29/12/2016,Contracted-out operation of prisons and detention centres,Rye Hill,ONLEY PRISON SERVICES LTD,6510997,1782793.23,Prisons and detention centres operated by an external provider
MOJ,NOMS,12/12/2016,Contracted-out Probation Trusts,Wales CRC,THE WALES COMMUNITY REHABILITATION COMPANY,6491030,1871045.44,Probation services
MOJ,NOMS,28/12/2016,Contracted-out Electronic Monitoring Service (Lots 1 & 2),Electronic Monitoring,CAPITA BUSINESS SERVICES LTD,6513631,1932793.2,Electronic monitoring services 
MOJ,NOMS,13/12/2016,Contracted-out operation of prisons and detention centres,Peterborough,PETERBOROUGH PRISON MANAGEMENT LTD,6496906,1979841.92,Prisons and detention centres operated by an external provider
MOJ,NOMS,20/12/2016,Contracted-out operation of prisons and detention centres,Lowdham Grange,LOWDHAM GRANGE PRISON SERVICES LTD,6490353,2008159.24,Prisons and detention centres operated by an external provider
MOJ,NOMS,15/12/2016,Contracted-out Probation Trusts,Kent Surrey and Sussex CRC,THE KENT SURREY AND SUSSEX COMMUNITY REHABILITATION COMPANY,12987736,2055175.18,Probation services
MOJ,NOMS,29/12/2016,Contracted-out operation of prisons and detention centres,Lowdham Grange,LOWDHAM GRANGE PRISON SERVICES LTD,6508864,2075114.44,Prisons and detention centres operated by an external provider
MOJ,NOMS,14/12/2016,Contracted-out Escorts,Prisoner Escort & Custody Service (PECS),GEO AMEY PECS LTD,6492852,2088162.73,Prisoner escort services 
MOJ,NOMS,15/12/2016,Contracted-out Probation Trusts,Derbyshire Nottinghamshire Leicestershire and Rutland CRC,THE DERBYSHIRE LEICESTERSHIRE NOTTINGHAMSHIRE AND RUTLAND COMMUNITY REHABILITATION COMPANY,12984742,2106839.59,Probation services
MOJ,NOMS,29/12/2016,Contracted-out Probation Trusts,Derbyshire Nottinghamshire Leicestershire and Rutland CRC,THE DERBYSHIRE LEICESTERSHIRE NOTTINGHAMSHIRE AND RUTLAND COMMUNITY REHABILITATION COMPANY,13015326,2106839.59,Probation services
MOJ,NOMS,14/12/2016,Contracted-out Escorts,Prisoner Escort & Custody Service (PECS),GEO AMEY PECS LTD,6492853,2122245.44,Prisoner escort services 
MOJ,NOMS,15/12/2016,Contracted-out Probation Trusts,Cheshire and Greater Manchester CRC,THE CHESHIRE AND GREATER MANCHESTER COMMUNITY REHABILITATION COMPANY,12984960,2268031.25,Probation services
MOJ,NOMS,16/12/2016,Contracted-out operation of prisons and detention centres,G4S Birmingham,G4S CARE & JUSTICE SERVICES (UK) LTD,6488735,2349207.35,Prisons and detention centres operated by an external provider
MOJ,NOMS,30/12/2016,Contracted-out operation of prisons and detention centres,G4S Birmingham,G4S CARE & JUSTICE SERVICES (UK) LTD,6508782,2415118.17,Prisons and detention centres operated by an external provider
MOJ,NOMS,21/12/2016,FM - Hard Fixed Costs,Estates Contract Management,AMEY COMMUNITY LIMITED,6504226,2433225.5,Maintenance work
MOJ,NOMS,21/12/2016,FM - Hard Fixed Costs,Estates Contract Management,AMEY COMMUNITY LIMITED,6504227,2433225.5,Maintenance work
MOJ,NOMS,20/12/2016,Contracted-out operation of prisons and detention centres,Dovegate,MORETON PRISON SERVICES LTD,6490032,"2,501,566.64",Prisons and detention centres operated by an external provider
MOJ,NOMS,14/12/2016,Contracted-out Escorts,Prisoner Escort & Custody Service (PECS),GEO AMEY PECS LTD,6492854,"2,503,163.91",Prisoner escort services 
MOJ,NOMS,30/12/2016,Contracted-out operation of prisons and detention centres,Dovegate,MORETON PRISON SERVICES LTD,6509184,"2,592,967.44",Prisons and detention centres operated by an external provider
MOJ,NOMS,13/12/2016,Contracted-out operation of prisons and detention centres,Bronzefield,ASHFORD PRISON SERVICES LTD,6496932,"2,597,615.19",Prisons and detention centres operated by an external provider
MOJ,NOMS,20/12/2016,Contracted-out operation of prisons and detention centres,Thameside,BWP PROJECT SERVICES LTD,6490316,2904488.42,Prisons and detention centres operated by an external provider
MOJ,NOMS,19/12/2016,Contracted-out Probation Trusts,Staffordshire and West Midlands CRC,THE STAFFORDSHIRE AND WEST MIDLANDS COMMUNITY REHABILITATION COMPANY,12981800,2921086.26,Probation services
MOJ,NOMS,29/12/2016,Contracted-out Probation Trusts,Staffordshire and West Midlands CRC,THE STAFFORDSHIRE AND WEST MIDLANDS COMMUNITY REHABILITATION COMPANY,13015324,2921086.26,Probation services
MOJ,NOMS,30/12/2016,Contracted-out operation of prisons and detention centres,Thameside,BWP PROJECT SERVICES LTD,6508809,3000889.72,Prisons and detention centres operated by an external provider
MOJ,NOMS,20/12/2016,Contracted-out operation of prisons and detention centres,Forest Bank,AGECROFT PRISON MANAGEMENT LTD,6490212,3084739.87,Prisons and detention centres operated by an external provider
MOJ,NOMS,30/12/2016,Contracted-out operation of prisons and detention centres,Forest Bank,AGECROFT PRISON MANAGEMENT LTD,6509864,3187818.24,Prisons and detention centres operated by an external provider
MOJ,NOMS,09/12/2016,Contracted-out Escorts,Prisoner Escort & Custody Service (PECS),SERCO LTD,6481808,3338409.1,Prisoner escort services 
MOJ,NOMS,21/12/2016,Contracted-out Electronic Monitoring Service (Lots 1 & 2),Electronic Monitoring,CAPITA BUSINESS SERVICES LTD,6493978,3744787,Electronic monitoring services 
MOJ,NOMS,21/12/2016,Contracted-out operation of prisons and detention centres,Altcourse,FAZAKERLEY PRISON SERVICES LTD,6496140,3816794.05,Prisons and detention centres operated by an external provider
MOJ,NOMS,30/12/2016,Contracted-out operation of prisons and detention centres,Altcourse,FAZAKERLEY PRISON SERVICES LTD,6510950,3944020.52,Prisons and detention centres operated by an external provider
MOJ,NOMS,15/12/2016,Contracted-out operation of prisons and detention centres,Parc,BRIDGEND CUSTODIAL SERVICES LTD,6488677,4549804.5,Prisons and detention centres operated by an external provider
MOJ,NOMS,30/12/2016,Contracted-out operation of prisons and detention centres,Parc,BRIDGEND CUSTODIAL SERVICES LTD,6508778,4596099.22,Prisons and detention centres operated by an external provider
MOJ,NOMS,16/12/2016,Contracted-out Probation Trusts,London CRC,THE LONDON COMMUNITY REHABILITATION COMPANY,12985862,6048995.79,Probation services
MOJ,NOMS,19/12/2016,WIP - Acquisitions,MoJ Estates,LEND LEASE CONSTRUCTION (EMEA) LTD,6500233,9337588.85,Enhancement to buildings
MOJ,NOMS,02/12/2016,Costs in compensation claims - prisoners,Public Sector Prisons,E Fardell as deputy for Ryan Stafford St George,SSCMISC9261,226076.94,Costs in compensation claims - prisoners
MOJ,NOMS,13/12/2016,Costs in compensation claims - prisoners,Public Sector Prisons,Pennington Manches LLP Client Account,SSCMISC9302,132504.45,Costs in compensation claims - prisoners
MOJ,NOMS,20/12/2016,Professional advice,Security Group,CTRL-O,SSCMISC9332,27474,Professional advice
MOJ,NOMS,13/12/2016,Transfer of Prisoner Earning,Victim and Witness Unit ,MINISTRY OF JUSTICE,SSCMISC9262,114395.7,Victims of crime levy
MOJ,NOMS,15/12/2016,Sickness Injury Benefit,Central Budgets,MY CSP,CIVIL SUPERS 10/2016,432561.91,Sickness Injury Benefit
